NUMERO_MANDATO;IMPORTO_RIGA;BENEFICIARIO;CIG;DATA_MANDATO;CAPITOLO;ARTICOLO;NUMERO_IMPEGNO;TITOLO;DESCR_TITOLO;DESCR_LIVELLO_II;DESCR_LIVELLO_III;DESCR_LIVELLO_IV;DESCR_LIVELLO_V;;;;;;;;;;;;DATI PAGAMENTI 2° SEM 2023
975;40,4;ECONOMO COMUNALE USAI MARIA CARMINE; ;03/07/2023;1043;0;118;1;Spese correnti;Acquisto di beni e servizi;Acquisto di beni;Altri beni di consumo;Altri beni e materiali di consumo n.a.c.;;;;;;;;;;;;
976;627,25;ECONOMO COMUNALE USAI MARIA CARMINE; ;03/07/2023;1046;2;121;1;Spese correnti;Acquisto di beni e servizi;Acquisto di servizi;Servizi amministrativi;Spese postali;;;;;;;;;;;;
977;24,99;ECONOMO COMUNALE USAI MARIA CARMINE; ;03/07/2023;1054;0;123;1;Spese correnti;Acquisto di beni e servizi;Acquisto di servizi;Servizi finanziari;Oneri per servizio di tesoreria;;;;;;;;;;;;
978;25;ECONOMO COMUNALE USAI MARIA CARMINE; ;03/07/2023;1089;0;124;1;Spese correnti;Acquisto di beni e servizi;Acquisto di beni;Altri beni di consumo;Altri beni e materiali di consumo n.a.c.;;;;;;;;;;;;
979;28;ECONOMO COMUNALE USAI MARIA CARMINE; ;03/07/2023;1089;1;125;1;Spese correnti;Acquisto di beni e servizi;Acquisto di servizi;Manutenzione ordinaria e riparazioni;Manutenzione ordinaria e riparazioni di beni immobili;;;;;;;;;;;;
980;155;SOGGETTI DIVERSI; ;10/07/2023;1919;6;343;1;Spese correnti;Trasferimenti correnti;Trasferimenti correnti a Famiglie;Interventi assistenziali;Altri assegni e sussidi assistenziali;;;;;;;;;;;;
981;230;SOGGETTI DIVERSI; ;10/07/2023;1919;6;343;1;Spese correnti;Trasferimenti correnti;Trasferimenti correnti a Famiglie;Interventi assistenziali;Altri assegni e sussidi assistenziali;;;;;;;;;;;;
982;300;SOGGETTI DIVERSI; ;10/07/2023;1919;6;343;1;Spese correnti;Trasferimenti correnti;Trasferimenti correnti a Famiglie;Interventi assistenziali;Altri assegni e sussidi assistenziali;;;;;;;;;;;;
983;300;SOGGETTI DIVERSI; ;10/07/2023;1919;6;343;1;Spese correnti;Trasferimenti correnti;Trasferimenti correnti a Famiglie;Interventi assistenziali;Altri assegni e sussidi assistenziali;;;;;;;;;;;;
984;240;SOGGETTI DIVERSI; ;10/07/2023;1919;6;343;1;Spese correnti;Trasferimenti correnti;Trasferimenti correnti a Famiglie;Interventi assistenziali;Altri assegni e sussidi assistenziali;;;;;;;;;;;;
985;27,2;SOGGETTI DIVERSI; ;10/07/2023;1919;6;343;1;Spese correnti;Trasferimenti correnti;Trasferimenti correnti a Famiglie;Interventi assistenziali;Altri assegni e sussidi assistenziali;;;;;;;;;;;;
986;8.978,88;COMUNE DI GIBA; ;10/07/2023;1370;0;337;1;Spese correnti;Acquisto di beni e servizi;Acquisto di servizi;Contratti di servizio pubblico;Contratti di servizio per le mense scolastiche;;;;;;;;;;;;
987;1.976,32;COMUNE DI GIBA; ;10/07/2023;1370;0;233;1;Spese correnti;Acquisto di beni e servizi;Acquisto di servizi;Contratti di servizio pubblico;Contratti di servizio per le mense scolastiche;;;;;;;;;;;;
988;150;OMESSO NOMINATIVO NEL RISPETTO DELLA NORMATIVA SULLA PROTEZIONE DATI PERSONALI; ;10/07/2023;1920;13;230;1;Spese correnti;Acquisto di beni e servizi;Acquisto di servizi;Prestazioni professionali e specialistiche;Altre prestazioni professionali e specialistiche n.a.c.;;;;;;;;;;;;
989;432;OMESSO NOMINATIVO NEL RISPETTO DELLA NORMATIVA SULLA PROTEZIONE DATI PERSONALI; ;10/07/2023;1920;15;157;1;Spese correnti;Trasferimenti correnti;Trasferimenti correnti a Famiglie;Interventi assistenziali;Altri assegni e sussidi assistenziali;;;;;;;;;;;;
990;104;OMESSO NOMINATIVO NEL RISPETTO DELLA NORMATIVA SULLA PROTEZIONE DATI PERSONALI; ;10/07/2023;1920;15;42;1;Spese correnti;Trasferimenti correnti;Trasferimenti correnti a Famiglie;Interventi assistenziali;Altri assegni e sussidi assistenziali;;;;;;;;;;;;
991;166,66;OMESSO NOMINATIVO NEL RISPETTO DELLA NORMATIVA SULLA PROTEZIONE DATI PERSONALI; ;10/07/2023;1920;15;143;1;Spese correnti;Trasferimenti correnti;Trasferimenti correnti a Famiglie;Interventi assistenziali;Altri assegni e sussidi assistenziali;;;;;;;;;;;;
992;236,62;OMESSO NOMINATIVO NEL RISPETTO DELLA NORMATIVA SULLA PROTEZIONE DATI PERSONALI; ;10/07/2023;1920;15;145;1;Spese correnti;Trasferimenti correnti;Trasferimenti correnti a Famiglie;Interventi assistenziali;Altri assegni e sussidi assistenziali;;;;;;;;;;;;
993;375;OMESSO NOMINATIVO NEL RISPETTO DELLA NORMATIVA SULLA PROTEZIONE DATI PERSONALI; ;10/07/2023;1920;15;146;1;Spese correnti;Trasferimenti correnti;Trasferimenti correnti a Famiglie;Interventi assistenziali;Altri assegni e sussidi assistenziali;;;;;;;;;;;;
994;350,17;OMESSO NOMINATIVO NEL RISPETTO DELLA NORMATIVA SULLA PROTEZIONE DATI PERSONALI; ;10/07/2023;1920;15;168;1;Spese correnti;Trasferimenti correnti;Trasferimenti correnti a Famiglie;Interventi assistenziali;Altri assegni e sussidi assistenziali;;;;;;;;;;;;
995;417,99;OMESSO NOMINATIVO NEL RISPETTO DELLA NORMATIVA SULLA PROTEZIONE DATI PERSONALI; ;10/07/2023;1920;15;171;1;Spese correnti;Trasferimenti correnti;Trasferimenti correnti a Famiglie;Interventi assistenziali;Altri assegni e sussidi assistenziali;;;;;;;;;;;;
996;176,25;OMESSO NOMINATIVO NEL RISPETTO DELLA NORMATIVA SULLA PROTEZIONE DATI PERSONALI; ;10/07/2023;1920;15;174;1;Spese correnti;Trasferimenti correnti;Trasferimenti correnti a Famiglie;Interventi assistenziali;Altri assegni e sussidi assistenziali;;;;;;;;;;;;
997;567,1;OMESSO NOMINATIVO NEL RISPETTO DELLA NORMATIVA SULLA PROTEZIONE DATI PERSONALI; ;10/07/2023;1920;15;177;1;Spese correnti;Trasferimenti correnti;Trasferimenti correnti a Famiglie;Interventi assistenziali;Altri assegni e sussidi assistenziali;;;;;;;;;;;;
998;250,08;OMESSO NOMINATIVO NEL RISPETTO DELLA NORMATIVA SULLA PROTEZIONE DATI PERSONALI; ;10/07/2023;1920;15;183;1;Spese correnti;Trasferimenti correnti;Trasferimenti correnti a Famiglie;Interventi assistenziali;Altri assegni e sussidi assistenziali;;;;;;;;;;;;
999;156,25;OMESSO NOMINATIVO NEL RISPETTO DELLA NORMATIVA SULLA PROTEZIONE DATI PERSONALI; ;10/07/2023;1920;15;186;1;Spese correnti;Trasferimenti correnti;Trasferimenti correnti a Famiglie;Interventi assistenziali;Altri assegni e sussidi assistenziali;;;;;;;;;;;;
1000;1.061,03;OMESSO NOMINATIVO NEL RISPETTO DELLA NORMATIVA SULLA PROTEZIONE DATI PERSONALI; ;10/07/2023;1920;0;189;1;Spese correnti;Trasferimenti correnti;Trasferimenti correnti a Famiglie;Interventi assistenziali;Altri assegni e sussidi assistenziali;;;;;;;;;;;;
1001;1.622,74;OMESSO NOMINATIVO NEL RISPETTO DELLA NORMATIVA SULLA PROTEZIONE DATI PERSONALI; ;10/07/2023;1920;0;190;1;Spese correnti;Trasferimenti correnti;Trasferimenti correnti a Famiglie;Interventi assistenziali;Altri assegni e sussidi assistenziali;;;;;;;;;;;;
1002;464,82;SOGGETTI DIVERSI; ;10/07/2023;1916;0;79;1;Spese correnti;Trasferimenti correnti;Trasferimenti correnti a Famiglie;Interventi assistenziali;Altri assegni e sussidi assistenziali;;;;;;;;;;;;
1003;464,82;SOGGETTI DIVERSI; ;10/07/2023;1916;0;79;1;Spese correnti;Trasferimenti correnti;Trasferimenti correnti a Famiglie;Interventi assistenziali;Altri assegni e sussidi assistenziali;;;;;;;;;;;;
1004;515,44;SOGGETTI DIVERSI; ;10/07/2023;1916;0;79;1;Spese correnti;Trasferimenti correnti;Trasferimenti correnti a Famiglie;Interventi assistenziali;Altri assegni e sussidi assistenziali;;;;;;;;;;;;
1005;650,56;SOGGETTI DIVERSI; ;10/07/2023;1916;0;79;1;Spese correnti;Trasferimenti correnti;Trasferimenti correnti a Famiglie;Interventi assistenziali;Altri assegni e sussidi assistenziali;;;;;;;;;;;;
1006;566,06;SOGGETTI DIVERSI; ;10/07/2023;1916;0;79;1;Spese correnti;Trasferimenti correnti;Trasferimenti correnti a Famiglie;Interventi assistenziali;Altri assegni e sussidi assistenziali;;;;;;;;;;;;
1007;505,21;SOGGETTI DIVERSI; ;10/07/2023;1916;0;79;1;Spese correnti;Trasferimenti correnti;Trasferimenti correnti a Famiglie;Interventi assistenziali;Altri assegni e sussidi assistenziali;;;;;;;;;;;;
1008;506,85;SOGGETTI DIVERSI; ;10/07/2023;1916;0;79;1;Spese correnti;Trasferimenti correnti;Trasferimenti correnti a Famiglie;Interventi assistenziali;Altri assegni e sussidi assistenziali;;;;;;;;;;;;
1009;290;SOGGETTI DIVERSI; ;10/07/2023;1919;6;343;1;Spese correnti;Trasferimenti correnti;Trasferimenti correnti a Famiglie;Interventi assistenziali;Altri assegni e sussidi assistenziali;;;;;;;;;;;;
1010;405;SOGGETTI DIVERSI; ;10/07/2023;1919;6;343;1;Spese correnti;Trasferimenti correnti;Trasferimenti correnti a Famiglie;Interventi assistenziali;Altri assegni e sussidi assistenziali;;;;;;;;;;;;
1011;261,67;SOGGETTI DIVERSI; ;10/07/2023;1920;15;179;1;Spese correnti;Trasferimenti correnti;Trasferimenti correnti a Famiglie;Interventi assistenziali;Altri assegni e sussidi assistenziali;;;;;;;;;;;;
1012;306,55;OMESSO NOMINATIVO NEL RISPETTO DELLA NORMATIVA SULLA PROTEZIONE DATI PERSONALI; ;10/07/2023;1920;15;169;1;Spese correnti;Trasferimenti correnti;Trasferimenti correnti a Famiglie;Interventi assistenziali;Altri assegni e sussidi assistenziali;;;;;;;;;;;;
1013;110;OMESSO NOMINATIVO NEL RISPETTO DELLA NORMATIVA SULLA PROTEZIONE DATI PERSONALI; ;10/07/2023;1920;15;148;1;Spese correnti;Trasferimenti correnti;Trasferimenti correnti a Famiglie;Interventi assistenziali;Altri assegni e sussidi assistenziali;;;;;;;;;;;;
1014;233,76;OMESSO NOMINATIVO NEL RISPETTO DELLA NORMATIVA SULLA PROTEZIONE DATI PERSONALI; ;10/07/2023;1920;15;180;1;Spese correnti;Trasferimenti correnti;Trasferimenti correnti a Famiglie;Interventi assistenziali;Altri assegni e sussidi assistenziali;;;;;;;;;;;;
1015;170,62;OMESSO NOMINATIVO NEL RISPETTO DELLA NORMATIVA SULLA PROTEZIONE DATI PERSONALI; ;10/07/2023;1920;15;173;1;Spese correnti;Trasferimenti correnti;Trasferimenti correnti a Famiglie;Interventi assistenziali;Altri assegni e sussidi assistenziali;;;;;;;;;;;;
1016;1.761,08;OMESSO NOMINATIVO NEL RISPETTO DELLA NORMATIVA SULLA PROTEZIONE DATI PERSONALI; ;10/07/2023;1920;0;191;1;Spese correnti;Trasferimenti correnti;Trasferimenti correnti a Famiglie;Interventi assistenziali;Altri assegni e sussidi assistenziali;;;;;;;;;;;;
1017;159,37;OMESSO NOMINATIVO NEL RISPETTO DELLA NORMATIVA SULLA PROTEZIONE DATI PERSONALI; ;10/07/2023;1920;15;159;1;Spese correnti;Trasferimenti correnti;Trasferimenti correnti a Famiglie;Interventi assistenziali;Altri assegni e sussidi assistenziali;;;;;;;;;;;;
1018;250;OMESSO NOMINATIVO NEL RISPETTO DELLA NORMATIVA SULLA PROTEZIONE DATI PERSONALI; ;10/07/2023;1920;15;176;1;Spese correnti;Trasferimenti correnti;Trasferimenti correnti a Famiglie;Interventi assistenziali;Altri assegni e sussidi assistenziali;;;;;;;;;;;;
1019;239,96;OMESSO NOMINATIVO NEL RISPETTO DELLA NORMATIVA SULLA PROTEZIONE DATI PERSONALI; ;10/07/2023;1920;15;144;1;Spese correnti;Trasferimenti correnti;Trasferimenti correnti a Famiglie;Interventi assistenziali;Altri assegni e sussidi assistenziali;;;;;;;;;;;;
1020;384,82;OMESSO NOMINATIVO NEL RISPETTO DELLA NORMATIVA SULLA PROTEZIONE DATI PERSONALI; ;10/07/2023;1920;15;150;1;Spese correnti;Trasferimenti correnti;Trasferimenti correnti a Famiglie;Interventi assistenziali;Altri assegni e sussidi assistenziali;;;;;;;;;;;;
1021;242,42;OMESSO NOMINATIVO NEL RISPETTO DELLA NORMATIVA SULLA PROTEZIONE DATI PERSONALI; ;10/07/2023;1920;15;164;1;Spese correnti;Trasferimenti correnti;Trasferimenti correnti a Famiglie;Interventi assistenziali;Altri assegni e sussidi assistenziali;;;;;;;;;;;;
1022;75,33;SOGGETTI DIVERSI; ;12/07/2023;1917;0;80;1;Spese correnti;Trasferimenti correnti;Trasferimenti correnti a Famiglie;Interventi assistenziali;Altri assegni e sussidi assistenziali;;;;;;;;;;;;
1023;215,14;OMESSO NOMINATIVO NEL RISPETTO DELLA NORMATIVA SULLA PROTEZIONE DATI PERSONALI; ;12/07/2023;1920;15;142;1;Spese correnti;Trasferimenti correnti;Trasferimenti correnti a Famiglie;Interventi assistenziali;Altri assegni e sussidi assistenziali;;;;;;;;;;;;
1024;144,92;OMESSO NOMINATIVO NEL RISPETTO DELLA NORMATIVA SULLA PROTEZIONE DATI PERSONALI; ;12/07/2023;1920;15;184;1;Spese correnti;Trasferimenti correnti;Trasferimenti correnti a Famiglie;Interventi assistenziali;Altri assegni e sussidi assistenziali;;;;;;;;;;;;
1025;250,48;OMESSO NOMINATIVO NEL RISPETTO DELLA NORMATIVA SULLA PROTEZIONE DATI PERSONALI; ;12/07/2023;1920;15;167;1;Spese correnti;Trasferimenti correnti;Trasferimenti correnti a Famiglie;Interventi assistenziali;Altri assegni e sussidi assistenziali;;;;;;;;;;;;
1026;315,66;OMESSO NOMINATIVO NEL RISPETTO DELLA NORMATIVA SULLA PROTEZIONE DATI PERSONALI; ;12/07/2023;1920;15;188;1;Spese correnti;Trasferimenti correnti;Trasferimenti correnti a Famiglie;Interventi assistenziali;Altri assegni e sussidi assistenziali;;;;;;;;;;;;
1027;170,93;OMESSO NOMINATIVO NEL RISPETTO DELLA NORMATIVA SULLA PROTEZIONE DATI PERSONALI; ;12/07/2023;1920;15;155;1;Spese correnti;Trasferimenti correnti;Trasferimenti correnti a Famiglie;Interventi assistenziali;Altri assegni e sussidi assistenziali;;;;;;;;;;;;
1028;387,53;OMESSO NOMINATIVO NEL RISPETTO DELLA NORMATIVA SULLA PROTEZIONE DATI PERSONALI; ;12/07/2023;1920;0;193;1;Spese correnti;Trasferimenti correnti;Trasferimenti correnti a Famiglie;Interventi assistenziali;Altri assegni e sussidi assistenziali;;;;;;;;;;;;
1029;387,53;OMESSO NOMINATIVO NEL RISPETTO DELLA NORMATIVA SULLA PROTEZIONE DATI PERSONALI; ;12/07/2023;1920;0;193;1;Spese correnti;Trasferimenti correnti;Trasferimenti correnti a Famiglie;Interventi assistenziali;Altri assegni e sussidi assistenziali;;;;;;;;;;;;
1030;438,08;OMESSO NOMINATIVO NEL RISPETTO DELLA NORMATIVA SULLA PROTEZIONE DATI PERSONALI; ;12/07/2023;1920;15;185;1;Spese correnti;Trasferimenti correnti;Trasferimenti correnti a Famiglie;Interventi assistenziali;Altri assegni e sussidi assistenziali;;;;;;;;;;;;
1031;312,5;OMESSO NOMINATIVO NEL RISPETTO DELLA NORMATIVA SULLA PROTEZIONE DATI PERSONALI; ;12/07/2023;1920;15;187;1;Spese correnti;Trasferimenti correnti;Trasferimenti correnti a Famiglie;Interventi assistenziali;Altri assegni e sussidi assistenziali;;;;;;;;;;;;
1032;363,74;COOP. SOCIALE ADEST A R.L. ONLUS; ;12/07/2023;1920;15;149;1;Spese correnti;Trasferimenti correnti;Trasferimenti correnti a Famiglie;Interventi assistenziali;Altri assegni e sussidi assistenziali;;;;;;;;;;;;
1033;500;OMESSO NOMINATIVO NEL RISPETTO DELLA NORMATIVA SULLA PROTEZIONE DATI PERSONALI; ;12/07/2023;1920;15;152;1;Spese correnti;Trasferimenti correnti;Trasferimenti correnti a Famiglie;Interventi assistenziali;Altri assegni e sussidi assistenziali;;;;;;;;;;;;
1034;1.971,67;OMESSO NOMINATIVO NEL RISPETTO DELLA NORMATIVA SULLA PROTEZIONE DATI PERSONALI; ;12/07/2023;1920;15;153;1;Spese correnti;Trasferimenti correnti;Trasferimenti correnti a Famiglie;Interventi assistenziali;Altri assegni e sussidi assistenziali;;;;;;;;;;;;
1035;625;OMESSO NOMINATIVO NEL RISPETTO DELLA NORMATIVA SULLA PROTEZIONE DATI PERSONALI; ;12/07/2023;1920;15;154;1;Spese correnti;Trasferimenti correnti;Trasferimenti correnti a Famiglie;Interventi assistenziali;Altri assegni e sussidi assistenziali;;;;;;;;;;;;
1036;363,75;OMESSO NOMINATIVO NEL RISPETTO DELLA NORMATIVA SULLA PROTEZIONE DATI PERSONALI; ;12/07/2023;1920;15;160;1;Spese correnti;Trasferimenti correnti;Trasferimenti correnti a Famiglie;Interventi assistenziali;Altri assegni e sussidi assistenziali;;;;;;;;;;;;
1037;30;OMESSO NOMINATIVO NEL RISPETTO DELLA NORMATIVA SULLA PROTEZIONE DATI PERSONALI; ;12/07/2023;1920;15;36;1;Spese correnti;Trasferimenti correnti;Trasferimenti correnti a Famiglie;Interventi assistenziali;Altri assegni e sussidi assistenziali;;;;;;;;;;;;
1038;455;OMESSO NOMINATIVO NEL RISPETTO DELLA NORMATIVA SULLA PROTEZIONE DATI PERSONALI; ;12/07/2023;1920;15;161;1;Spese correnti;Trasferimenti correnti;Trasferimenti correnti a Famiglie;Interventi assistenziali;Altri assegni e sussidi assistenziali;;;;;;;;;;;;
1039;682,5;OMESSO NOMINATIVO NEL RISPETTO DELLA NORMATIVA SULLA PROTEZIONE DATI PERSONALI; ;12/07/2023;1920;15;162;1;Spese correnti;Trasferimenti correnti;Trasferimenti correnti a Famiglie;Interventi assistenziali;Altri assegni e sussidi assistenziali;;;;;;;;;;;;
1040;294,5;OMESSO NOMINATIVO NEL RISPETTO DELLA NORMATIVA SULLA PROTEZIONE DATI PERSONALI; ;12/07/2023;1920;15;42;1;Spese correnti;Trasferimenti correnti;Trasferimenti correnti a Famiglie;Interventi assistenziali;Altri assegni e sussidi assistenziali;;;;;;;;;;;;
1041;233,5;OMESSO NOMINATIVO NEL RISPETTO DELLA NORMATIVA SULLA PROTEZIONE DATI PERSONALI; ;12/07/2023;1920;15;170;1;Spese correnti;Trasferimenti correnti;Trasferimenti correnti a Famiglie;Interventi assistenziali;Altri assegni e sussidi assistenziali;;;;;;;;;;;;
1042;682,5;OMESSO NOMINATIVO NEL RISPETTO DELLA NORMATIVA SULLA PROTEZIONE DATI PERSONALI; ;12/07/2023;1920;15;172;1;Spese correnti;Trasferimenti correnti;Trasferimenti correnti a Famiglie;Interventi assistenziali;Altri assegni e sussidi assistenziali;;;;;;;;;;;;
1043;625;OMESSO NOMINATIVO NEL RISPETTO DELLA NORMATIVA SULLA PROTEZIONE DATI PERSONALI; ;12/07/2023;1920;15;178;1;Spese correnti;Trasferimenti correnti;Trasferimenti correnti a Famiglie;Interventi assistenziali;Altri assegni e sussidi assistenziali;;;;;;;;;;;;
1044;4.000,01;PRO.TU.SAR. DI PIRAS RAFFAELE;9344454761;12/07/2023;1417;3;63;1;Spese correnti;Acquisto di beni e servizi;Acquisto di servizi;Contratti di servizio pubblico;Contratti di servizio di trasporto scolastico;;;;;;;;;;;;
1045;983,32;ISAR COOPERATIVA SOCIALE ONLUS;Z6E33B9DBA;12/07/2023;1036;0;69;1;Spese correnti;Acquisto di beni e servizi;Acquisto di servizi;Servizi ausiliari per il funzionamento dell'ente;Servizi di pulizia e lavanderia;;;;;;;;;;;;
1046;18,64;ENEL ENERGIA S.P.A.;9146558A6E;12/07/2023;1937;0;70;1;Spese correnti;Acquisto di beni e servizi;Acquisto di servizi;Utenze e canoni;Energia elettrica;;;;;;;;;;;;
1046;32,09;ENEL ENERGIA S.P.A.;9146558A6E;12/07/2023;1937;0;70;1;Spese correnti;Acquisto di beni e servizi;Acquisto di servizi;Utenze e canoni;Energia elettrica;;;;;;;;;;;;
1046;89,19;ENEL ENERGIA S.P.A.;9146558A6E;12/07/2023;1937;0;70;1;Spese correnti;Acquisto di beni e servizi;Acquisto di servizi;Utenze e canoni;Energia elettrica;;;;;;;;;;;;
1046;160,52;ENEL ENERGIA S.P.A.;9146558A6E;12/07/2023;1937;0;70;1;Spese correnti;Acquisto di beni e servizi;Acquisto di servizi;Utenze e canoni;Energia elettrica;;;;;;;;;;;;
1046;276,22;ENEL ENERGIA S.P.A.;9146558A6E;12/07/2023;1937;0;70;1;Spese correnti;Acquisto di beni e servizi;Acquisto di servizi;Utenze e canoni;Energia elettrica;;;;;;;;;;;;
1046;508,79;ENEL ENERGIA S.P.A.;9146558A6E;12/07/2023;1937;0;70;1;Spese correnti;Acquisto di beni e servizi;Acquisto di servizi;Utenze e canoni;Energia elettrica;;;;;;;;;;;;
1046;856,96;ENEL ENERGIA S.P.A.;9146558A6E;12/07/2023;1937;0;70;1;Spese correnti;Acquisto di beni e servizi;Acquisto di servizi;Utenze e canoni;Energia elettrica;;;;;;;;;;;;
1047;177,5;ENEL ENERGIA S.P.A.;9146558A6E;12/07/2023;1386;2;71;1;Spese correnti;Acquisto di beni e servizi;Acquisto di servizi;Utenze e canoni;Energia elettrica;;;;;;;;;;;;
1048;44,43;ENEL ENERGIA S.P.A.;9146558A6E;12/07/2023;1366;3;72;1;Spese correnti;Acquisto di beni e servizi;Acquisto di servizi;Utenze e canoni;Energia elettrica;;;;;;;;;;;;
1049;30,3;ENEL ENERGIA S.P.A.;9146558A6E;12/07/2023;1087;2;73;1;Spese correnti;Acquisto di beni e servizi;Acquisto di servizi;Utenze e canoni;Energia elettrica;;;;;;;;;;;;
1049;106,96;ENEL ENERGIA S.P.A.;9146558A6E;12/07/2023;1087;2;73;1;Spese correnti;Acquisto di beni e servizi;Acquisto di servizi;Utenze e canoni;Energia elettrica;;;;;;;;;;;;
1049;330,45;ENEL ENERGIA S.P.A.;9146558A6E;12/07/2023;1087;2;73;1;Spese correnti;Acquisto di beni e servizi;Acquisto di servizi;Utenze e canoni;Energia elettrica;;;;;;;;;;;;
1050;10,25;ENEL ENERGIA S.P.A.;9146558A6E;12/07/2023;1826;1;74;1;Spese correnti;Acquisto di beni e servizi;Acquisto di servizi;Utenze e canoni;Energia elettrica;;;;;;;;;;;;
1050;239,07;ENEL ENERGIA S.P.A.;9146558A6E;12/07/2023;1826;1;74;1;Spese correnti;Acquisto di beni e servizi;Acquisto di servizi;Utenze e canoni;Energia elettrica;;;;;;;;;;;;
1051;18,21;ENEL ENERGIA S.P.A.;9146558A6E;12/07/2023;1526;0;75;1;Spese correnti;Acquisto di beni e servizi;Acquisto di servizi;Utenze e canoni;Energia elettrica;;;;;;;;;;;;
1051;69,43;ENEL ENERGIA S.P.A.;9146558A6E;12/07/2023;1526;0;75;1;Spese correnti;Acquisto di beni e servizi;Acquisto di servizi;Utenze e canoni;Energia elettrica;;;;;;;;;;;;
1051;375,6;ENEL ENERGIA S.P.A.;9146558A6E;12/07/2023;1526;0;75;1;Spese correnti;Acquisto di beni e servizi;Acquisto di servizi;Utenze e canoni;Energia elettrica;;;;;;;;;;;;
1052;66,11;ENEL ENERGIA S.P.A.;9146558A6E;12/07/2023;1656;1;76;1;Spese correnti;Acquisto di beni e servizi;Acquisto di servizi;Utenze e canoni;Energia elettrica;;;;;;;;;;;;
1053;71,98;ENEL ENERGIA S.P.A.;9146558A6E;12/07/2023;1090;0;77;1;Spese correnti;Acquisto di beni e servizi;Acquisto di servizi;Utenze e canoni;Energia elettrica;;;;;;;;;;;;
1054;240,68;ENEL ENERGIA S.P.A.;9146558A6E;12/07/2023;1086;0;78;1;Spese correnti;Acquisto di beni e servizi;Acquisto di servizi;Utenze e canoni;Energia elettrica;;;;;;;;;;;;
1055;6.880,45;ECOGREEN COOPERATIVA SOCIALE;967226800F;13/07/2023;1742;0;320;1;Spese correnti;Acquisto di beni e servizi;Acquisto di servizi;Altri servizi;Altri servizi diversi n.a.c.;;;;;;;;;;;;
1056;4.118,17;ECOGREEN COOPERATIVA SOCIALE;9669337D4E;13/07/2023;1092;1;100;1;Spese correnti;Acquisto di beni e servizi;Acquisto di servizi;Altri servizi;Acquisto di sevizi per verde e arredo urbano;;;;;;;;;;;;
1057;1.186,00;VERDE VITA SRL;ZE2396C1D5;13/07/2023;1739;0;1;1;Spese correnti;Acquisto di beni e servizi;Acquisto di servizi;Contratti di servizio pubblico;Contratti di servizio per il conferimento in discarica dei rifiuti;;;;;;;;;;;;
1058;966,24;SALIS ASCENSORI S.R.L.;ZC13A49446;13/07/2023;1089;2;102;1;Spese correnti;Acquisto di beni e servizi;Acquisto di servizi;Manutenzione ordinaria e riparazioni;Manutenzione ordinaria e riparazioni di impianti e macchinari;;;;;;;;;;;;
1059;5.875,80;TEKNOSERVICE S.R.L.;ZAE390CDE5;13/07/2023;1738;0;4;1;Spese correnti;Acquisto di beni e servizi;Acquisto di servizi;Contratti di servizio pubblico;Contratti di servizio per la raccolta rifiuti;;;;;;;;;;;;
1060;385;KUWAIT PETROLEUM ITALIA SPA;Z5235D861D;13/07/2023;1057;0;90;1;Spese correnti;Acquisto di beni e servizi;Acquisto di beni;Altri beni di consumo;Carburanti, combustibili e lubrificanti;;;;;;;;;;;;
1061;640,5;SAIU ELETTROSERVICE DI CADDIA GIOVANNA ANGELA;Z0D380CD3E;13/07/2023;1938;0;59;1;Spese correnti;Acquisto di beni e servizi;Acquisto di servizi;Contratti di servizio pubblico;Contratti di servizio per l'illuminazione pubblica;;;;;;;;;;;;
1062;207,4;MAGGIOLI SPA -;Z0938F4460;13/07/2023;1046;1;12;1;Spese correnti;Acquisto di beni e servizi;Acquisto di servizi;Altri servizi;Altri servizi diversi n.a.c.;;;;;;;;;;;;
1063;1.176,37;OMESSO NOMINATIVO NEL RISPETTO DELLA NORMATIVA SULLA PROTEZIONE DATI PERSONALI; ;13/07/2023;1920;0;192;1;Spese correnti;Trasferimenti correnti;Trasferimenti correnti a Famiglie;Interventi assistenziali;Altri assegni e sussidi assistenziali;;;;;;;;;;;;
1064;581,13;OMESSO NOMINATIVO NEL RISPETTO DELLA NORMATIVA SULLA PROTEZIONE DATI PERSONALI; ;13/07/2023;1920;0;192;1;Spese correnti;Trasferimenti correnti;Trasferimenti correnti a Famiglie;Interventi assistenziali;Altri assegni e sussidi assistenziali;;;;;;;;;;;;
1065;282,25;OMESSO NOMINATIVO NEL RISPETTO DELLA NORMATIVA SULLA PROTEZIONE DATI PERSONALI; ;13/07/2023;1920;15;158;1;Spese correnti;Trasferimenti correnti;Trasferimenti correnti a Famiglie;Interventi assistenziali;Altri assegni e sussidi assistenziali;;;;;;;;;;;;
1066;494,98;OMESSO NOMINATIVO NEL RISPETTO DELLA NORMATIVA SULLA PROTEZIONE DATI PERSONALI; ;13/07/2023;1920;15;156;1;Spese correnti;Trasferimenti correnti;Trasferimenti correnti a Famiglie;Interventi assistenziali;Altri assegni e sussidi assistenziali;;;;;;;;;;;;
1067;1.084,52;OMESSO NOMINATIVO NEL RISPETTO DELLA NORMATIVA SULLA PROTEZIONE DATI PERSONALI; ;13/07/2023;1920;15;165;1;Spese correnti;Trasferimenti correnti;Trasferimenti correnti a Famiglie;Interventi assistenziali;Altri assegni e sussidi assistenziali;;;;;;;;;;;;
1068;216,87;OMESSO NOMINATIVO NEL RISPETTO DELLA NORMATIVA SULLA PROTEZIONE DATI PERSONALI; ;13/07/2023;1920;15;147;1;Spese correnti;Trasferimenti correnti;Trasferimenti correnti a Famiglie;Interventi assistenziali;Altri assegni e sussidi assistenziali;;;;;;;;;;;;
1069;2.033,54;COMUNE DI PISCINAS;ZF9396C612;13/07/2023;1739;0;2;1;Spese correnti;Acquisto di beni e servizi;Acquisto di servizi;Contratti di servizio pubblico;Contratti di servizio per il conferimento in discarica dei rifiuti;;;;;;;;;;;;
1070;-2.236,89;TECNOCASIC  S.P.A.;ZF9396C612;13/07/2023;1739;0;2;1;Spese correnti;Acquisto di beni e servizi;Acquisto di servizi;Contratti di servizio pubblico;Contratti di servizio per il conferimento in discarica dei rifiuti;;;;;;;;;;;;
1070;43,04;TECNOCASIC  S.P.A.;ZF9396C612;13/07/2023;1739;0;2;1;Spese correnti;Acquisto di beni e servizi;Acquisto di servizi;Contratti di servizio pubblico;Contratti di servizio per il conferimento in discarica dei rifiuti;;;;;;;;;;;;
1070;587,77;TECNOCASIC  S.P.A.;ZF9396C612;13/07/2023;1739;0;2;1;Spese correnti;Acquisto di beni e servizi;Acquisto di servizi;Contratti di servizio pubblico;Contratti di servizio per il conferimento in discarica dei rifiuti;;;;;;;;;;;;
1070;865,27;TECNOCASIC  S.P.A.;ZF9396C612;13/07/2023;1739;0;2;1;Spese correnti;Acquisto di beni e servizi;Acquisto di servizi;Contratti di servizio pubblico;Contratti di servizio per il conferimento in discarica dei rifiuti;;;;;;;;;;;;
1070;989,82;TECNOCASIC  S.P.A.;ZF9396C612;13/07/2023;1739;0;2;1;Spese correnti;Acquisto di beni e servizi;Acquisto di servizi;Contratti di servizio pubblico;Contratti di servizio per il conferimento in discarica dei rifiuti;;;;;;;;;;;;
1071;1.956,15;DIVERSI; ;14/07/2023;1001;0;10;1;Spese correnti;Acquisto di beni e servizi;Acquisto di servizi;Organi e incarichi istituzionali dell'amministrazione;Organi istituzionali dell'amministrazione - Indennità;;;;;;;;;;;;
1073;162,5;OMESSO NOMINATIVO NEL RISPETTO DELLA NORMATIVA SULLA PROTEZIONE DATI PERSONALI; ;14/07/2023;1920;15;38;1;Spese correnti;Trasferimenti correnti;Trasferimenti correnti a Famiglie;Interventi assistenziali;Altri assegni e sussidi assistenziali;;;;;;;;;;;;
1105;1.110,50;OMESSO NOMINATIVO NEL RISPETTO DELLA NORMATIVA SULLA PROTEZIONE DATI PERSONALI; ;18/07/2023;1920;15;157;1;Spese correnti;Trasferimenti correnti;Trasferimenti correnti a Famiglie;Interventi assistenziali;Altri assegni e sussidi assistenziali;;;;;;;;;;;;
1107;231,8;MAGGIOLI SPA -;Z823BC1032;18/07/2023;1043;1;243;1;Spese correnti;Acquisto di beni e servizi;Acquisto di servizi;Servizi informatici e di telecomunicazioni;Gestione e manutenzione applicazioni;;;;;;;;;;;;
1108;308,21;UNIMATICA S.P.A. (R.G.I.);Z2933458D4;18/07/2023;1046;1;89;1;Spese correnti;Acquisto di beni e servizi;Acquisto di servizi;Altri servizi;Altri servizi diversi n.a.c.;;;;;;;;;;;;
1109;-500,2;NICOLA ZUDDAS S.R.L.;Z873B845E6;21/07/2023;1043;1;227;1;Spese correnti;Acquisto di beni e servizi;Acquisto di servizi;Servizi informatici e di telecomunicazioni;Gestione e manutenzione applicazioni;;;;;;;;;;;;
1109;1.000,40;NICOLA ZUDDAS S.R.L.;Z873B845E6;21/07/2023;1043;1;227;1;Spese correnti;Acquisto di beni e servizi;Acquisto di servizi;Servizi informatici e di telecomunicazioni;Gestione e manutenzione applicazioni;;;;;;;;;;;;
1110;488;MEDIANET SRL;Z05390F79B;21/07/2023;1043;2;7;1;Spese correnti;Acquisto di beni e servizi;Acquisto di servizi;Utenze e canoni;Telefonia fissa;;;;;;;;;;;;
1111;3.423,92;HALLEY SARDEGNA S.R.L.;ZD93914A3D;21/07/2023;1043;1;349;1;Spese correnti;Acquisto di beni e servizi;Acquisto di servizi;Servizi informatici e di telecomunicazioni;Gestione e manutenzione applicazioni;;;;;;;;;;;;
1112;1.736,22;REPAS LUNCH COUPON SRL;ZB43BBD619;21/07/2023;2163;0;245;1;Spese correnti;Acquisto di beni e servizi;Acquisto di beni;Altri beni di consumo;Altri beni e materiali di consumo n.a.c.;;;;;;;;;;;;
1113;4.880,00;CAPOTERRA 2000 ACADEMY;ZC03BBAD36;21/07/2023;1521;1;242;1;Spese correnti;Acquisto di beni e servizi;Acquisto di servizi;Altri servizi;Altri servizi diversi n.a.c.;;;;;;;;;;;;
1114;277,53;FATICONI S.P.A.;Z10310615F;21/07/2023;1043;5;86;1;Spese correnti;Acquisto di beni e servizi;Acquisto di servizi;Utilizzo di beni di terzi;Noleggi di impianti e macchinari;;;;;;;;;;;;
1115;277,53;FATICONI S.P.A.;Z10310615F;21/07/2023;1087;1;87;1;Spese correnti;Acquisto di beni e servizi;Acquisto di servizi;Utilizzo di beni di terzi;Noleggi di impianti e macchinari;;;;;;;;;;;;
1116;17,04;ENEL ENERGIA S.P.A.;9146558A6E;28/07/2023;1937;0;70;1;Spese correnti;Acquisto di beni e servizi;Acquisto di servizi;Utenze e canoni;Energia elettrica;;;;;;;;;;;;
1116;18,89;ENEL ENERGIA S.P.A.;9146558A6E;28/07/2023;1937;0;70;1;Spese correnti;Acquisto di beni e servizi;Acquisto di servizi;Utenze e canoni;Energia elettrica;;;;;;;;;;;;
1116;35,25;ENEL ENERGIA S.P.A.;9146558A6E;28/07/2023;1937;0;70;1;Spese correnti;Acquisto di beni e servizi;Acquisto di servizi;Utenze e canoni;Energia elettrica;;;;;;;;;;;;
1116;36,04;ENEL ENERGIA S.P.A.;9146558A6E;28/07/2023;1937;0;70;1;Spese correnti;Acquisto di beni e servizi;Acquisto di servizi;Utenze e canoni;Energia elettrica;;;;;;;;;;;;
1116;86,41;ENEL ENERGIA S.P.A.;9146558A6E;28/07/2023;1937;0;70;1;Spese correnti;Acquisto di beni e servizi;Acquisto di servizi;Utenze e canoni;Energia elettrica;;;;;;;;;;;;
1116;151,17;ENEL ENERGIA S.P.A.;9146558A6E;28/07/2023;1937;0;70;1;Spese correnti;Acquisto di beni e servizi;Acquisto di servizi;Utenze e canoni;Energia elettrica;;;;;;;;;;;;
1116;246,37;ENEL ENERGIA S.P.A.;9146558A6E;28/07/2023;1937;0;70;1;Spese correnti;Acquisto di beni e servizi;Acquisto di servizi;Utenze e canoni;Energia elettrica;;;;;;;;;;;;
1116;456,65;ENEL ENERGIA S.P.A.;9146558A6E;28/07/2023;1937;0;70;1;Spese correnti;Acquisto di beni e servizi;Acquisto di servizi;Utenze e canoni;Energia elettrica;;;;;;;;;;;;
1116;789,83;ENEL ENERGIA S.P.A.;9146558A6E;28/07/2023;1937;0;70;1;Spese correnti;Acquisto di beni e servizi;Acquisto di servizi;Utenze e canoni;Energia elettrica;;;;;;;;;;;;
1117;1.184,49;ENEL ENERGIA S.P.A.;Z933563740;28/07/2023;3235;1;257;2;Spese in conto capitale;Investimenti fissi lordi e acquisto di terreni;Beni materiali;Beni immobili;Beni immobili n.a.c.;;;;;;;;;;;;
1118;175;ENEL ENERGIA S.P.A.;9146558A6E;28/07/2023;1386;2;71;1;Spese correnti;Acquisto di beni e servizi;Acquisto di servizi;Utenze e canoni;Energia elettrica;;;;;;;;;;;;
1119;271,79;ENEL ENERGIA S.P.A.;9146558A6E;28/07/2023;1366;3;72;1;Spese correnti;Acquisto di beni e servizi;Acquisto di servizi;Utenze e canoni;Energia elettrica;;;;;;;;;;;;
1120;38,65;ENEL ENERGIA S.P.A.;9146558A6E;28/07/2023;1087;2;73;1;Spese correnti;Acquisto di beni e servizi;Acquisto di servizi;Utenze e canoni;Energia elettrica;;;;;;;;;;;;
1120;87,78;ENEL ENERGIA S.P.A.;9146558A6E;28/07/2023;1087;2;73;1;Spese correnti;Acquisto di beni e servizi;Acquisto di servizi;Utenze e canoni;Energia elettrica;;;;;;;;;;;;
1120;685,55;ENEL ENERGIA S.P.A.;9146558A6E;28/07/2023;1087;2;73;1;Spese correnti;Acquisto di beni e servizi;Acquisto di servizi;Utenze e canoni;Energia elettrica;;;;;;;;;;;;
1121;47,23;ENEL ENERGIA S.P.A.;9146558A6E;28/07/2023;1826;1;74;1;Spese correnti;Acquisto di beni e servizi;Acquisto di servizi;Utenze e canoni;Energia elettrica;;;;;;;;;;;;
1121;332,86;ENEL ENERGIA S.P.A.;9146558A6E;28/07/2023;1826;1;74;1;Spese correnti;Acquisto di beni e servizi;Acquisto di servizi;Utenze e canoni;Energia elettrica;;;;;;;;;;;;
1122;18,21;ENEL ENERGIA S.P.A.;9146558A6E;28/07/2023;1526;0;75;1;Spese correnti;Acquisto di beni e servizi;Acquisto di servizi;Utenze e canoni;Energia elettrica;;;;;;;;;;;;
1122;103,55;ENEL ENERGIA S.P.A.;9146558A6E;28/07/2023;1526;0;75;1;Spese correnti;Acquisto di beni e servizi;Acquisto di servizi;Utenze e canoni;Energia elettrica;;;;;;;;;;;;
1122;334,48;ENEL ENERGIA S.P.A.;9146558A6E;28/07/2023;1526;0;75;1;Spese correnti;Acquisto di beni e servizi;Acquisto di servizi;Utenze e canoni;Energia elettrica;;;;;;;;;;;;
1123;61,65;ENEL ENERGIA S.P.A.;9146558A6E;28/07/2023;1656;1;76;1;Spese correnti;Acquisto di beni e servizi;Acquisto di servizi;Utenze e canoni;Energia elettrica;;;;;;;;;;;;
1124;75,21;ENEL ENERGIA S.P.A.;9146558A6E;28/07/2023;1090;0;77;1;Spese correnti;Acquisto di beni e servizi;Acquisto di servizi;Utenze e canoni;Energia elettrica;;;;;;;;;;;;
1125;240,68;ENEL ENERGIA S.P.A.;9146558A6E;28/07/2023;1086;0;78;1;Spese correnti;Acquisto di beni e servizi;Acquisto di servizi;Utenze e canoni;Energia elettrica;;;;;;;;;;;;
1126;1;TESORIERE BANCO DI SARDEGNA; ;31/07/2023;1054;0;0;1;Spese correnti;Acquisto di beni e servizi;Acquisto di servizi;Servizi finanziari;Oneri per servizio di tesoreria;;;;;;;;;;;;
1127;4.614,96;ECOGREEN COOPERATIVA SOCIALE;9669337D4E;31/07/2023;1092;1;100;1;Spese correnti;Acquisto di beni e servizi;Acquisto di servizi;Altri servizi;Acquisto di sevizi per verde e arredo urbano;;;;;;;;;;;;
1128;6.675,49;ECOGREEN COOPERATIVA SOCIALE;967226800F;31/07/2023;1742;0;320;1;Spese correnti;Acquisto di beni e servizi;Acquisto di servizi;Altri servizi;Altri servizi diversi n.a.c.;;;;;;;;;;;;
1130;2.978,56;OMESSO NOMINATIVO NEL RISPETTO DELLA NORMATIVA SULLA PROTEZIONE DATI PERSONALI;Z133912780;02/08/2023;1039;0;270;1;Spese correnti;Acquisto di beni e servizi;Acquisto di servizi;Prestazioni professionali e specialistiche;Patrocinio legale;;;;;;;;;;;;
1131;193,44;OMESSO NOMINATIVO NEL RISPETTO DELLA NORMATIVA SULLA PROTEZIONE DATI PERSONALI;Z133912780;02/08/2023;1039;0;335;1;Spese correnti;Acquisto di beni e servizi;Acquisto di servizi;Prestazioni professionali e specialistiche;Patrocinio legale;;;;;;;;;;;;
1132;4.553,01;FANNI OLIVIERO;Z573B997F8;04/08/2023;3242;0;346;2;Spese in conto capitale;Investimenti fissi lordi e acquisto di terreni;Beni materiali;Beni immobili;Opere per la sistemazione del suolo;;;;;;;;;;;;
1133;3.980,22;FANNI OLIVIERO;Z573B997F8;04/08/2023;3242;0;346;2;Spese in conto capitale;Investimenti fissi lordi e acquisto di terreni;Beni materiali;Beni immobili;Opere per la sistemazione del suolo;;;;;;;;;;;;
1134;1.830,00;OMESSO NOMINATIVO NEL RISPETTO DELLA NORMATIVA SULLA PROTEZIONE DATI PERSONALI;Z673BDF618;04/08/2023;3481;3;261;2;Spese in conto capitale;Investimenti fissi lordi e acquisto di terreni;Beni materiali;Beni immobili;Altre vie di comunicazione;;;;;;;;;;;;
1135;2.360,65;COMUNE DI GIBA; ;10/08/2023;1430;0;263;1;Spese correnti;Acquisto di beni e servizi;Acquisto di servizi;Altri servizi;Altri servizi diversi n.a.c.;;;;;;;;;;;;
1136;2.416,28;VERDE VITA SRL;ZE2396C1D5;10/08/2023;1739;0;1;1;Spese correnti;Acquisto di beni e servizi;Acquisto di servizi;Contratti di servizio pubblico;Contratti di servizio per il conferimento in discarica dei rifiuti;;;;;;;;;;;;
1137;674,22;KUWAIT PETROLEUM ITALIA SPA;Z5235D861D;10/08/2023;1057;0;90;1;Spese correnti;Acquisto di beni e servizi;Acquisto di beni;Altri beni di consumo;Carburanti, combustibili e lubrificanti;;;;;;;;;;;;
1138;1.952,00;IMPRESA ARTIGIANA MURGIA FABRIZIO;Z723BF66C6;10/08/2023;3212;0;266;2;Spese in conto capitale;Investimenti fissi lordi e acquisto di terreni;Beni materiali;Beni immobili;Fabbricati ad uso commerciale;;;;;;;;;;;;
1139;246,91;TECNOCASIC  S.P.A.;ZF9396C612;10/08/2023;1739;0;2;1;Spese correnti;Acquisto di beni e servizi;Acquisto di servizi;Contratti di servizio pubblico;Contratti di servizio per il conferimento in discarica dei rifiuti;;;;;;;;;;;;
1139;970,16;TECNOCASIC  S.P.A.;ZF9396C612;10/08/2023;1739;0;2;1;Spese correnti;Acquisto di beni e servizi;Acquisto di servizi;Contratti di servizio pubblico;Contratti di servizio per il conferimento in discarica dei rifiuti;;;;;;;;;;;;
1140;1.586,00;AGRINOA SOCIETA' AGRICOLA COOPERATIVA SOCIALE;Z6F3BDFA36;10/08/2023;3212;0;262;2;Spese in conto capitale;Investimenti fissi lordi e acquisto di terreni;Beni materiali;Beni immobili;Fabbricati ad uso commerciale;;;;;;;;;;;;
1141;640,5;SAIU ELETTROSERVICE DI CADDIA GIOVANNA ANGELA;Z0D380CD3E;10/08/2023;1938;0;59;1;Spese correnti;Acquisto di beni e servizi;Acquisto di servizi;Contratti di servizio pubblico;Contratti di servizio per l'illuminazione pubblica;;;;;;;;;;;;
1142;983,32;ISAR COOPERATIVA SOCIALE ONLUS;Z6E33B9DBA;10/08/2023;1036;0;69;1;Spese correnti;Acquisto di beni e servizi;Acquisto di servizi;Servizi ausiliari per il funzionamento dell'ente;Servizi di pulizia e lavanderia;;;;;;;;;;;;
1143;5.875,84;TEKNOSERVICE S.R.L.;9922029D57;10/08/2023;1738;0;246;1;Spese correnti;Acquisto di beni e servizi;Acquisto di servizi;Contratti di servizio pubblico;Contratti di servizio per la raccolta rifiuti;;;;;;;;;;;;
1144;6.856,10;COOP. SOCIALE ADEST A R.L. ONLUS;ZB83B88712;10/08/2023;1920;5;228;1;Spese correnti;Acquisto di beni e servizi;Acquisto di servizi;Contratti di servizio pubblico;Altre spese per contratti di servizio pubblico;;;;;;;;;;;;
1145;685;COOP. SOCIALE ADEST A R.L. ONLUS;ZB83B88712;10/08/2023;1906;0;229;1;Spese correnti;Acquisto di beni e servizi;Acquisto di servizi;Altri servizi;Altri servizi diversi n.a.c.;;;;;;;;;;;;
1146;279;OMESSO NOMINATIVO NEL RISPETTO DELLA NORMATIVA SULLA PROTEZIONE DATI PERSONALI; ;10/08/2023;1920;13;230;1;Spese correnti;Acquisto di beni e servizi;Acquisto di servizi;Prestazioni professionali e specialistiche;Altre prestazioni professionali e specialistiche n.a.c.;;;;;;;;;;;;
1147;240;SOGGETTI DIVERSI; ;10/08/2023;1919;6;343;1;Spese correnti;Trasferimenti correnti;Trasferimenti correnti a Famiglie;Interventi assistenziali;Altri assegni e sussidi assistenziali;;;;;;;;;;;;
1148;290;SOGGETTI DIVERSI; ;10/08/2023;1919;6;343;1;Spese correnti;Trasferimenti correnti;Trasferimenti correnti a Famiglie;Interventi assistenziali;Altri assegni e sussidi assistenziali;;;;;;;;;;;;
1149;27,2;SOGGETTI DIVERSI; ;10/08/2023;1919;6;315;1;Spese correnti;Trasferimenti correnti;Trasferimenti correnti a Famiglie;Interventi assistenziali;Altri assegni e sussidi assistenziali;;;;;;;;;;;;
1150;300;SOGGETTI DIVERSI; ;10/08/2023;1919;6;343;1;Spese correnti;Trasferimenti correnti;Trasferimenti correnti a Famiglie;Interventi assistenziali;Altri assegni e sussidi assistenziali;;;;;;;;;;;;
1151;300;SOGGETTI DIVERSI; ;10/08/2023;1919;6;343;1;Spese correnti;Trasferimenti correnti;Trasferimenti correnti a Famiglie;Interventi assistenziali;Altri assegni e sussidi assistenziali;;;;;;;;;;;;
1152;155;SOGGETTI DIVERSI; ;10/08/2023;1919;6;343;1;Spese correnti;Trasferimenti correnti;Trasferimenti correnti a Famiglie;Interventi assistenziali;Altri assegni e sussidi assistenziali;;;;;;;;;;;;
1153;230;SOGGETTI DIVERSI; ;10/08/2023;1919;6;343;1;Spese correnti;Trasferimenti correnti;Trasferimenti correnti a Famiglie;Interventi assistenziali;Altri assegni e sussidi assistenziali;;;;;;;;;;;;
1154;506,85;SOGGETTI DIVERSI; ;10/08/2023;1916;0;79;1;Spese correnti;Trasferimenti correnti;Trasferimenti correnti a Famiglie;Interventi assistenziali;Altri assegni e sussidi assistenziali;;;;;;;;;;;;
1155;375;OMESSO NOMINATIVO NEL RISPETTO DELLA NORMATIVA SULLA PROTEZIONE DATI PERSONALI; ;11/08/2023;1920;15;146;1;Spese correnti;Trasferimenti correnti;Trasferimenti correnti a Famiglie;Interventi assistenziali;Altri assegni e sussidi assistenziali;;;;;;;;;;;;
1156;318,02;OMESSO NOMINATIVO NEL RISPETTO DELLA NORMATIVA SULLA PROTEZIONE DATI PERSONALI; ;11/08/2023;1920;15;156;1;Spese correnti;Trasferimenti correnti;Trasferimenti correnti a Famiglie;Interventi assistenziali;Altri assegni e sussidi assistenziali;;;;;;;;;;;;
1157;195,56;OMESSO NOMINATIVO NEL RISPETTO DELLA NORMATIVA SULLA PROTEZIONE DATI PERSONALI; ;11/08/2023;1920;15;168;1;Spese correnti;Trasferimenti correnti;Trasferimenti correnti a Famiglie;Interventi assistenziali;Altri assegni e sussidi assistenziali;;;;;;;;;;;;
1158;156,66;OMESSO NOMINATIVO NEL RISPETTO DELLA NORMATIVA SULLA PROTEZIONE DATI PERSONALI; ;11/08/2023;1920;15;258;1;Spese correnti;Trasferimenti correnti;Trasferimenti correnti a Famiglie;Interventi assistenziali;Altri assegni e sussidi assistenziali;;;;;;;;;;;;
1159;176,25;OMESSO NOMINATIVO NEL RISPETTO DELLA NORMATIVA SULLA PROTEZIONE DATI PERSONALI; ;11/08/2023;1920;15;174;1;Spese correnti;Trasferimenti correnti;Trasferimenti correnti a Famiglie;Interventi assistenziali;Altri assegni e sussidi assistenziali;;;;;;;;;;;;
1160;648,31;OMESSO NOMINATIVO NEL RISPETTO DELLA NORMATIVA SULLA PROTEZIONE DATI PERSONALI; ;11/08/2023;1920;15;175;1;Spese correnti;Trasferimenti correnti;Trasferimenti correnti a Famiglie;Interventi assistenziali;Altri assegni e sussidi assistenziali;;;;;;;;;;;;
1161;250;OMESSO NOMINATIVO NEL RISPETTO DELLA NORMATIVA SULLA PROTEZIONE DATI PERSONALI; ;11/08/2023;1920;15;176;1;Spese correnti;Trasferimenti correnti;Trasferimenti correnti a Famiglie;Interventi assistenziali;Altri assegni e sussidi assistenziali;;;;;;;;;;;;
1162;249,26;SOGGETTI DIVERSI; ;11/08/2023;1920;15;179;1;Spese correnti;Trasferimenti correnti;Trasferimenti correnti a Famiglie;Interventi assistenziali;Altri assegni e sussidi assistenziali;;;;;;;;;;;;
1163;250,08;OMESSO NOMINATIVO NEL RISPETTO DELLA NORMATIVA SULLA PROTEZIONE DATI PERSONALI; ;11/08/2023;1920;15;183;1;Spese correnti;Trasferimenti correnti;Trasferimenti correnti a Famiglie;Interventi assistenziali;Altri assegni e sussidi assistenziali;;;;;;;;;;;;
1164;156,25;OMESSO NOMINATIVO NEL RISPETTO DELLA NORMATIVA SULLA PROTEZIONE DATI PERSONALI; ;11/08/2023;1920;15;186;1;Spese correnti;Trasferimenti correnti;Trasferimenti correnti a Famiglie;Interventi assistenziali;Altri assegni e sussidi assistenziali;;;;;;;;;;;;
1165;938,76;OMESSO NOMINATIVO NEL RISPETTO DELLA NORMATIVA SULLA PROTEZIONE DATI PERSONALI; ;11/08/2023;1920;0;191;1;Spese correnti;Trasferimenti correnti;Trasferimenti correnti a Famiglie;Interventi assistenziali;Altri assegni e sussidi assistenziali;;;;;;;;;;;;
1166;1.176,39;OMESSO NOMINATIVO NEL RISPETTO DELLA NORMATIVA SULLA PROTEZIONE DATI PERSONALI; ;11/08/2023;1920;0;190;1;Spese correnti;Trasferimenti correnti;Trasferimenti correnti a Famiglie;Interventi assistenziali;Altri assegni e sussidi assistenziali;;;;;;;;;;;;
1167;405;SOGGETTI DIVERSI; ;11/08/2023;1919;6;343;1;Spese correnti;Trasferimenti correnti;Trasferimenti correnti a Famiglie;Interventi assistenziali;Altri assegni e sussidi assistenziali;;;;;;;;;;;;
1168;128,27;OMESSO NOMINATIVO NEL RISPETTO DELLA NORMATIVA SULLA PROTEZIONE DATI PERSONALI; ;11/08/2023;1920;15;155;1;Spese correnti;Trasferimenti correnti;Trasferimenti correnti a Famiglie;Interventi assistenziali;Altri assegni e sussidi assistenziali;;;;;;;;;;;;
1169;208,19;OMESSO NOMINATIVO NEL RISPETTO DELLA NORMATIVA SULLA PROTEZIONE DATI PERSONALI; ;11/08/2023;1920;15;188;1;Spese correnti;Trasferimenti correnti;Trasferimenti correnti a Famiglie;Interventi assistenziali;Altri assegni e sussidi assistenziali;;;;;;;;;;;;
1171;134,35;OMESSO NOMINATIVO NEL RISPETTO DELLA NORMATIVA SULLA PROTEZIONE DATI PERSONALI; ;11/08/2023;1920;15;142;1;Spese correnti;Trasferimenti correnti;Trasferimenti correnti a Famiglie;Interventi assistenziali;Altri assegni e sussidi assistenziali;;;;;;;;;;;;
1172;161,61;OMESSO NOMINATIVO NEL RISPETTO DELLA NORMATIVA SULLA PROTEZIONE DATI PERSONALI; ;11/08/2023;1920;15;144;1;Spese correnti;Trasferimenti correnti;Trasferimenti correnti a Famiglie;Interventi assistenziali;Altri assegni e sussidi assistenziali;;;;;;;;;;;;
1173;163,08;OMESSO NOMINATIVO NEL RISPETTO DELLA NORMATIVA SULLA PROTEZIONE DATI PERSONALI; ;11/08/2023;1920;15;145;1;Spese correnti;Trasferimenti correnti;Trasferimenti correnti a Famiglie;Interventi assistenziali;Altri assegni e sussidi assistenziali;;;;;;;;;;;;
1174;134,71;OMESSO NOMINATIVO NEL RISPETTO DELLA NORMATIVA SULLA PROTEZIONE DATI PERSONALI; ;11/08/2023;1920;15;147;1;Spese correnti;Trasferimenti correnti;Trasferimenti correnti a Famiglie;Interventi assistenziali;Altri assegni e sussidi assistenziali;;;;;;;;;;;;
1175;110;OMESSO NOMINATIVO NEL RISPETTO DELLA NORMATIVA SULLA PROTEZIONE DATI PERSONALI; ;11/08/2023;1920;15;148;1;Spese correnti;Trasferimenti correnti;Trasferimenti correnti a Famiglie;Interventi assistenziali;Altri assegni e sussidi assistenziali;;;;;;;;;;;;
1176;241,3;OMESSO NOMINATIVO NEL RISPETTO DELLA NORMATIVA SULLA PROTEZIONE DATI PERSONALI; ;11/08/2023;1920;15;150;1;Spese correnti;Trasferimenti correnti;Trasferimenti correnti a Famiglie;Interventi assistenziali;Altri assegni e sussidi assistenziali;;;;;;;;;;;;
1177;187,2;OMESSO NOMINATIVO NEL RISPETTO DELLA NORMATIVA SULLA PROTEZIONE DATI PERSONALI; ;11/08/2023;1920;15;152;1;Spese correnti;Trasferimenti correnti;Trasferimenti correnti a Famiglie;Interventi assistenziali;Altri assegni e sussidi assistenziali;;;;;;;;;;;;
1178;829,39;OMESSO NOMINATIVO NEL RISPETTO DELLA NORMATIVA SULLA PROTEZIONE DATI PERSONALI; ;11/08/2023;1920;15;165;1;Spese correnti;Trasferimenti correnti;Trasferimenti correnti a Famiglie;Interventi assistenziali;Altri assegni e sussidi assistenziali;;;;;;;;;;;;
1179;139,24;OMESSO NOMINATIVO NEL RISPETTO DELLA NORMATIVA SULLA PROTEZIONE DATI PERSONALI; ;11/08/2023;1920;15;167;1;Spese correnti;Trasferimenti correnti;Trasferimenti correnti a Famiglie;Interventi assistenziali;Altri assegni e sussidi assistenziali;;;;;;;;;;;;
1180;318,88;OMESSO NOMINATIVO NEL RISPETTO DELLA NORMATIVA SULLA PROTEZIONE DATI PERSONALI; ;11/08/2023;1920;15;169;1;Spese correnti;Trasferimenti correnti;Trasferimenti correnti a Famiglie;Interventi assistenziali;Altri assegni e sussidi assistenziali;;;;;;;;;;;;
1181;318,88;OMESSO NOMINATIVO NEL RISPETTO DELLA NORMATIVA SULLA PROTEZIONE DATI PERSONALI; ;11/08/2023;1920;15;169;1;Spese correnti;Trasferimenti correnti;Trasferimenti correnti a Famiglie;Interventi assistenziali;Altri assegni e sussidi assistenziali;;;;;;;;;;;;
1182;170,62;OMESSO NOMINATIVO NEL RISPETTO DELLA NORMATIVA SULLA PROTEZIONE DATI PERSONALI; ;11/08/2023;1920;15;173;1;Spese correnti;Trasferimenti correnti;Trasferimenti correnti a Famiglie;Interventi assistenziali;Altri assegni e sussidi assistenziali;;;;;;;;;;;;
1183;304,24;OMESSO NOMINATIVO NEL RISPETTO DELLA NORMATIVA SULLA PROTEZIONE DATI PERSONALI; ;11/08/2023;1920;15;180;1;Spese correnti;Trasferimenti correnti;Trasferimenti correnti a Famiglie;Interventi assistenziali;Altri assegni e sussidi assistenziali;;;;;;;;;;;;
1184;155,13;SOGGETTI DIVERSI; ;11/08/2023;1920;15;181;1;Spese correnti;Trasferimenti correnti;Trasferimenti correnti a Famiglie;Interventi assistenziali;Altri assegni e sussidi assistenziali;;;;;;;;;;;;
1185;327,48;OMESSO NOMINATIVO NEL RISPETTO DELLA NORMATIVA SULLA PROTEZIONE DATI PERSONALI; ;11/08/2023;1920;15;185;1;Spese correnti;Trasferimenti correnti;Trasferimenti correnti a Famiglie;Interventi assistenziali;Altri assegni e sussidi assistenziali;;;;;;;;;;;;
1186;400;ASD ELLEDANCE; ;11/08/2023;1521;1;254;1;Spese correnti;Acquisto di beni e servizi;Acquisto di servizi;Altri servizi;Altri servizi diversi n.a.c.;;;;;;;;;;;;
1187;1.070,50;OMESSO NOMINATIVO NEL RISPETTO DELLA NORMATIVA SULLA PROTEZIONE DATI PERSONALI; ;11/08/2023;1920;0;189;1;Spese correnti;Trasferimenti correnti;Trasferimenti correnti a Famiglie;Interventi assistenziali;Altri assegni e sussidi assistenziali;;;;;;;;;;;;
1188;256,39;OMESSO NOMINATIVO NEL RISPETTO DELLA NORMATIVA SULLA PROTEZIONE DATI PERSONALI; ;11/08/2023;1920;0;193;1;Spese correnti;Trasferimenti correnti;Trasferimenti correnti a Famiglie;Interventi assistenziali;Altri assegni e sussidi assistenziali;;;;;;;;;;;;
1189;256,39;OMESSO NOMINATIVO NEL RISPETTO DELLA NORMATIVA SULLA PROTEZIONE DATI PERSONALI; ;11/08/2023;1920;0;193;1;Spese correnti;Trasferimenti correnti;Trasferimenti correnti a Famiglie;Interventi assistenziali;Altri assegni e sussidi assistenziali;;;;;;;;;;;;
1190;227,79;SOGGETTI DIVERSI; ;11/08/2023;1917;0;80;1;Spese correnti;Trasferimenti correnti;Trasferimenti correnti a Famiglie;Interventi assistenziali;Altri assegni e sussidi assistenziali;;;;;;;;;;;;
1191;165,4;OMESSO NOMINATIVO NEL RISPETTO DELLA NORMATIVA SULLA PROTEZIONE DATI PERSONALI; ;11/08/2023;1920;15;184;1;Spese correnti;Trasferimenti correnti;Trasferimenti correnti a Famiglie;Interventi assistenziali;Altri assegni e sussidi assistenziali;;;;;;;;;;;;
1192;1.289,64;OMESSO NOMINATIVO NEL RISPETTO DELLA NORMATIVA SULLA PROTEZIONE DATI PERSONALI; ;11/08/2023;1920;15;157;1;Spese correnti;Trasferimenti correnti;Trasferimenti correnti a Famiglie;Interventi assistenziali;Altri assegni e sussidi assistenziali;;;;;;;;;;;;
1224;117,53;MINISTERO  - DIPARTIMENTO AFFARI INTERNI; ;21/08/2023;1037;1;62;1;Spese correnti;Trasferimenti correnti;Trasferimenti correnti a Amministrazioni Pubbliche;Trasferimenti correnti a Amministrazioni Centrali;Trasferimenti correnti a Ministeri;;;;;;;;;;;;
1225;67,16;MINISTERO  - DIPARTIMENTO AFFARI INTERNI; ;21/08/2023;1037;1;62;1;Spese correnti;Trasferimenti correnti;Trasferimenti correnti a Amministrazioni Pubbliche;Trasferimenti correnti a Amministrazioni Centrali;Trasferimenti correnti a Ministeri;;;;;;;;;;;;
1226;166,66;OMESSO NOMINATIVO NEL RISPETTO DELLA NORMATIVA SULLA PROTEZIONE DATI PERSONALI; ;21/08/2023;1920;15;143;1;Spese correnti;Trasferimenti correnti;Trasferimenti correnti a Famiglie;Interventi assistenziali;Altri assegni e sussidi assistenziali;;;;;;;;;;;;
1227;958;OMESSO NOMINATIVO NEL RISPETTO DELLA NORMATIVA SULLA PROTEZIONE DATI PERSONALI; ;21/08/2023;1920;15;38;1;Spese correnti;Trasferimenti correnti;Trasferimenti correnti a Famiglie;Interventi assistenziali;Altri assegni e sussidi assistenziali;;;;;;;;;;;;
1228;325;ABILTECNO Societa' Cooperativa Onlus; ;21/08/2023;1919;6;343;1;Spese correnti;Trasferimenti correnti;Trasferimenti correnti a Famiglie;Interventi assistenziali;Altri assegni e sussidi assistenziali;;;;;;;;;;;;
1229;1.956,15;DIVERSI; ;21/08/2023;1001;0;10;1;Spese correnti;Acquisto di beni e servizi;Acquisto di servizi;Organi e incarichi istituzionali dell'amministrazione;Organi istituzionali dell'amministrazione - Indennità;;;;;;;;;;;;
1233;375;OMESSO NOMINATIVO NEL RISPETTO DELLA NORMATIVA SULLA PROTEZIONE DATI PERSONALI; ;25/08/2023;1920;15;151;1;Spese correnti;Trasferimenti correnti;Trasferimenti correnti a Famiglie;Interventi assistenziali;Altri assegni e sussidi assistenziali;;;;;;;;;;;;
1234;724,95;OMESSO NOMINATIVO NEL RISPETTO DELLA NORMATIVA SULLA PROTEZIONE DATI PERSONALI; ;25/08/2023;1920;0;192;1;Spese correnti;Trasferimenti correnti;Trasferimenti correnti a Famiglie;Interventi assistenziali;Altri assegni e sussidi assistenziali;;;;;;;;;;;;
1235;377,61;OMESSO NOMINATIVO NEL RISPETTO DELLA NORMATIVA SULLA PROTEZIONE DATI PERSONALI; ;25/08/2023;1920;0;192;1;Spese correnti;Trasferimenti correnti;Trasferimenti correnti a Famiglie;Interventi assistenziali;Altri assegni e sussidi assistenziali;;;;;;;;;;;;
1236;463,73;OMESSO NOMINATIVO NEL RISPETTO DELLA NORMATIVA SULLA PROTEZIONE DATI PERSONALI; ;25/08/2023;1920;15;184;1;Spese correnti;Trasferimenti correnti;Trasferimenti correnti a Famiglie;Interventi assistenziali;Altri assegni e sussidi assistenziali;;;;;;;;;;;;
1237;159,37;OMESSO NOMINATIVO NEL RISPETTO DELLA NORMATIVA SULLA PROTEZIONE DATI PERSONALI; ;25/08/2023;1920;15;159;1;Spese correnti;Trasferimenti correnti;Trasferimenti correnti a Famiglie;Interventi assistenziali;Altri assegni e sussidi assistenziali;;;;;;;;;;;;
1238;50;AGROCUI SRL;ZCC3A8C1FD;30/08/2023;1742;0;320;1;Spese correnti;Acquisto di beni e servizi;Acquisto di servizi;Altri servizi;Altri servizi diversi n.a.c.;;;;;;;;;;;;
1238;74,99;AGROCUI SRL;ZCC3A8C1FD;30/08/2023;1742;0;320;1;Spese correnti;Acquisto di beni e servizi;Acquisto di servizi;Altri servizi;Altri servizi diversi n.a.c.;;;;;;;;;;;;
1239;87,11;AUTOMOBIL COCCO SRL;Z453BAB06F;30/08/2023;1057;3;234;1;Spese correnti;Acquisto di beni e servizi;Acquisto di servizi;Manutenzione ordinaria e riparazioni;Manutenzione ordinaria e riparazioni di mezzi di trasporto ad uso civile, di sicurezza e ordine pubblico;;;;;;;;;;;;
1240;2.366,80;ALARM SYSTEM SRL Societa' Unipersonale;ZDC34AFD90;30/08/2023;3022;0;352;2;Spese in conto capitale;Investimenti fissi lordi e acquisto di terreni;Beni materiali;Beni immobili;Beni immobili n.a.c.;;;;;;;;;;;;
1241;6.982,93;ECOGREEN COOPERATIVA SOCIALE;967226800F;30/08/2023;1742;0;320;1;Spese correnti;Acquisto di beni e servizi;Acquisto di servizi;Altri servizi;Altri servizi diversi n.a.c.;;;;;;;;;;;;
1242;6.655,16;ECOGREEN COOPERATIVA SOCIALE;9669337D4E;30/08/2023;1092;1;100;1;Spese correnti;Acquisto di beni e servizi;Acquisto di servizi;Altri servizi;Acquisto di sevizi per verde e arredo urbano;;;;;;;;;;;;
1243;463,6;DITTA SABBIE DI PARMA S.R.L.;ZD73BE63B3;30/08/2023;3482;0;264;2;Spese in conto capitale;Investimenti fissi lordi e acquisto di terreni;Beni materiali;Beni immobili;Altre vie di comunicazione;;;;;;;;;;;;
1244;18,65;ENEL ENERGIA S.P.A.;ZA135CD269;31/08/2023;1937;0;70;1;Spese correnti;Acquisto di beni e servizi;Acquisto di servizi;Utenze e canoni;Energia elettrica;;;;;;;;;;;;
1244;31,83;ENEL ENERGIA S.P.A.;9146558A6E;31/08/2023;1937;0;70;1;Spese correnti;Acquisto di beni e servizi;Acquisto di servizi;Utenze e canoni;Energia elettrica;;;;;;;;;;;;
1244;34,33;ENEL ENERGIA S.P.A.;Z933563740;31/08/2023;1937;0;70;1;Spese correnti;Acquisto di beni e servizi;Acquisto di servizi;Utenze e canoni;Energia elettrica;;;;;;;;;;;;
1244;160,72;ENEL ENERGIA S.P.A.;9146558A6E;31/08/2023;1937;0;70;1;Spese correnti;Acquisto di beni e servizi;Acquisto di servizi;Utenze e canoni;Energia elettrica;;;;;;;;;;;;
1244;168,56;ENEL ENERGIA S.P.A.;9146558A6E;31/08/2023;1937;0;70;1;Spese correnti;Acquisto di beni e servizi;Acquisto di servizi;Utenze e canoni;Energia elettrica;;;;;;;;;;;;
1244;262,37;ENEL ENERGIA S.P.A.;9146558A6E;31/08/2023;1937;0;70;1;Spese correnti;Acquisto di beni e servizi;Acquisto di servizi;Utenze e canoni;Energia elettrica;;;;;;;;;;;;
1244;483,58;ENEL ENERGIA S.P.A.;9146558A6E;31/08/2023;1937;0;70;1;Spese correnti;Acquisto di beni e servizi;Acquisto di servizi;Utenze e canoni;Energia elettrica;;;;;;;;;;;;
1244;838,98;ENEL ENERGIA S.P.A.;9146558A6E;31/08/2023;1937;0;70;1;Spese correnti;Acquisto di beni e servizi;Acquisto di servizi;Utenze e canoni;Energia elettrica;;;;;;;;;;;;
1245;151,55;ENEL ENERGIA S.P.A.;9146558A6E;31/08/2023;1386;2;71;1;Spese correnti;Acquisto di beni e servizi;Acquisto di servizi;Utenze e canoni;Energia elettrica;;;;;;;;;;;;
1246;73,2;ENEL ENERGIA S.P.A.;9146558A6E;31/08/2023;1366;3;72;1;Spese correnti;Acquisto di beni e servizi;Acquisto di servizi;Utenze e canoni;Energia elettrica;;;;;;;;;;;;
1246;217,94;ENEL ENERGIA S.P.A.;9146558A6E;31/08/2023;1366;3;72;1;Spese correnti;Acquisto di beni e servizi;Acquisto di servizi;Utenze e canoni;Energia elettrica;;;;;;;;;;;;
1247;57,46;ENEL ENERGIA S.P.A.;9146558A6E;31/08/2023;1087;2;73;1;Spese correnti;Acquisto di beni e servizi;Acquisto di servizi;Utenze e canoni;Energia elettrica;;;;;;;;;;;;
1247;119,71;ENEL ENERGIA S.P.A.;9146558A6E;31/08/2023;1087;2;73;1;Spese correnti;Acquisto di beni e servizi;Acquisto di servizi;Utenze e canoni;Energia elettrica;;;;;;;;;;;;
1247;1.180,78;ENEL ENERGIA S.P.A.;9146558A6E;31/08/2023;1087;2;73;1;Spese correnti;Acquisto di beni e servizi;Acquisto di servizi;Utenze e canoni;Energia elettrica;;;;;;;;;;;;
1248;97,72;ENEL ENERGIA S.P.A.;9146558A6E;31/08/2023;1826;1;74;1;Spese correnti;Acquisto di beni e servizi;Acquisto di servizi;Utenze e canoni;Energia elettrica;;;;;;;;;;;;
1248;479,59;ENEL ENERGIA S.P.A.;9146558A6E;31/08/2023;1826;1;74;1;Spese correnti;Acquisto di beni e servizi;Acquisto di servizi;Utenze e canoni;Energia elettrica;;;;;;;;;;;;
1249;17,74;ENEL ENERGIA S.P.A.;9146558A6E;31/08/2023;1526;0;75;1;Spese correnti;Acquisto di beni e servizi;Acquisto di servizi;Utenze e canoni;Energia elettrica;;;;;;;;;;;;
1249;115,99;ENEL ENERGIA S.P.A.;9146558A6E;31/08/2023;1526;0;75;1;Spese correnti;Acquisto di beni e servizi;Acquisto di servizi;Utenze e canoni;Energia elettrica;;;;;;;;;;;;
1249;180,7;ENEL ENERGIA S.P.A.;9146558A6E;31/08/2023;1526;0;75;1;Spese correnti;Acquisto di beni e servizi;Acquisto di servizi;Utenze e canoni;Energia elettrica;;;;;;;;;;;;
1250;441,3;ENEL ENERGIA S.P.A.;9146558A6E;31/08/2023;1937;0;70;1;Spese correnti;Acquisto di beni e servizi;Acquisto di servizi;Utenze e canoni;Energia elettrica;;;;;;;;;;;;
1251;76,88;ENEL ENERGIA S.P.A.;9146558A6E;31/08/2023;1656;1;76;1;Spese correnti;Acquisto di beni e servizi;Acquisto di servizi;Utenze e canoni;Energia elettrica;;;;;;;;;;;;
1252;171,76;ENEL ENERGIA S.P.A.;9146558A6E;31/08/2023;1090;0;77;1;Spese correnti;Acquisto di beni e servizi;Acquisto di servizi;Utenze e canoni;Energia elettrica;;;;;;;;;;;;
1253;266,37;ENEL ENERGIA S.P.A.;9146558A6E;31/08/2023;1086;0;78;1;Spese correnti;Acquisto di beni e servizi;Acquisto di servizi;Utenze e canoni;Energia elettrica;;;;;;;;;;;;
1255;900;LIBERA ASSOCIAZIONE MARIO MEDDA; ;04/09/2023;1520;0;132;1;Spese correnti;Trasferimenti correnti;Trasferimenti correnti a Istituzioni Sociali Private;Trasferimenti correnti a Istituzioni Sociali Private;Trasferimenti correnti a Istituzioni Sociali Private;;;;;;;;;;;;
1256;494;S.I.P.A.L.;ZF6391E520;04/09/2023;1043;4;348;1;Spese correnti;Acquisto di beni e servizi;Acquisto di servizi;Prestazioni professionali e specialistiche;Altre prestazioni professionali e specialistiche n.a.c.;;;;;;;;;;;;
1257;248,27;SOCIETA' ITALIANA DEGLI AUTORI ED EDITORI (S.I.A.E.); ;04/09/2023;1521;1;252;1;Spese correnti;Acquisto di beni e servizi;Acquisto di servizi;Altri servizi;Altri servizi diversi n.a.c.;;;;;;;;;;;;
1257;267,79;SOCIETA' ITALIANA DEGLI AUTORI ED EDITORI (S.I.A.E.); ;04/09/2023;1521;1;252;1;Spese correnti;Acquisto di beni e servizi;Acquisto di servizi;Altri servizi;Altri servizi diversi n.a.c.;;;;;;;;;;;;
1257;1.624,99;SOCIETA' ITALIANA DEGLI AUTORI ED EDITORI (S.I.A.E.); ;04/09/2023;1521;1;252;1;Spese correnti;Acquisto di beni e servizi;Acquisto di servizi;Altri servizi;Altri servizi diversi n.a.c.;;;;;;;;;;;;
1258;240,35;TECNOCASIC  S.P.A.;ZF9396C612;05/09/2023;1739;0;2;1;Spese correnti;Acquisto di beni e servizi;Acquisto di servizi;Contratti di servizio pubblico;Contratti di servizio per il conferimento in discarica dei rifiuti;;;;;;;;;;;;
1258;596,52;TECNOCASIC  S.P.A.;ZF9396C612;05/09/2023;1739;0;2;1;Spese correnti;Acquisto di beni e servizi;Acquisto di servizi;Contratti di servizio pubblico;Contratti di servizio per il conferimento in discarica dei rifiuti;;;;;;;;;;;;
1259;28.999,99;Societa'  Cooperativa Produzioni Artistiche Vadilonga;ZE33BB74F4;05/09/2023;1521;0;241;1;Spese correnti;Acquisto di beni e servizi;Acquisto di servizi;Altri servizi;Altri servizi diversi n.a.c.;;;;;;;;;;;;
1260;20.999,99;PUBLIKENDI SRL;Z403BA8EBB;05/09/2023;1521;0;235;1;Spese correnti;Acquisto di beni e servizi;Acquisto di servizi;Altri servizi;Altri servizi diversi n.a.c.;;;;;;;;;;;;
1261;3.600,00;SOGGETTI DIVERSI; ;08/09/2023;1908;0;272;1;Spese correnti;Trasferimenti correnti;Trasferimenti correnti a Famiglie;Interventi assistenziali;Altri assegni e sussidi assistenziali;;;;;;;;;;;;
1262;1.141,93;SOGGETTI DIVERSI; ;08/09/2023;1908;0;272;1;Spese correnti;Trasferimenti correnti;Trasferimenti correnti a Famiglie;Interventi assistenziali;Altri assegni e sussidi assistenziali;;;;;;;;;;;;
1263;3.600,00;SOGGETTI DIVERSI; ;08/09/2023;1908;0;272;1;Spese correnti;Trasferimenti correnti;Trasferimenti correnti a Famiglie;Interventi assistenziali;Altri assegni e sussidi assistenziali;;;;;;;;;;;;
1264;3.600,00;SOGGETTI DIVERSI; ;08/09/2023;1908;0;272;1;Spese correnti;Trasferimenti correnti;Trasferimenti correnti a Famiglie;Interventi assistenziali;Altri assegni e sussidi assistenziali;;;;;;;;;;;;
1265;71,76;ABBANOA S.P.A.; ;08/09/2023;1087;3;208;1;Spese correnti;Acquisto di beni e servizi;Acquisto di servizi;Utenze e canoni;Acqua;;;;;;;;;;;;
1265;157,1;ABBANOA S.P.A.; ;08/09/2023;1087;3;208;1;Spese correnti;Acquisto di beni e servizi;Acquisto di servizi;Utenze e canoni;Acqua;;;;;;;;;;;;
1266;64,09;ABBANOA S.P.A.; ;08/09/2023;1387;0;210;1;Spese correnti;Acquisto di beni e servizi;Acquisto di servizi;Utenze e canoni;Acqua;;;;;;;;;;;;
1267;78,93;ABBANOA S.P.A.; ;08/09/2023;1526;1;211;1;Spese correnti;Acquisto di beni e servizi;Acquisto di servizi;Utenze e canoni;Acqua;;;;;;;;;;;;
1267;146,92;ABBANOA S.P.A.; ;08/09/2023;1526;1;211;1;Spese correnti;Acquisto di beni e servizi;Acquisto di servizi;Utenze e canoni;Acqua;;;;;;;;;;;;
1268;82,52;ABBANOA S.P.A.; ;08/09/2023;1827;0;214;1;Spese correnti;Acquisto di beni e servizi;Acquisto di servizi;Utenze e canoni;Acqua;;;;;;;;;;;;
1268;96,82;ABBANOA S.P.A.; ;08/09/2023;1827;0;214;1;Spese correnti;Acquisto di beni e servizi;Acquisto di servizi;Utenze e canoni;Acqua;;;;;;;;;;;;
1269;64,09;ABBANOA S.P.A.; ;08/09/2023;1717;1;213;1;Spese correnti;Acquisto di beni e servizi;Acquisto di servizi;Utenze e canoni;Acqua;;;;;;;;;;;;
1270;300;SOGGETTI DIVERSI; ;11/09/2023;1919;6;205;1;Spese correnti;Trasferimenti correnti;Trasferimenti correnti a Famiglie;Interventi assistenziali;Altri assegni e sussidi assistenziali;;;;;;;;;;;;
1271;5;SOGGETTI DIVERSI; ;11/09/2023;1919;6;205;1;Spese correnti;Trasferimenti correnti;Trasferimenti correnti a Famiglie;Interventi assistenziali;Altri assegni e sussidi assistenziali;;;;;;;;;;;;
1272;403,59;OMESSO NOMINATIVO NEL RISPETTO DELLA NORMATIVA SULLA PROTEZIONE DATI PERSONALI; ;11/09/2023;1920;15;175;1;Spese correnti;Trasferimenti correnti;Trasferimenti correnti a Famiglie;Interventi assistenziali;Altri assegni e sussidi assistenziali;;;;;;;;;;;;
1273;320;SOGGETTI DIVERSI; ;12/09/2023;1919;6;205;1;Spese correnti;Trasferimenti correnti;Trasferimenti correnti a Famiglie;Interventi assistenziali;Altri assegni e sussidi assistenziali;;;;;;;;;;;;
1274;320;SOGGETTI DIVERSI; ;12/09/2023;1919;6;205;1;Spese correnti;Trasferimenti correnti;Trasferimenti correnti a Famiglie;Interventi assistenziali;Altri assegni e sussidi assistenziali;;;;;;;;;;;;
1275;250;OMESSO NOMINATIVO NEL RISPETTO DELLA NORMATIVA SULLA PROTEZIONE DATI PERSONALI; ;12/09/2023;1920;13;230;1;Spese correnti;Acquisto di beni e servizi;Acquisto di servizi;Prestazioni professionali e specialistiche;Altre prestazioni professionali e specialistiche n.a.c.;;;;;;;;;;;;
1276;240;SOGGETTI DIVERSI; ;12/09/2023;1919;6;343;1;Spese correnti;Trasferimenti correnti;Trasferimenti correnti a Famiglie;Interventi assistenziali;Altri assegni e sussidi assistenziali;;;;;;;;;;;;
1277;155;SOGGETTI DIVERSI; ;12/09/2023;1919;6;343;1;Spese correnti;Trasferimenti correnti;Trasferimenti correnti a Famiglie;Interventi assistenziali;Altri assegni e sussidi assistenziali;;;;;;;;;;;;
1278;230;SOGGETTI DIVERSI; ;12/09/2023;1919;6;343;1;Spese correnti;Trasferimenti correnti;Trasferimenti correnti a Famiglie;Interventi assistenziali;Altri assegni e sussidi assistenziali;;;;;;;;;;;;
1279;405;SOGGETTI DIVERSI; ;12/09/2023;1919;6;343;1;Spese correnti;Trasferimenti correnti;Trasferimenti correnti a Famiglie;Interventi assistenziali;Altri assegni e sussidi assistenziali;;;;;;;;;;;;
1280;290;SOGGETTI DIVERSI; ;12/09/2023;1919;6;343;1;Spese correnti;Trasferimenti correnti;Trasferimenti correnti a Famiglie;Interventi assistenziali;Altri assegni e sussidi assistenziali;;;;;;;;;;;;
1281;300;SOGGETTI DIVERSI; ;12/09/2023;1919;6;343;1;Spese correnti;Trasferimenti correnti;Trasferimenti correnti a Famiglie;Interventi assistenziali;Altri assegni e sussidi assistenziali;;;;;;;;;;;;
1282;300;SOGGETTI DIVERSI; ;12/09/2023;1919;6;343;1;Spese correnti;Trasferimenti correnti;Trasferimenti correnti a Famiglie;Interventi assistenziali;Altri assegni e sussidi assistenziali;;;;;;;;;;;;
1283;270,32;SOGGETTI DIVERSI; ;12/09/2023;1920;15;179;1;Spese correnti;Trasferimenti correnti;Trasferimenti correnti a Famiglie;Interventi assistenziali;Altri assegni e sussidi assistenziali;;;;;;;;;;;;
1284;133,94;OMESSO NOMINATIVO NEL RISPETTO DELLA NORMATIVA SULLA PROTEZIONE DATI PERSONALI; ;12/09/2023;1920;15;145;1;Spese correnti;Trasferimenti correnti;Trasferimenti correnti a Famiglie;Interventi assistenziali;Altri assegni e sussidi assistenziali;;;;;;;;;;;;
1285;166,66;OMESSO NOMINATIVO NEL RISPETTO DELLA NORMATIVA SULLA PROTEZIONE DATI PERSONALI; ;12/09/2023;1920;15;143;1;Spese correnti;Trasferimenti correnti;Trasferimenti correnti a Famiglie;Interventi assistenziali;Altri assegni e sussidi assistenziali;;;;;;;;;;;;
1286;152,07;OMESSO NOMINATIVO NEL RISPETTO DELLA NORMATIVA SULLA PROTEZIONE DATI PERSONALI; ;12/09/2023;1920;15;144;1;Spese correnti;Trasferimenti correnti;Trasferimenti correnti a Famiglie;Interventi assistenziali;Altri assegni e sussidi assistenziali;;;;;;;;;;;;
1287;375;OMESSO NOMINATIVO NEL RISPETTO DELLA NORMATIVA SULLA PROTEZIONE DATI PERSONALI; ;12/09/2023;1920;15;146;1;Spese correnti;Trasferimenti correnti;Trasferimenti correnti a Famiglie;Interventi assistenziali;Altri assegni e sussidi assistenziali;;;;;;;;;;;;
1288;110;OMESSO NOMINATIVO NEL RISPETTO DELLA NORMATIVA SULLA PROTEZIONE DATI PERSONALI; ;12/09/2023;1920;15;148;1;Spese correnti;Trasferimenti correnti;Trasferimenti correnti a Famiglie;Interventi assistenziali;Altri assegni e sussidi assistenziali;;;;;;;;;;;;
1289;249,84;OMESSO NOMINATIVO NEL RISPETTO DELLA NORMATIVA SULLA PROTEZIONE DATI PERSONALI; ;12/09/2023;1920;15;150;1;Spese correnti;Trasferimenti correnti;Trasferimenti correnti a Famiglie;Interventi assistenziali;Altri assegni e sussidi assistenziali;;;;;;;;;;;;
1290;128,27;OMESSO NOMINATIVO NEL RISPETTO DELLA NORMATIVA SULLA PROTEZIONE DATI PERSONALI; ;12/09/2023;1920;15;155;1;Spese correnti;Trasferimenti correnti;Trasferimenti correnti a Famiglie;Interventi assistenziali;Altri assegni e sussidi assistenziali;;;;;;;;;;;;
1291;159,37;OMESSO NOMINATIVO NEL RISPETTO DELLA NORMATIVA SULLA PROTEZIONE DATI PERSONALI; ;12/09/2023;1920;15;159;1;Spese correnti;Trasferimenti correnti;Trasferimenti correnti a Famiglie;Interventi assistenziali;Altri assegni e sussidi assistenziali;;;;;;;;;;;;
1292;379,5;OMESSO NOMINATIVO NEL RISPETTO DELLA NORMATIVA SULLA PROTEZIONE DATI PERSONALI; ;12/09/2023;1920;15;38;1;Spese correnti;Trasferimenti correnti;Trasferimenti correnti a Famiglie;Interventi assistenziali;Altri assegni e sussidi assistenziali;;;;;;;;;;;;
1293;189,25;OMESSO NOMINATIVO NEL RISPETTO DELLA NORMATIVA SULLA PROTEZIONE DATI PERSONALI; ;12/09/2023;1920;15;163;1;Spese correnti;Trasferimenti correnti;Trasferimenti correnti a Famiglie;Interventi assistenziali;Altri assegni e sussidi assistenziali;;;;;;;;;;;;
1294;320,52;OMESSO NOMINATIVO NEL RISPETTO DELLA NORMATIVA SULLA PROTEZIONE DATI PERSONALI; ;12/09/2023;1920;15;164;1;Spese correnti;Trasferimenti correnti;Trasferimenti correnti a Famiglie;Interventi assistenziali;Altri assegni e sussidi assistenziali;;;;;;;;;;;;
1295;840,09;OMESSO NOMINATIVO NEL RISPETTO DELLA NORMATIVA SULLA PROTEZIONE DATI PERSONALI; ;12/09/2023;1920;15;165;1;Spese correnti;Trasferimenti correnti;Trasferimenti correnti a Famiglie;Interventi assistenziali;Altri assegni e sussidi assistenziali;;;;;;;;;;;;
1296;165,8;OMESSO NOMINATIVO NEL RISPETTO DELLA NORMATIVA SULLA PROTEZIONE DATI PERSONALI; ;12/09/2023;1920;15;167;1;Spese correnti;Trasferimenti correnti;Trasferimenti correnti a Famiglie;Interventi assistenziali;Altri assegni e sussidi assistenziali;;;;;;;;;;;;
1297;224,82;OMESSO NOMINATIVO NEL RISPETTO DELLA NORMATIVA SULLA PROTEZIONE DATI PERSONALI; ;12/09/2023;1920;15;168;1;Spese correnti;Trasferimenti correnti;Trasferimenti correnti a Famiglie;Interventi assistenziali;Altri assegni e sussidi assistenziali;;;;;;;;;;;;
1298;531,3;OMESSO NOMINATIVO NEL RISPETTO DELLA NORMATIVA SULLA PROTEZIONE DATI PERSONALI; ;12/09/2023;1920;15;169;1;Spese correnti;Trasferimenti correnti;Trasferimenti correnti a Famiglie;Interventi assistenziali;Altri assegni e sussidi assistenziali;;;;;;;;;;;;
1299;469,98;OMESSO NOMINATIVO NEL RISPETTO DELLA NORMATIVA SULLA PROTEZIONE DATI PERSONALI; ;12/09/2023;1920;15;258;1;Spese correnti;Trasferimenti correnti;Trasferimenti correnti a Famiglie;Interventi assistenziali;Altri assegni e sussidi assistenziali;;;;;;;;;;;;
1300;359;OMESSO NOMINATIVO NEL RISPETTO DELLA NORMATIVA SULLA PROTEZIONE DATI PERSONALI; ;12/09/2023;1920;15;170;1;Spese correnti;Trasferimenti correnti;Trasferimenti correnti a Famiglie;Interventi assistenziali;Altri assegni e sussidi assistenziali;;;;;;;;;;;;
1301;536,45;OMESSO NOMINATIVO NEL RISPETTO DELLA NORMATIVA SULLA PROTEZIONE DATI PERSONALI; ;12/09/2023;1920;15;171;1;Spese correnti;Trasferimenti correnti;Trasferimenti correnti a Famiglie;Interventi assistenziali;Altri assegni e sussidi assistenziali;;;;;;;;;;;;
1302;170,62;OMESSO NOMINATIVO NEL RISPETTO DELLA NORMATIVA SULLA PROTEZIONE DATI PERSONALI; ;12/09/2023;1920;15;173;1;Spese correnti;Trasferimenti correnti;Trasferimenti correnti a Famiglie;Interventi assistenziali;Altri assegni e sussidi assistenziali;;;;;;;;;;;;
1303;176,25;OMESSO NOMINATIVO NEL RISPETTO DELLA NORMATIVA SULLA PROTEZIONE DATI PERSONALI; ;12/09/2023;1920;15;174;1;Spese correnti;Trasferimenti correnti;Trasferimenti correnti a Famiglie;Interventi assistenziali;Altri assegni e sussidi assistenziali;;;;;;;;;;;;
1304;250;OMESSO NOMINATIVO NEL RISPETTO DELLA NORMATIVA SULLA PROTEZIONE DATI PERSONALI; ;12/09/2023;1920;15;176;1;Spese correnti;Trasferimenti correnti;Trasferimenti correnti a Famiglie;Interventi assistenziali;Altri assegni e sussidi assistenziali;;;;;;;;;;;;
1305;352,09;OMESSO NOMINATIVO NEL RISPETTO DELLA NORMATIVA SULLA PROTEZIONE DATI PERSONALI; ;12/09/2023;1920;15;177;1;Spese correnti;Trasferimenti correnti;Trasferimenti correnti a Famiglie;Interventi assistenziali;Altri assegni e sussidi assistenziali;;;;;;;;;;;;
1306;145,97;SOGGETTI DIVERSI; ;12/09/2023;1920;15;181;1;Spese correnti;Trasferimenti correnti;Trasferimenti correnti a Famiglie;Interventi assistenziali;Altri assegni e sussidi assistenziali;;;;;;;;;;;;
1307;250,08;OMESSO NOMINATIVO NEL RISPETTO DELLA NORMATIVA SULLA PROTEZIONE DATI PERSONALI; ;12/09/2023;1920;15;183;1;Spese correnti;Trasferimenti correnti;Trasferimenti correnti a Famiglie;Interventi assistenziali;Altri assegni e sussidi assistenziali;;;;;;;;;;;;
1308;327,48;OMESSO NOMINATIVO NEL RISPETTO DELLA NORMATIVA SULLA PROTEZIONE DATI PERSONALI; ;12/09/2023;1920;15;185;1;Spese correnti;Trasferimenti correnti;Trasferimenti correnti a Famiglie;Interventi assistenziali;Altri assegni e sussidi assistenziali;;;;;;;;;;;;
1309;156,25;OMESSO NOMINATIVO NEL RISPETTO DELLA NORMATIVA SULLA PROTEZIONE DATI PERSONALI; ;12/09/2023;1920;15;186;1;Spese correnti;Trasferimenti correnti;Trasferimenti correnti a Famiglie;Interventi assistenziali;Altri assegni e sussidi assistenziali;;;;;;;;;;;;
1310;200,93;OMESSO NOMINATIVO NEL RISPETTO DELLA NORMATIVA SULLA PROTEZIONE DATI PERSONALI; ;12/09/2023;1920;15;188;1;Spese correnti;Trasferimenti correnti;Trasferimenti correnti a Famiglie;Interventi assistenziali;Altri assegni e sussidi assistenziali;;;;;;;;;;;;
1311;134,71;OMESSO NOMINATIVO NEL RISPETTO DELLA NORMATIVA SULLA PROTEZIONE DATI PERSONALI; ;12/09/2023;1920;15;147;1;Spese correnti;Trasferimenti correnti;Trasferimenti correnti a Famiglie;Interventi assistenziali;Altri assegni e sussidi assistenziali;;;;;;;;;;;;
1312;488;MEDIANET SRL;Z05390F79B;12/09/2023;1043;2;7;1;Spese correnti;Acquisto di beni e servizi;Acquisto di servizi;Utenze e canoni;Telefonia fissa;;;;;;;;;;;;
1313;3.000,00;CONTRAMILONGA Associazione Culturale; ;12/09/2023;1521;1;253;1;Spese correnti;Acquisto di beni e servizi;Acquisto di servizi;Altri servizi;Altri servizi diversi n.a.c.;;;;;;;;;;;;
1314;2.433,90;UCCHEDDU FABIO;ZBE3BB9A0B;12/09/2023;3469;1;239;2;Spese in conto capitale;Investimenti fissi lordi e acquisto di terreni;Beni immateriali;Incarichi professionali per la realizzazione di investimenti;Incarichi professionali per la realizzazione di investimenti;;;;;;;;;;;;
1316;87,21;AGROCUI SRL;ZCC3A8C1FD;12/09/2023;1742;0;320;1;Spese correnti;Acquisto di beni e servizi;Acquisto di servizi;Altri servizi;Altri servizi diversi n.a.c.;;;;;;;;;;;;
1317;861,4;KUWAIT PETROLEUM ITALIA SPA;Z5235D861D;12/09/2023;1057;0;90;1;Spese correnti;Acquisto di beni e servizi;Acquisto di beni;Altri beni di consumo;Carburanti, combustibili e lubrificanti;;;;;;;;;;;;
1319;318,02;OMESSO NOMINATIVO NEL RISPETTO DELLA NORMATIVA SULLA PROTEZIONE DATI PERSONALI; ;13/09/2023;1920;15;156;1;Spese correnti;Trasferimenti correnti;Trasferimenti correnti a Famiglie;Interventi assistenziali;Altri assegni e sussidi assistenziali;;;;;;;;;;;;
1320;506,85;SOGGETTI DIVERSI; ;13/09/2023;1916;0;79;1;Spese correnti;Trasferimenti correnti;Trasferimenti correnti a Famiglie;Interventi assistenziali;Altri assegni e sussidi assistenziali;;;;;;;;;;;;
1321;25,31;SOGGETTI DIVERSI; ;13/09/2023;1917;0;80;1;Spese correnti;Trasferimenti correnti;Trasferimenti correnti a Famiglie;Interventi assistenziali;Altri assegni e sussidi assistenziali;;;;;;;;;;;;
1322;300;ABILTECNO Societa' Cooperativa Onlus; ;13/09/2023;1919;6;343;1;Spese correnti;Trasferimenti correnti;Trasferimenti correnti a Famiglie;Interventi assistenziali;Altri assegni e sussidi assistenziali;;;;;;;;;;;;
1323;256,39;OMESSO NOMINATIVO NEL RISPETTO DELLA NORMATIVA SULLA PROTEZIONE DATI PERSONALI; ;13/09/2023;1920;0;193;1;Spese correnti;Trasferimenti correnti;Trasferimenti correnti a Famiglie;Interventi assistenziali;Altri assegni e sussidi assistenziali;;;;;;;;;;;;
1324;256,39;OMESSO NOMINATIVO NEL RISPETTO DELLA NORMATIVA SULLA PROTEZIONE DATI PERSONALI; ;13/09/2023;1920;0;193;1;Spese correnti;Trasferimenti correnti;Trasferimenti correnti a Famiglie;Interventi assistenziali;Altri assegni e sussidi assistenziali;;;;;;;;;;;;
1325;970,39;OMESSO NOMINATIVO NEL RISPETTO DELLA NORMATIVA SULLA PROTEZIONE DATI PERSONALI; ;13/09/2023;1920;0;191;1;Spese correnti;Trasferimenti correnti;Trasferimenti correnti a Famiglie;Interventi assistenziali;Altri assegni e sussidi assistenziali;;;;;;;;;;;;
1326;750;OMESSO NOMINATIVO NEL RISPETTO DELLA NORMATIVA SULLA PROTEZIONE DATI PERSONALI; ;13/09/2023;1920;0;190;1;Spese correnti;Trasferimenti correnti;Trasferimenti correnti a Famiglie;Interventi assistenziali;Altri assegni e sussidi assistenziali;;;;;;;;;;;;
1327;1.395,17;OMESSO NOMINATIVO NEL RISPETTO DELLA NORMATIVA SULLA PROTEZIONE DATI PERSONALI; ;13/09/2023;1920;0;189;1;Spese correnti;Trasferimenti correnti;Trasferimenti correnti a Famiglie;Interventi assistenziali;Altri assegni e sussidi assistenziali;;;;;;;;;;;;
1328;134,35;OMESSO NOMINATIVO NEL RISPETTO DELLA NORMATIVA SULLA PROTEZIONE DATI PERSONALI; ;13/09/2023;1920;15;142;1;Spese correnti;Trasferimenti correnti;Trasferimenti correnti a Famiglie;Interventi assistenziali;Altri assegni e sussidi assistenziali;;;;;;;;;;;;
1329;312,5;OMESSO NOMINATIVO NEL RISPETTO DELLA NORMATIVA SULLA PROTEZIONE DATI PERSONALI; ;13/09/2023;1920;15;187;1;Spese correnti;Trasferimenti correnti;Trasferimenti correnti a Famiglie;Interventi assistenziali;Altri assegni e sussidi assistenziali;;;;;;;;;;;;
1330;625;OMESSO NOMINATIVO NEL RISPETTO DELLA NORMATIVA SULLA PROTEZIONE DATI PERSONALI; ;13/09/2023;1920;15;178;1;Spese correnti;Trasferimenti correnti;Trasferimenti correnti a Famiglie;Interventi assistenziali;Altri assegni e sussidi assistenziali;;;;;;;;;;;;
1331;682,5;OMESSO NOMINATIVO NEL RISPETTO DELLA NORMATIVA SULLA PROTEZIONE DATI PERSONALI; ;13/09/2023;1920;15;172;1;Spese correnti;Trasferimenti correnti;Trasferimenti correnti a Famiglie;Interventi assistenziali;Altri assegni e sussidi assistenziali;;;;;;;;;;;;
1332;682,5;OMESSO NOMINATIVO NEL RISPETTO DELLA NORMATIVA SULLA PROTEZIONE DATI PERSONALI; ;13/09/2023;1920;15;162;1;Spese correnti;Trasferimenti correnti;Trasferimenti correnti a Famiglie;Interventi assistenziali;Altri assegni e sussidi assistenziali;;;;;;;;;;;;
1333;485;OMESSO NOMINATIVO NEL RISPETTO DELLA NORMATIVA SULLA PROTEZIONE DATI PERSONALI; ;13/09/2023;1920;15;161;1;Spese correnti;Trasferimenti correnti;Trasferimenti correnti a Famiglie;Interventi assistenziali;Altri assegni e sussidi assistenziali;;;;;;;;;;;;
1334;363,75;OMESSO NOMINATIVO NEL RISPETTO DELLA NORMATIVA SULLA PROTEZIONE DATI PERSONALI; ;13/09/2023;1920;15;160;1;Spese correnti;Trasferimenti correnti;Trasferimenti correnti a Famiglie;Interventi assistenziali;Altri assegni e sussidi assistenziali;;;;;;;;;;;;
1335;625;OMESSO NOMINATIVO NEL RISPETTO DELLA NORMATIVA SULLA PROTEZIONE DATI PERSONALI; ;13/09/2023;1920;15;154;1;Spese correnti;Trasferimenti correnti;Trasferimenti correnti a Famiglie;Interventi assistenziali;Altri assegni e sussidi assistenziali;;;;;;;;;;;;
1336;1.971,67;OMESSO NOMINATIVO NEL RISPETTO DELLA NORMATIVA SULLA PROTEZIONE DATI PERSONALI; ;13/09/2023;1920;15;153;1;Spese correnti;Trasferimenti correnti;Trasferimenti correnti a Famiglie;Interventi assistenziali;Altri assegni e sussidi assistenziali;;;;;;;;;;;;
1337;1.427,71;OMESSO NOMINATIVO NEL RISPETTO DELLA NORMATIVA SULLA PROTEZIONE DATI PERSONALI; ;13/09/2023;1920;0;260;1;Spese correnti;Trasferimenti correnti;Trasferimenti correnti a Famiglie;Interventi assistenziali;Altri assegni e sussidi assistenziali;;;;;;;;;;;;
1338;250;OMESSO NOMINATIVO NEL RISPETTO DELLA NORMATIVA SULLA PROTEZIONE DATI PERSONALI; ;13/09/2023;1920;15;152;1;Spese correnti;Trasferimenti correnti;Trasferimenti correnti a Famiglie;Interventi assistenziali;Altri assegni e sussidi assistenziali;;;;;;;;;;;;
1339;363,74;COOP. SOCIALE ADEST A R.L. ONLUS; ;13/09/2023;1920;15;149;1;Spese correnti;Trasferimenti correnti;Trasferimenti correnti a Famiglie;Interventi assistenziali;Altri assegni e sussidi assistenziali;;;;;;;;;;;;
1340;400;OMESSO NOMINATIVO NEL RISPETTO DELLA NORMATIVA SULLA PROTEZIONE DATI PERSONALI; ;13/09/2023;1920;15;257;1;Spese correnti;Trasferimenti correnti;Trasferimenti correnti a Famiglie;Interventi assistenziali;Altri assegni e sussidi assistenziali;;;;;;;;;;;;
1341;983,32;ISAR COOPERATIVA SOCIALE ONLUS;Z6E33B9DBA;13/09/2023;1036;0;69;1;Spese correnti;Acquisto di beni e servizi;Acquisto di servizi;Servizi ausiliari per il funzionamento dell'ente;Servizi di pulizia e lavanderia;;;;;;;;;;;;
1342;1.516,45;OMESSO NOMINATIVO NEL RISPETTO DELLA NORMATIVA SULLA PROTEZIONE DATI PERSONALI; ;13/09/2023;1920;15;157;1;Spese correnti;Trasferimenti correnti;Trasferimenti correnti a Famiglie;Interventi assistenziali;Altri assegni e sussidi assistenziali;;;;;;;;;;;;
1374;7.668,04;COMUNE DI GIBA; ;22/09/2023;1348;0;295;1;Spese correnti;Acquisto di beni e servizi;Acquisto di servizi;Altri servizi;Altri servizi diversi n.a.c.;;;;;;;;;;;;
1375;640,5;SAIU ELETTROSERVICE DI CADDIA GIOVANNA ANGELA;Z0D380CD3E;22/09/2023;1938;0;59;1;Spese correnti;Acquisto di beni e servizi;Acquisto di servizi;Contratti di servizio pubblico;Contratti di servizio per l'illuminazione pubblica;;;;;;;;;;;;
1376;5.875,84;TEKNOSERVICE S.R.L.;9922029D57;22/09/2023;1738;0;246;1;Spese correnti;Acquisto di beni e servizi;Acquisto di servizi;Contratti di servizio pubblico;Contratti di servizio per la raccolta rifiuti;;;;;;;;;;;;
1377;23,36;E-DISTRIBUZIONE S.P.A. (ENEL); ;22/09/2023;1087;2;296;1;Spese correnti;Acquisto di beni e servizi;Acquisto di servizi;Utenze e canoni;Energia elettrica;;;;;;;;;;;;
1378;198,5;ASMEL; ;22/09/2023;1099;0;292;1;Spese correnti;Acquisto di beni e servizi;Acquisto di servizi;Altri servizi;Quote di associazioni;;;;;;;;;;;;
1379;1.508,91;ENTE DI GOVERNO DELL'AMBITO DELLA SARDEGNA; ;22/09/2023;1093;0;291;1;Spese correnti;Trasferimenti correnti;Trasferimenti correnti a Amministrazioni Pubbliche;Trasferimenti correnti a Amministrazioni Locali;Trasferimenti correnti a altre Amministrazioni Locali n.a.c.;;;;;;;;;;;;
1380;527,8;OMESSO NOMINATIVO NEL RISPETTO DELLA NORMATIVA SULLA PROTEZIONE DATI PERSONALI; ;22/09/2023;1920;0;190;1;Spese correnti;Trasferimenti correnti;Trasferimenti correnti a Famiglie;Interventi assistenziali;Altri assegni e sussidi assistenziali;;;;;;;;;;;;
1381;1.220,00;CLINCO MARINELLA MATERIALI EDILI;Z193A8C5B5;22/09/2023;1742;0;320;1;Spese correnti;Acquisto di beni e servizi;Acquisto di servizi;Altri servizi;Altri servizi diversi n.a.c.;;;;;;;;;;;;
1382;1.708,00;ECOGREEN COOPERATIVA SOCIALE;Z1F3BBC18C;22/09/2023;1089;1;240;1;Spese correnti;Acquisto di beni e servizi;Acquisto di servizi;Manutenzione ordinaria e riparazioni;Manutenzione ordinaria e riparazioni di beni immobili;;;;;;;;;;;;
1383;400;CAMBULA RITA;Z4D3C00185;22/09/2023;1043;0;271;1;Spese correnti;Acquisto di beni e servizi;Acquisto di beni;Altri beni di consumo;Generi alimentari;;;;;;;;;;;;
1384;6.379,36;ECOGREEN COOPERATIVA SOCIALE;967226800F;26/09/2023;1742;0;320;1;Spese correnti;Acquisto di beni e servizi;Acquisto di servizi;Altri servizi;Altri servizi diversi n.a.c.;;;;;;;;;;;;
1385;6.271,78;ECOGREEN COOPERATIVA SOCIALE;9669337D4E;26/09/2023;1092;1;100;1;Spese correnti;Acquisto di beni e servizi;Acquisto di servizi;Altri servizi;Acquisto di sevizi per verde e arredo urbano;;;;;;;;;;;;
1386;115,07;TECNOCASIC  S.P.A.;ZF9396C612;26/09/2023;1739;0;2;1;Spese correnti;Acquisto di beni e servizi;Acquisto di servizi;Contratti di servizio pubblico;Contratti di servizio per il conferimento in discarica dei rifiuti;;;;;;;;;;;;
1386;1.035,71;TECNOCASIC  S.P.A.;ZF9396C612;26/09/2023;1739;0;2;1;Spese correnti;Acquisto di beni e servizi;Acquisto di servizi;Contratti di servizio pubblico;Contratti di servizio per il conferimento in discarica dei rifiuti;;;;;;;;;;;;
1387;916,91;VERDE VITA SRL;ZE2396C1D5;26/09/2023;1739;0;1;1;Spese correnti;Acquisto di beni e servizi;Acquisto di servizi;Contratti di servizio pubblico;Contratti di servizio per il conferimento in discarica dei rifiuti;;;;;;;;;;;;
1388;1.956,15;DIVERSI; ;26/09/2023;1001;0;10;1;Spese correnti;Acquisto di beni e servizi;Acquisto di servizi;Organi e incarichi istituzionali dell'amministrazione;Organi istituzionali dell'amministrazione - Indennità;;;;;;;;;;;;
1391;-1.513,64;ABBANOA S.P.A.; ;29/09/2023;1087;3;208;1;Spese correnti;Acquisto di beni e servizi;Acquisto di servizi;Utenze e canoni;Acqua;;;;;;;;;;;;
1391;-597,56;ABBANOA S.P.A.; ;29/09/2023;1087;3;208;1;Spese correnti;Acquisto di beni e servizi;Acquisto di servizi;Utenze e canoni;Acqua;;;;;;;;;;;;
1391;-72;ABBANOA S.P.A.; ;29/09/2023;1087;3;208;1;Spese correnti;Acquisto di beni e servizi;Acquisto di servizi;Utenze e canoni;Acqua;;;;;;;;;;;;
1391;39,26;ABBANOA S.P.A.; ;29/09/2023;1087;3;208;1;Spese correnti;Acquisto di beni e servizi;Acquisto di servizi;Utenze e canoni;Acqua;;;;;;;;;;;;
1391;625,88;ABBANOA S.P.A.; ;29/09/2023;1087;3;208;1;Spese correnti;Acquisto di beni e servizi;Acquisto di servizi;Utenze e canoni;Acqua;;;;;;;;;;;;
1391;1.588,19;ABBANOA S.P.A.; ;29/09/2023;1087;3;208;1;Spese correnti;Acquisto di beni e servizi;Acquisto di servizi;Utenze e canoni;Acqua;;;;;;;;;;;;
1392;290;PALMAS ROBERTINA; ;29/09/2023;1919;6;205;1;Spese correnti;Trasferimenti correnti;Trasferimenti correnti a Famiglie;Interventi assistenziali;Altri assegni e sussidi assistenziali;;;;;;;;;;;;
1393;106;PALMAS ROBERTINA; ;29/09/2023;1919;6;315;1;Spese correnti;Trasferimenti correnti;Trasferimenti correnti a Famiglie;Interventi assistenziali;Altri assegni e sussidi assistenziali;;;;;;;;;;;;
1394;2.062,94;CONTRAMILONGA Associazione Culturale; ;29/09/2023;1521;1;255;1;Spese correnti;Acquisto di beni e servizi;Acquisto di servizi;Altri servizi;Altri servizi diversi n.a.c.;;;;;;;;;;;;
1395;5.000,00;TECNO SIGNAL S.R.L.;9969665BD0;29/09/2023;3479;0;267;2;Spese in conto capitale;Investimenti fissi lordi e acquisto di terreni;Beni materiali;Beni immobili;Altre vie di comunicazione;;;;;;;;;;;;
1396;4.150,00;TECNO SIGNAL S.R.L.;9969665BD0;29/09/2023;3482;0;268;2;Spese in conto capitale;Investimenti fissi lordi e acquisto di terreni;Beni materiali;Beni immobili;Altre vie di comunicazione;;;;;;;;;;;;
1397;71.986,01;VERI VINCENZO S.R.L.;9813121B9E;29/09/2023;3483;0;194;2;Spese in conto capitale;Investimenti fissi lordi e acquisto di terreni;Beni materiali;Beni immobili;Altre vie di comunicazione;;;;;;;;;;;;
1398;33.421,99;VERI VINCENZO S.R.L.;9813121B9E;29/09/2023;3481;1;195;2;Spese in conto capitale;Investimenti fissi lordi e acquisto di terreni;Beni materiali;Beni immobili;Altre vie di comunicazione;;;;;;;;;;;;
1399;-283,97;ENEL ENERGIA S.P.A.;9146558A6E;29/09/2023;1937;0;70;1;Spese correnti;Acquisto di beni e servizi;Acquisto di servizi;Utenze e canoni;Energia elettrica;;;;;;;;;;;;
1399;33,06;ENEL ENERGIA S.P.A.;9146558A6E;29/09/2023;1937;0;70;1;Spese correnti;Acquisto di beni e servizi;Acquisto di servizi;Utenze e canoni;Energia elettrica;;;;;;;;;;;;
1399;169,96;ENEL ENERGIA S.P.A.;9146558A6E;29/09/2023;1937;0;70;1;Spese correnti;Acquisto di beni e servizi;Acquisto di servizi;Utenze e canoni;Energia elettrica;;;;;;;;;;;;
1399;288,75;ENEL ENERGIA S.P.A.;9146558A6E;29/09/2023;1937;0;70;1;Spese correnti;Acquisto di beni e servizi;Acquisto di servizi;Utenze e canoni;Energia elettrica;;;;;;;;;;;;
1399;530,05;ENEL ENERGIA S.P.A.;9146558A6E;29/09/2023;1937;0;70;1;Spese correnti;Acquisto di beni e servizi;Acquisto di servizi;Utenze e canoni;Energia elettrica;;;;;;;;;;;;
1399;932,34;ENEL ENERGIA S.P.A.;9146558A6E;29/09/2023;1937;0;70;1;Spese correnti;Acquisto di beni e servizi;Acquisto di servizi;Utenze e canoni;Energia elettrica;;;;;;;;;;;;
1400;34,33;ENEL ENERGIA S.P.A.;Z933563740;29/09/2023;1743;0;293;1;Spese correnti;Acquisto di beni e servizi;Acquisto di servizi;Utenze e canoni;Energia elettrica;;;;;;;;;;;;
1401;79;ENEL ENERGIA S.P.A.;9146558A6E;29/09/2023;1656;1;76;1;Spese correnti;Acquisto di beni e servizi;Acquisto di servizi;Utenze e canoni;Energia elettrica;;;;;;;;;;;;
1402;186,12;ENEL ENERGIA S.P.A.;9146558A6E;29/09/2023;1386;2;71;1;Spese correnti;Acquisto di beni e servizi;Acquisto di servizi;Utenze e canoni;Energia elettrica;;;;;;;;;;;;
1403;224,72;ENEL ENERGIA S.P.A.;9146558A6E;29/09/2023;1090;0;77;1;Spese correnti;Acquisto di beni e servizi;Acquisto di servizi;Utenze e canoni;Energia elettrica;;;;;;;;;;;;
1404;27,72;ENEL ENERGIA S.P.A.;9146558A6E;29/09/2023;1087;2;73;1;Spese correnti;Acquisto di beni e servizi;Acquisto di servizi;Utenze e canoni;Energia elettrica;;;;;;;;;;;;
1404;82,64;ENEL ENERGIA S.P.A.;9146558A6E;29/09/2023;1087;2;73;1;Spese correnti;Acquisto di beni e servizi;Acquisto di servizi;Utenze e canoni;Energia elettrica;;;;;;;;;;;;
1404;1.038,07;ENEL ENERGIA S.P.A.;9146558A6E;29/09/2023;1087;2;73;1;Spese correnti;Acquisto di beni e servizi;Acquisto di servizi;Utenze e canoni;Energia elettrica;;;;;;;;;;;;
1405;72,13;ENEL ENERGIA S.P.A.;9146558A6E;29/09/2023;1826;1;74;1;Spese correnti;Acquisto di beni e servizi;Acquisto di servizi;Utenze e canoni;Energia elettrica;;;;;;;;;;;;
1405;509,12;ENEL ENERGIA S.P.A.;9146558A6E;29/09/2023;1826;1;74;1;Spese correnti;Acquisto di beni e servizi;Acquisto di servizi;Utenze e canoni;Energia elettrica;;;;;;;;;;;;
1406;18,97;ENEL ENERGIA S.P.A.;9146558A6E;29/09/2023;1526;0;75;1;Spese correnti;Acquisto di beni e servizi;Acquisto di servizi;Utenze e canoni;Energia elettrica;;;;;;;;;;;;
1406;196,86;ENEL ENERGIA S.P.A.;9146558A6E;29/09/2023;1526;0;75;1;Spese correnti;Acquisto di beni e servizi;Acquisto di servizi;Utenze e canoni;Energia elettrica;;;;;;;;;;;;
1406;566,67;ENEL ENERGIA S.P.A.;9146558A6E;29/09/2023;1526;0;75;1;Spese correnti;Acquisto di beni e servizi;Acquisto di servizi;Utenze e canoni;Energia elettrica;;;;;;;;;;;;
1407;18,19;ENEL ENERGIA S.P.A.;ZA135CD269;29/09/2023;1939;0;294;1;Spese correnti;Acquisto di beni e servizi;Acquisto di servizi;Utenze e canoni;Energia elettrica;;;;;;;;;;;;
1407;165,33;ENEL ENERGIA S.P.A.;9146558A6E;29/09/2023;1939;0;294;1;Spese correnti;Acquisto di beni e servizi;Acquisto di servizi;Utenze e canoni;Energia elettrica;;;;;;;;;;;;
1407;319,24;ENEL ENERGIA S.P.A.;9146558A6E;29/09/2023;1939;0;294;1;Spese correnti;Acquisto di beni e servizi;Acquisto di servizi;Utenze e canoni;Energia elettrica;;;;;;;;;;;;
1409;1.000,00;ASSOCIAZIONE PRO-LOCO PISCINAS; ;02/10/2023;1520;0;299;1;Spese correnti;Trasferimenti correnti;Trasferimenti correnti a Istituzioni Sociali Private;Trasferimenti correnti a Istituzioni Sociali Private;Trasferimenti correnti a Istituzioni Sociali Private;;;;;;;;;;;;
1410;32,85;ECONOMO COMUNALE USAI MARIA CARMINE; ;03/10/2023;1046;2;121;1;Spese correnti;Acquisto di beni e servizi;Acquisto di servizi;Servizi amministrativi;Spese postali;;;;;;;;;;;;
1411;24,99;ECONOMO COMUNALE USAI MARIA CARMINE; ;03/10/2023;1054;0;123;1;Spese correnti;Acquisto di beni e servizi;Acquisto di servizi;Servizi finanziari;Oneri per servizio di tesoreria;;;;;;;;;;;;
1413;28;ECONOMO COMUNALE USAI MARIA CARMINE; ;03/10/2023;1057;3;122;1;Spese correnti;Acquisto di beni e servizi;Acquisto di servizi;Manutenzione ordinaria e riparazioni;Manutenzione ordinaria e riparazioni di mezzi di trasporto ad uso civile, di sicurezza e ordine pubblico;;;;;;;;;;;;
1414;74,36;ECONOMO COMUNALE USAI MARIA CARMINE; ;03/10/2023;1089;0;124;1;Spese correnti;Acquisto di beni e servizi;Acquisto di beni;Altri beni di consumo;Altri beni e materiali di consumo n.a.c.;;;;;;;;;;;;
1415;25;ECONOMO COMUNALE USAI MARIA CARMINE; ;03/10/2023;1089;1;125;1;Spese correnti;Acquisto di beni e servizi;Acquisto di servizi;Manutenzione ordinaria e riparazioni;Manutenzione ordinaria e riparazioni di beni immobili;;;;;;;;;;;;
1416;250;OMESSO NOMINATIVO NEL RISPETTO DELLA NORMATIVA SULLA PROTEZIONE DATI PERSONALI; ;03/10/2023;1920;13;230;1;Spese correnti;Acquisto di beni e servizi;Acquisto di servizi;Prestazioni professionali e specialistiche;Altre prestazioni professionali e specialistiche n.a.c.;;;;;;;;;;;;
1417;240;SOGGETTI DIVERSI; ;03/10/2023;1919;6;343;1;Spese correnti;Trasferimenti correnti;Trasferimenti correnti a Famiglie;Interventi assistenziali;Altri assegni e sussidi assistenziali;;;;;;;;;;;;
1418;405;SOGGETTI DIVERSI; ;03/10/2023;1919;6;343;1;Spese correnti;Trasferimenti correnti;Trasferimenti correnti a Famiglie;Interventi assistenziali;Altri assegni e sussidi assistenziali;;;;;;;;;;;;
1419;320;SOGGETTI DIVERSI; ;03/10/2023;1919;6;205;1;Spese correnti;Trasferimenti correnti;Trasferimenti correnti a Famiglie;Interventi assistenziali;Altri assegni e sussidi assistenziali;;;;;;;;;;;;
1420;300;SOGGETTI DIVERSI; ;03/10/2023;1919;6;205;1;Spese correnti;Trasferimenti correnti;Trasferimenti correnti a Famiglie;Interventi assistenziali;Altri assegni e sussidi assistenziali;;;;;;;;;;;;
1421;225;SOGGETTI DIVERSI; ;03/10/2023;1919;6;205;1;Spese correnti;Trasferimenti correnti;Trasferimenti correnti a Famiglie;Interventi assistenziali;Altri assegni e sussidi assistenziali;;;;;;;;;;;;
1422;230;SOGGETTI DIVERSI; ;03/10/2023;1919;6;205;1;Spese correnti;Trasferimenti correnti;Trasferimenti correnti a Famiglie;Interventi assistenziali;Altri assegni e sussidi assistenziali;;;;;;;;;;;;
1423;320;SOGGETTI DIVERSI; ;03/10/2023;1919;6;205;1;Spese correnti;Trasferimenti correnti;Trasferimenti correnti a Famiglie;Interventi assistenziali;Altri assegni e sussidi assistenziali;;;;;;;;;;;;
1424;515,44;SOGGETTI DIVERSI; ;03/10/2023;1916;0;79;1;Spese correnti;Trasferimenti correnti;Trasferimenti correnti a Famiglie;Interventi assistenziali;Altri assegni e sussidi assistenziali;;;;;;;;;;;;
1425;464,82;SOGGETTI DIVERSI; ;03/10/2023;1916;0;79;1;Spese correnti;Trasferimenti correnti;Trasferimenti correnti a Famiglie;Interventi assistenziali;Altri assegni e sussidi assistenziali;;;;;;;;;;;;
1426;490,13;SOGGETTI DIVERSI; ;03/10/2023;1916;0;79;1;Spese correnti;Trasferimenti correnti;Trasferimenti correnti a Famiglie;Interventi assistenziali;Altri assegni e sussidi assistenziali;;;;;;;;;;;;
1427;540,75;SOGGETTI DIVERSI; ;03/10/2023;1916;0;79;1;Spese correnti;Trasferimenti correnti;Trasferimenti correnti a Famiglie;Interventi assistenziali;Altri assegni e sussidi assistenziali;;;;;;;;;;;;
1428;591,37;SOGGETTI DIVERSI; ;03/10/2023;1916;0;79;1;Spese correnti;Trasferimenti correnti;Trasferimenti correnti a Famiglie;Interventi assistenziali;Altri assegni e sussidi assistenziali;;;;;;;;;;;;
1429;490,13;SOGGETTI DIVERSI; ;03/10/2023;1916;0;79;1;Spese correnti;Trasferimenti correnti;Trasferimenti correnti a Famiglie;Interventi assistenziali;Altri assegni e sussidi assistenziali;;;;;;;;;;;;
1430;199,04;SOGGETTI DIVERSI; ;03/10/2023;1920;15;181;1;Spese correnti;Trasferimenti correnti;Trasferimenti correnti a Famiglie;Interventi assistenziali;Altri assegni e sussidi assistenziali;;;;;;;;;;;;
1431;121,44;OMESSO NOMINATIVO NEL RISPETTO DELLA NORMATIVA SULLA PROTEZIONE DATI PERSONALI; ;03/10/2023;1920;15;177;1;Spese correnti;Trasferimenti correnti;Trasferimenti correnti a Famiglie;Interventi assistenziali;Altri assegni e sussidi assistenziali;;;;;;;;;;;;
1432;2.579,20;SOGGETTI DIVERSI; ;03/10/2023;3445;0;336;2;Spese in conto capitale;Contributi agli investimenti;Contributi agli investimenti a Famiglie;Contributi agli investimenti a Famiglie;Contributi agli investimenti a Famiglie;;;;;;;;;;;;
1433;774,57;OMESSO NOMINATIVO NEL RISPETTO DELLA NORMATIVA SULLA PROTEZIONE DATI PERSONALI; ;03/10/2023;1920;0;192;1;Spese correnti;Trasferimenti correnti;Trasferimenti correnti a Famiglie;Interventi assistenziali;Altri assegni e sussidi assistenziali;;;;;;;;;;;;
1434;377,61;OMESSO NOMINATIVO NEL RISPETTO DELLA NORMATIVA SULLA PROTEZIONE DATI PERSONALI; ;03/10/2023;1920;0;192;1;Spese correnti;Trasferimenti correnti;Trasferimenti correnti a Famiglie;Interventi assistenziali;Altri assegni e sussidi assistenziali;;;;;;;;;;;;
1435;479,78;SOGGETTI DIVERSI; ;03/10/2023;1916;0;79;1;Spese correnti;Trasferimenti correnti;Trasferimenti correnti a Famiglie;Interventi assistenziali;Altri assegni e sussidi assistenziali;;;;;;;;;;;;
1436;2.912,00;REGIONE AUTONOMA DELLA SARDEGNA; ;09/10/2023;1919;6;312;1;Spese correnti;Trasferimenti correnti;Trasferimenti correnti a Famiglie;Interventi assistenziali;Altri assegni e sussidi assistenziali;;;;;;;;;;;;
1437;0,01;REGIONE AUTONOMA DELLA SARDEGNA; ;09/10/2023;1919;6;313;1;Spese correnti;Trasferimenti correnti;Trasferimenti correnti a Famiglie;Interventi assistenziali;Altri assegni e sussidi assistenziali;;;;;;;;;;;;
1438;2.343,24;REGIONE AUTONOMA DELLA SARDEGNA; ;09/10/2023;1919;6;315;1;Spese correnti;Trasferimenti correnti;Trasferimenti correnti a Famiglie;Interventi assistenziali;Altri assegni e sussidi assistenziali;;;;;;;;;;;;
1439;200;SOGGETTI DIVERSI; ;09/10/2023;1425;0;219;1;Spese correnti;Trasferimenti correnti;Trasferimenti correnti a Famiglie;Borse di studio, dottorati di ricerca e contratti di formazione specialistica area medica;Borse di studio;;;;;;;;;;;;
1440;190;SOGGETTI DIVERSI; ;09/10/2023;1425;0;219;1;Spese correnti;Trasferimenti correnti;Trasferimenti correnti a Famiglie;Borse di studio, dottorati di ricerca e contratti di formazione specialistica area medica;Borse di studio;;;;;;;;;;;;
1441;190;SOGGETTI DIVERSI; ;09/10/2023;1425;0;219;1;Spese correnti;Trasferimenti correnti;Trasferimenti correnti a Famiglie;Borse di studio, dottorati di ricerca e contratti di formazione specialistica area medica;Borse di studio;;;;;;;;;;;;
1442;170;SOGGETTI DIVERSI; ;09/10/2023;1425;0;219;1;Spese correnti;Trasferimenti correnti;Trasferimenti correnti a Famiglie;Borse di studio, dottorati di ricerca e contratti di formazione specialistica area medica;Borse di studio;;;;;;;;;;;;
1443;130;SOGGETTI DIVERSI; ;09/10/2023;1425;0;219;1;Spese correnti;Trasferimenti correnti;Trasferimenti correnti a Famiglie;Borse di studio, dottorati di ricerca e contratti di formazione specialistica area medica;Borse di studio;;;;;;;;;;;;
1444;120;SOGGETTI DIVERSI; ;09/10/2023;1425;0;219;1;Spese correnti;Trasferimenti correnti;Trasferimenti correnti a Famiglie;Borse di studio, dottorati di ricerca e contratti di formazione specialistica area medica;Borse di studio;;;;;;;;;;;;
1445;156,66;OMESSO NOMINATIVO NEL RISPETTO DELLA NORMATIVA SULLA PROTEZIONE DATI PERSONALI; ;09/10/2023;1920;15;258;1;Spese correnti;Trasferimenti correnti;Trasferimenti correnti a Famiglie;Interventi assistenziali;Altri assegni e sussidi assistenziali;;;;;;;;;;;;
1446;160,26;OMESSO NOMINATIVO NEL RISPETTO DELLA NORMATIVA SULLA PROTEZIONE DATI PERSONALI; ;09/10/2023;1920;15;164;1;Spese correnti;Trasferimenti correnti;Trasferimenti correnti a Famiglie;Interventi assistenziali;Altri assegni e sussidi assistenziali;;;;;;;;;;;;
1447;375;OMESSO NOMINATIVO NEL RISPETTO DELLA NORMATIVA SULLA PROTEZIONE DATI PERSONALI; ;09/10/2023;1920;15;146;1;Spese correnti;Trasferimenti correnti;Trasferimenti correnti a Famiglie;Interventi assistenziali;Altri assegni e sussidi assistenziali;;;;;;;;;;;;
1448;292,41;OMESSO NOMINATIVO NEL RISPETTO DELLA NORMATIVA SULLA PROTEZIONE DATI PERSONALI; ;09/10/2023;1920;15;145;1;Spese correnti;Trasferimenti correnti;Trasferimenti correnti a Famiglie;Interventi assistenziali;Altri assegni e sussidi assistenziali;;;;;;;;;;;;
1449;176,25;OMESSO NOMINATIVO NEL RISPETTO DELLA NORMATIVA SULLA PROTEZIONE DATI PERSONALI; ;09/10/2023;1920;15;174;1;Spese correnti;Trasferimenti correnti;Trasferimenti correnti a Famiglie;Interventi assistenziali;Altri assegni e sussidi assistenziali;;;;;;;;;;;;
1450;225,42;SOGGETTI DIVERSI; ;09/10/2023;1920;15;179;1;Spese correnti;Trasferimenti correnti;Trasferimenti correnti a Famiglie;Interventi assistenziali;Altri assegni e sussidi assistenziali;;;;;;;;;;;;
1451;250,08;OMESSO NOMINATIVO NEL RISPETTO DELLA NORMATIVA SULLA PROTEZIONE DATI PERSONALI; ;09/10/2023;1920;15;183;1;Spese correnti;Trasferimenti correnti;Trasferimenti correnti a Famiglie;Interventi assistenziali;Altri assegni e sussidi assistenziali;;;;;;;;;;;;
1452;156,25;OMESSO NOMINATIVO NEL RISPETTO DELLA NORMATIVA SULLA PROTEZIONE DATI PERSONALI; ;09/10/2023;1920;15;186;1;Spese correnti;Trasferimenti correnti;Trasferimenti correnti a Famiglie;Interventi assistenziali;Altri assegni e sussidi assistenziali;;;;;;;;;;;;
1453;753,95;UNIONE DEI COMUNI DEL SULCIS; ;09/10/2023;1095;1;94;1;Spese correnti;Trasferimenti correnti;Trasferimenti correnti a Amministrazioni Pubbliche;Trasferimenti correnti a Amministrazioni Locali;Trasferimenti correnti a Unioni di Comuni;;;;;;;;;;;;
1454;450,72;KUWAIT PETROLEUM ITALIA SPA;Z5235D861D;09/10/2023;1057;0;90;1;Spese correnti;Acquisto di beni e servizi;Acquisto di beni;Altri beni di consumo;Carburanti, combustibili e lubrificanti;;;;;;;;;;;;
1455;627,08;FRANCESCO CONTINI EREDI SAS;ZA33BC2DAE;09/10/2023;1089;2;247;1;Spese correnti;Acquisto di beni e servizi;Acquisto di servizi;Manutenzione ordinaria e riparazioni;Manutenzione ordinaria e riparazioni di attrezzature;;;;;;;;;;;;
1456;640,5;SAIU ELETTROSERVICE DI CADDIA GIOVANNA ANGELA;Z0D380CD3E;09/10/2023;1938;0;59;1;Spese correnti;Acquisto di beni e servizi;Acquisto di servizi;Contratti di servizio pubblico;Contratti di servizio per l'illuminazione pubblica;;;;;;;;;;;;
1457;5.875,84;TEKNOSERVICE S.R.L.;9922029D57;09/10/2023;1738;0;246;1;Spese correnti;Acquisto di beni e servizi;Acquisto di servizi;Contratti di servizio pubblico;Contratti di servizio per la raccolta rifiuti;;;;;;;;;;;;
1458;833,86;VERDE VITA SRL;ZE2396C1D5;09/10/2023;1739;0;1;1;Spese correnti;Acquisto di beni e servizi;Acquisto di servizi;Contratti di servizio pubblico;Contratti di servizio per il conferimento in discarica dei rifiuti;;;;;;;;;;;;
1459;945;COOPERATIVA DIMENSIONE UMANA  a.r.l.  ONLUS;ZDB31B66F8;09/10/2023;1920;12;192;1;Spese correnti;Acquisto di beni e servizi;Acquisto di servizi;Contratti di servizio pubblico;Altre spese per contratti di servizio pubblico;;;;;;;;;;;;
1460;337,96;OMESSO NOMINATIVO NEL RISPETTO DELLA NORMATIVA SULLA PROTEZIONE DATI PERSONALI; ;12/10/2023;1920;15;168;1;Spese correnti;Trasferimenti correnti;Trasferimenti correnti a Famiglie;Interventi assistenziali;Altri assegni e sussidi assistenziali;;;;;;;;;;;;
1461;217,99;OMESSO NOMINATIVO NEL RISPETTO DELLA NORMATIVA SULLA PROTEZIONE DATI PERSONALI; ;12/10/2023;1920;15;142;1;Spese correnti;Trasferimenti correnti;Trasferimenti correnti a Famiglie;Interventi assistenziali;Altri assegni e sussidi assistenziali;;;;;;;;;;;;
1462;166,66;OMESSO NOMINATIVO NEL RISPETTO DELLA NORMATIVA SULLA PROTEZIONE DATI PERSONALI; ;12/10/2023;1920;15;143;1;Spese correnti;Trasferimenti correnti;Trasferimenti correnti a Famiglie;Interventi assistenziali;Altri assegni e sussidi assistenziali;;;;;;;;;;;;
1463;204,11;OMESSO NOMINATIVO NEL RISPETTO DELLA NORMATIVA SULLA PROTEZIONE DATI PERSONALI; ;12/10/2023;1920;15;155;1;Spese correnti;Trasferimenti correnti;Trasferimenti correnti a Famiglie;Interventi assistenziali;Altri assegni e sussidi assistenziali;;;;;;;;;;;;
1464;400;OMESSO NOMINATIVO NEL RISPETTO DELLA NORMATIVA SULLA PROTEZIONE DATI PERSONALI; ;12/10/2023;1920;15;163;1;Spese correnti;Trasferimenti correnti;Trasferimenti correnti a Famiglie;Interventi assistenziali;Altri assegni e sussidi assistenziali;;;;;;;;;;;;
1465;318,88;OMESSO NOMINATIVO NEL RISPETTO DELLA NORMATIVA SULLA PROTEZIONE DATI PERSONALI; ;12/10/2023;1920;15;169;1;Spese correnti;Trasferimenti correnti;Trasferimenti correnti a Famiglie;Interventi assistenziali;Altri assegni e sussidi assistenziali;;;;;;;;;;;;
1466;155;OMESSO NOMINATIVO NEL RISPETTO DELLA NORMATIVA SULLA PROTEZIONE DATI PERSONALI; ;12/10/2023;1920;15;170;1;Spese correnti;Trasferimenti correnti;Trasferimenti correnti a Famiglie;Interventi assistenziali;Altri assegni e sussidi assistenziali;;;;;;;;;;;;
1467;250,52;OMESSO NOMINATIVO NEL RISPETTO DELLA NORMATIVA SULLA PROTEZIONE DATI PERSONALI; ;12/10/2023;1920;15;171;1;Spese correnti;Trasferimenti correnti;Trasferimenti correnti a Famiglie;Interventi assistenziali;Altri assegni e sussidi assistenziali;;;;;;;;;;;;
1468;250;OMESSO NOMINATIVO NEL RISPETTO DELLA NORMATIVA SULLA PROTEZIONE DATI PERSONALI; ;12/10/2023;1920;15;176;1;Spese correnti;Trasferimenti correnti;Trasferimenti correnti a Famiglie;Interventi assistenziali;Altri assegni e sussidi assistenziali;;;;;;;;;;;;
1469;155,13;SOGGETTI DIVERSI; ;12/10/2023;1920;15;181;1;Spese correnti;Trasferimenti correnti;Trasferimenti correnti a Famiglie;Interventi assistenziali;Altri assegni e sussidi assistenziali;;;;;;;;;;;;
1470;340,67;OMESSO NOMINATIVO NEL RISPETTO DELLA NORMATIVA SULLA PROTEZIONE DATI PERSONALI; ;12/10/2023;1920;15;188;1;Spese correnti;Trasferimenti correnti;Trasferimenti correnti a Famiglie;Interventi assistenziali;Altri assegni e sussidi assistenziali;;;;;;;;;;;;
1471;600;OMESSO NOMINATIVO NEL RISPETTO DELLA NORMATIVA SULLA PROTEZIONE DATI PERSONALI; ;12/10/2023;1920;0;282;1;Spese correnti;Trasferimenti correnti;Trasferimenti correnti a Famiglie;Interventi assistenziali;Altri assegni e sussidi assistenziali;;;;;;;;;;;;
1472;1.066,53;OMESSO NOMINATIVO NEL RISPETTO DELLA NORMATIVA SULLA PROTEZIONE DATI PERSONALI; ;12/10/2023;1920;0;189;1;Spese correnti;Trasferimenti correnti;Trasferimenti correnti a Famiglie;Interventi assistenziali;Altri assegni e sussidi assistenziali;;;;;;;;;;;;
1473;279,42;OMESSO NOMINATIVO NEL RISPETTO DELLA NORMATIVA SULLA PROTEZIONE DATI PERSONALI; ;12/10/2023;1920;0;190;1;Spese correnti;Trasferimenti correnti;Trasferimenti correnti a Famiglie;Interventi assistenziali;Altri assegni e sussidi assistenziali;;;;;;;;;;;;
1474;582,55;OMESSO NOMINATIVO NEL RISPETTO DELLA NORMATIVA SULLA PROTEZIONE DATI PERSONALI; ;12/10/2023;1920;0;277;1;Spese correnti;Trasferimenti correnti;Trasferimenti correnti a Famiglie;Interventi assistenziali;Altri assegni e sussidi assistenziali;;;;;;;;;;;;
1475;492,57;OMESSO NOMINATIVO NEL RISPETTO DELLA NORMATIVA SULLA PROTEZIONE DATI PERSONALI; ;12/10/2023;1920;15;185;1;Spese correnti;Trasferimenti correnti;Trasferimenti correnti a Famiglie;Interventi assistenziali;Altri assegni e sussidi assistenziali;;;;;;;;;;;;
1476;66,21;OMESSO NOMINATIVO NEL RISPETTO DELLA NORMATIVA SULLA PROTEZIONE DATI PERSONALI; ;12/10/2023;1920;0;193;1;Spese correnti;Trasferimenti correnti;Trasferimenti correnti a Famiglie;Interventi assistenziali;Altri assegni e sussidi assistenziali;;;;;;;;;;;;
1477;87,23;OMESSO NOMINATIVO NEL RISPETTO DELLA NORMATIVA SULLA PROTEZIONE DATI PERSONALI; ;12/10/2023;1920;0;193;1;Spese correnti;Trasferimenti correnti;Trasferimenti correnti a Famiglie;Interventi assistenziali;Altri assegni e sussidi assistenziali;;;;;;;;;;;;
1478;321,32;OMESSO NOMINATIVO NEL RISPETTO DELLA NORMATIVA SULLA PROTEZIONE DATI PERSONALI; ;12/10/2023;1920;0;280;1;Spese correnti;Trasferimenti correnti;Trasferimenti correnti a Famiglie;Interventi assistenziali;Altri assegni e sussidi assistenziali;;;;;;;;;;;;
1479;300,3;OMESSO NOMINATIVO NEL RISPETTO DELLA NORMATIVA SULLA PROTEZIONE DATI PERSONALI; ;12/10/2023;1920;0;280;1;Spese correnti;Trasferimenti correnti;Trasferimenti correnti a Famiglie;Interventi assistenziali;Altri assegni e sussidi assistenziali;;;;;;;;;;;;
1480;1.189,98;OMESSO NOMINATIVO NEL RISPETTO DELLA NORMATIVA SULLA PROTEZIONE DATI PERSONALI; ;12/10/2023;1920;0;191;1;Spese correnti;Trasferimenti correnti;Trasferimenti correnti a Famiglie;Interventi assistenziali;Altri assegni e sussidi assistenziali;;;;;;;;;;;;
1481;328,82;OMESSO NOMINATIVO NEL RISPETTO DELLA NORMATIVA SULLA PROTEZIONE DATI PERSONALI; ;12/10/2023;1920;0;278;1;Spese correnti;Trasferimenti correnti;Trasferimenti correnti a Famiglie;Interventi assistenziali;Altri assegni e sussidi assistenziali;;;;;;;;;;;;
1482;425;ABILTECNO Societa' Cooperativa Onlus; ;12/10/2023;1919;6;343;1;Spese correnti;Trasferimenti correnti;Trasferimenti correnti a Famiglie;Interventi assistenziali;Altri assegni e sussidi assistenziali;;;;;;;;;;;;
1483;145,81;OMESSO NOMINATIVO NEL RISPETTO DELLA NORMATIVA SULLA PROTEZIONE DATI PERSONALI; ;12/10/2023;1920;15;184;1;Spese correnti;Trasferimenti correnti;Trasferimenti correnti a Famiglie;Interventi assistenziali;Altri assegni e sussidi assistenziali;;;;;;;;;;;;
1484;77,39;SOGGETTI DIVERSI; ;12/10/2023;1917;0;80;1;Spese correnti;Trasferimenti correnti;Trasferimenti correnti a Famiglie;Interventi assistenziali;Altri assegni e sussidi assistenziali;;;;;;;;;;;;
1485;1.096,50;SOGGETTI DIVERSI; ;13/10/2023;1916;0;79;1;Spese correnti;Trasferimenti correnti;Trasferimenti correnti a Famiglie;Interventi assistenziali;Altri assegni e sussidi assistenziali;;;;;;;;;;;;
1486;494,98;OMESSO NOMINATIVO NEL RISPETTO DELLA NORMATIVA SULLA PROTEZIONE DATI PERSONALI; ;13/10/2023;1920;15;156;1;Spese correnti;Trasferimenti correnti;Trasferimenti correnti a Famiglie;Interventi assistenziali;Altri assegni e sussidi assistenziali;;;;;;;;;;;;
1487;182,16;OMESSO NOMINATIVO NEL RISPETTO DELLA NORMATIVA SULLA PROTEZIONE DATI PERSONALI; ;13/10/2023;1920;15;171;1;Spese correnti;Trasferimenti correnti;Trasferimenti correnti a Famiglie;Interventi assistenziali;Altri assegni e sussidi assistenziali;;;;;;;;;;;;
1488;505,12;OMESSO NOMINATIVO NEL RISPETTO DELLA NORMATIVA SULLA PROTEZIONE DATI PERSONALI; ;13/10/2023;1920;15;165;1;Spese correnti;Trasferimenti correnti;Trasferimenti correnti a Famiglie;Interventi assistenziali;Altri assegni e sussidi assistenziali;;;;;;;;;;;;
1489;110;OMESSO NOMINATIVO NEL RISPETTO DELLA NORMATIVA SULLA PROTEZIONE DATI PERSONALI; ;13/10/2023;1920;15;148;1;Spese correnti;Trasferimenti correnti;Trasferimenti correnti a Famiglie;Interventi assistenziali;Altri assegni e sussidi assistenziali;;;;;;;;;;;;
1490;170,62;OMESSO NOMINATIVO NEL RISPETTO DELLA NORMATIVA SULLA PROTEZIONE DATI PERSONALI; ;13/10/2023;1920;15;173;1;Spese correnti;Trasferimenti correnti;Trasferimenti correnti a Famiglie;Interventi assistenziali;Altri assegni e sussidi assistenziali;;;;;;;;;;;;
1491;250;OMESSO NOMINATIVO NEL RISPETTO DELLA NORMATIVA SULLA PROTEZIONE DATI PERSONALI; ;13/10/2023;1920;15;152;1;Spese correnti;Trasferimenti correnti;Trasferimenti correnti a Famiglie;Interventi assistenziali;Altri assegni e sussidi assistenziali;;;;;;;;;;;;
1492;372,29;OMESSO NOMINATIVO NEL RISPETTO DELLA NORMATIVA SULLA PROTEZIONE DATI PERSONALI; ;13/10/2023;1920;0;260;1;Spese correnti;Trasferimenti correnti;Trasferimenti correnti a Famiglie;Interventi assistenziali;Altri assegni e sussidi assistenziali;;;;;;;;;;;;
1493;600;OMESSO NOMINATIVO NEL RISPETTO DELLA NORMATIVA SULLA PROTEZIONE DATI PERSONALI; ;13/10/2023;1920;0;281;1;Spese correnti;Trasferimenti correnti;Trasferimenti correnti a Famiglie;Interventi assistenziali;Altri assegni e sussidi assistenziali;;;;;;;;;;;;
1494;201,27;OMESSO NOMINATIVO NEL RISPETTO DELLA NORMATIVA SULLA PROTEZIONE DATI PERSONALI; ;13/10/2023;1920;15;147;1;Spese correnti;Trasferimenti correnti;Trasferimenti correnti a Famiglie;Interventi assistenziali;Altri assegni e sussidi assistenziali;;;;;;;;;;;;
1495;2.937,72;SOGGETTI DIVERSI; ;17/10/2023;1916;0;79;1;Spese correnti;Trasferimenti correnti;Trasferimenti correnti a Famiglie;Interventi assistenziali;Altri assegni e sussidi assistenziali;;;;;;;;;;;;
1496;232,72;OMESSO NOMINATIVO NEL RISPETTO DELLA NORMATIVA SULLA PROTEZIONE DATI PERSONALI; ;17/10/2023;1920;15;167;1;Spese correnti;Trasferimenti correnti;Trasferimenti correnti a Famiglie;Interventi assistenziali;Altri assegni e sussidi assistenziali;;;;;;;;;;;;
1497;830,22;OMESSO NOMINATIVO NEL RISPETTO DELLA NORMATIVA SULLA PROTEZIONE DATI PERSONALI; ;17/10/2023;1920;15;175;1;Spese correnti;Trasferimenti correnti;Trasferimenti correnti a Famiglie;Interventi assistenziali;Altri assegni e sussidi assistenziali;;;;;;;;;;;;
1498;261,6;OMESSO NOMINATIVO NEL RISPETTO DELLA NORMATIVA SULLA PROTEZIONE DATI PERSONALI; ;17/10/2023;1920;15;144;1;Spese correnti;Trasferimenti correnti;Trasferimenti correnti a Famiglie;Interventi assistenziali;Altri assegni e sussidi assistenziali;;;;;;;;;;;;
1499;395,86;OMESSO NOMINATIVO NEL RISPETTO DELLA NORMATIVA SULLA PROTEZIONE DATI PERSONALI; ;17/10/2023;1920;15;150;1;Spese correnti;Trasferimenti correnti;Trasferimenti correnti a Famiglie;Interventi assistenziali;Altri assegni e sussidi assistenziali;;;;;;;;;;;;
1500;159,37;OMESSO NOMINATIVO NEL RISPETTO DELLA NORMATIVA SULLA PROTEZIONE DATI PERSONALI; ;17/10/2023;1920;15;159;1;Spese correnti;Trasferimenti correnti;Trasferimenti correnti a Famiglie;Interventi assistenziali;Altri assegni e sussidi assistenziali;;;;;;;;;;;;
1501;134,32;MINISTERO  - DIPARTIMENTO AFFARI INTERNI; ;17/10/2023;1037;1;62;1;Spese correnti;Trasferimenti correnti;Trasferimenti correnti a Amministrazioni Pubbliche;Trasferimenti correnti a Amministrazioni Centrali;Trasferimenti correnti a Ministeri;;;;;;;;;;;;
1502;285,43;MINISTERO  - DIPARTIMENTO AFFARI INTERNI; ;17/10/2023;1037;1;62;1;Spese correnti;Trasferimenti correnti;Trasferimenti correnti a Amministrazioni Pubbliche;Trasferimenti correnti a Amministrazioni Centrali;Trasferimenti correnti a Ministeri;;;;;;;;;;;;
1503;2.266,66;PRO.TU.SAR. DI PIRAS RAFFAELE;9344454761;17/10/2023;1417;3;63;1;Spese correnti;Acquisto di beni e servizi;Acquisto di servizi;Contratti di servizio pubblico;Contratti di servizio di trasporto scolastico;;;;;;;;;;;;
1504;983,32;ISAR COOPERATIVA SOCIALE ONLUS;Z6E33B9DBA;17/10/2023;1036;0;69;1;Spese correnti;Acquisto di beni e servizi;Acquisto di servizi;Servizi ausiliari per il funzionamento dell'ente;Servizi di pulizia e lavanderia;;;;;;;;;;;;
1505;3.423,92;HALLEY SARDEGNA S.R.L.;ZD93914A3D;17/10/2023;1043;1;349;1;Spese correnti;Acquisto di beni e servizi;Acquisto di servizi;Servizi informatici e di telecomunicazioni;Gestione e manutenzione applicazioni;;;;;;;;;;;;
1506;829,39;OMESSO NOMINATIVO NEL RISPETTO DELLA NORMATIVA SULLA PROTEZIONE DATI PERSONALI; ;17/10/2023;1920;15;165;1;Spese correnti;Trasferimenti correnti;Trasferimenti correnti a Famiglie;Interventi assistenziali;Altri assegni e sussidi assistenziali;;;;;;;;;;;;
1507;101,16;DIVERSI; ;17/10/2023;1919;6;206;1;Spese correnti;Trasferimenti correnti;Trasferimenti correnti a Famiglie;Interventi assistenziali;Altri assegni e sussidi assistenziali;;;;;;;;;;;;
1508;24,08;INPDAP PRESTAZIONI PREVIDENZIALI; ;17/10/2023;1919;6;206;1;Spese correnti;Trasferimenti correnti;Trasferimenti correnti a Famiglie;Interventi assistenziali;Altri assegni e sussidi assistenziali;;;;;;;;;;;;
1509;8,59;REGIONE AUTONOMA SARDEGNA - I.R.A.P.; ;17/10/2023;1919;6;206;1;Spese correnti;Trasferimenti correnti;Trasferimenti correnti a Famiglie;Interventi assistenziali;Altri assegni e sussidi assistenziali;;;;;;;;;;;;
1523;430,67;OMESSO NOMINATIVO NEL RISPETTO DELLA NORMATIVA SULLA PROTEZIONE DATI PERSONALI;9146558A6E;20/10/2023;1937;0;204;1;Spese correnti;Acquisto di beni e servizi;Acquisto di servizi;Utenze e canoni;Energia elettrica;;;;;;;;;;;;
1554;1.956,15;DIVERSI; ;24/10/2023;1001;0;10;1;Spese correnti;Acquisto di beni e servizi;Acquisto di servizi;Organi e incarichi istituzionali dell'amministrazione;Organi istituzionali dell'amministrazione - Indennità;;;;;;;;;;;;
1557;2.000,00;SOGGETTI DIVERSI; ;24/10/2023;1920;2;305;1;Spese correnti;Trasferimenti correnti;Trasferimenti correnti a Famiglie;Interventi assistenziali;Altri assegni e sussidi assistenziali;;;;;;;;;;;;
1558;2.000,00;SOGGETTI DIVERSI; ;24/10/2023;1920;2;305;1;Spese correnti;Trasferimenti correnti;Trasferimenti correnti a Famiglie;Interventi assistenziali;Altri assegni e sussidi assistenziali;;;;;;;;;;;;
1559;309,88;CEL NETWORK SRL;Z663C83E62;24/10/2023;1087;0;297;1;Spese correnti;Acquisto di beni e servizi;Acquisto di servizi;Servizi informatici e di telecomunicazioni;Gestione e manutenzione applicazioni;;;;;;;;;;;;
1560;65;AGROCUI SRL;ZCC3A8C1FD;24/10/2023;1742;0;320;1;Spese correnti;Acquisto di beni e servizi;Acquisto di servizi;Altri servizi;Altri servizi diversi n.a.c.;;;;;;;;;;;;
1561;773,51;TECNOCASIC  S.P.A.;ZF9396C612;24/10/2023;1739;0;2;1;Spese correnti;Acquisto di beni e servizi;Acquisto di servizi;Contratti di servizio pubblico;Contratti di servizio per il conferimento in discarica dei rifiuti;;;;;;;;;;;;
1562;6.270,50;ECOGREEN COOPERATIVA SOCIALE;967226800F;24/10/2023;1742;0;320;1;Spese correnti;Acquisto di beni e servizi;Acquisto di servizi;Altri servizi;Altri servizi diversi n.a.c.;;;;;;;;;;;;
1563;3.305,59;ECOGREEN COOPERATIVA SOCIALE;9669337D4E;24/10/2023;1092;1;100;1;Spese correnti;Acquisto di beni e servizi;Acquisto di servizi;Altri servizi;Acquisto di sevizi per verde e arredo urbano;;;;;;;;;;;;
1564;117.590,00;NONNIS COSTRUZIONI SRL;9548518652;26/10/2023;3231;0;331;2;Spese in conto capitale;Investimenti fissi lordi e acquisto di terreni;Beni materiali;Beni immobili;Fabbricati ad uso abitativo;;;;;;;;;;;;
1565;38,67;ENEL ENERGIA S.P.A.;9146558A6E;27/10/2023;1937;0;70;1;Spese correnti;Acquisto di beni e servizi;Acquisto di servizi;Utenze e canoni;Energia elettrica;;;;;;;;;;;;
1565;179,95;ENEL ENERGIA S.P.A.;9146558A6E;27/10/2023;1937;0;70;1;Spese correnti;Acquisto di beni e servizi;Acquisto di servizi;Utenze e canoni;Energia elettrica;;;;;;;;;;;;
1565;312,72;ENEL ENERGIA S.P.A.;9146558A6E;27/10/2023;1937;0;70;1;Spese correnti;Acquisto di beni e servizi;Acquisto di servizi;Utenze e canoni;Energia elettrica;;;;;;;;;;;;
1565;573,38;ENEL ENERGIA S.P.A.;9146558A6E;27/10/2023;1937;0;70;1;Spese correnti;Acquisto di beni e servizi;Acquisto di servizi;Utenze e canoni;Energia elettrica;;;;;;;;;;;;
1565;985,82;ENEL ENERGIA S.P.A.;9146558A6E;27/10/2023;1937;0;70;1;Spese correnti;Acquisto di beni e servizi;Acquisto di servizi;Utenze e canoni;Energia elettrica;;;;;;;;;;;;
1566;127,61;ENEL ENERGIA S.P.A.;9146558A6E;27/10/2023;1366;3;72;1;Spese correnti;Acquisto di beni e servizi;Acquisto di servizi;Utenze e canoni;Energia elettrica;;;;;;;;;;;;
1567;34,33;ENEL ENERGIA S.P.A.;Z933563740;27/10/2023;1743;0;293;1;Spese correnti;Acquisto di beni e servizi;Acquisto di servizi;Utenze e canoni;Energia elettrica;;;;;;;;;;;;
1568;76,1;ENEL ENERGIA S.P.A.;9146558A6E;27/10/2023;1656;1;76;1;Spese correnti;Acquisto di beni e servizi;Acquisto di servizi;Utenze e canoni;Energia elettrica;;;;;;;;;;;;
1569;193,96;ENEL ENERGIA S.P.A.;9146558A6E;27/10/2023;1386;2;71;1;Spese correnti;Acquisto di beni e servizi;Acquisto di servizi;Utenze e canoni;Energia elettrica;;;;;;;;;;;;
1570;58,24;ENEL ENERGIA S.P.A.;9146558A6E;27/10/2023;1090;0;77;1;Spese correnti;Acquisto di beni e servizi;Acquisto di servizi;Utenze e canoni;Energia elettrica;;;;;;;;;;;;
1571;29,4;ENEL ENERGIA S.P.A.;9146558A6E;27/10/2023;1087;2;73;1;Spese correnti;Acquisto di beni e servizi;Acquisto di servizi;Utenze e canoni;Energia elettrica;;;;;;;;;;;;
1571;90,37;ENEL ENERGIA S.P.A.;9146558A6E;27/10/2023;1087;2;73;1;Spese correnti;Acquisto di beni e servizi;Acquisto di servizi;Utenze e canoni;Energia elettrica;;;;;;;;;;;;
1571;867,3;ENEL ENERGIA S.P.A.;9146558A6E;27/10/2023;1087;2;73;1;Spese correnti;Acquisto di beni e servizi;Acquisto di servizi;Utenze e canoni;Energia elettrica;;;;;;;;;;;;
1572;49,2;ENEL ENERGIA S.P.A.;9146558A6E;27/10/2023;1826;1;74;1;Spese correnti;Acquisto di beni e servizi;Acquisto di servizi;Utenze e canoni;Energia elettrica;;;;;;;;;;;;
1572;444,4;ENEL ENERGIA S.P.A.;9146558A6E;27/10/2023;1826;1;74;1;Spese correnti;Acquisto di beni e servizi;Acquisto di servizi;Utenze e canoni;Energia elettrica;;;;;;;;;;;;
1573;17,74;ENEL ENERGIA S.P.A.;9146558A6E;27/10/2023;1526;0;75;1;Spese correnti;Acquisto di beni e servizi;Acquisto di servizi;Utenze e canoni;Energia elettrica;;;;;;;;;;;;
1573;123,16;ENEL ENERGIA S.P.A.;9146558A6E;27/10/2023;1526;0;75;1;Spese correnti;Acquisto di beni e servizi;Acquisto di servizi;Utenze e canoni;Energia elettrica;;;;;;;;;;;;
1573;768,95;ENEL ENERGIA S.P.A.;9146558A6E;27/10/2023;1526;0;75;1;Spese correnti;Acquisto di beni e servizi;Acquisto di servizi;Utenze e canoni;Energia elettrica;;;;;;;;;;;;
1574;18,46;ENEL ENERGIA S.P.A.;ZA135CD269;27/10/2023;1939;0;294;1;Spese correnti;Acquisto di beni e servizi;Acquisto di servizi;Utenze e canoni;Energia elettrica;;;;;;;;;;;;
1574;127,58;ENEL ENERGIA S.P.A.;8768366C84;27/10/2023;1939;0;294;1;Spese correnti;Acquisto di beni e servizi;Acquisto di servizi;Utenze e canoni;Energia elettrica;;;;;;;;;;;;
1574;284,58;ENEL ENERGIA S.P.A.;9146558A6E;27/10/2023;1939;0;294;1;Spese correnti;Acquisto di beni e servizi;Acquisto di servizi;Utenze e canoni;Energia elettrica;;;;;;;;;;;;
1576;161,36;MONDOFFICE S.R.L.;Z563B610B0;06/11/2023;1046;0;215;1;Spese correnti;Acquisto di beni e servizi;Acquisto di beni;Altri beni di consumo;Carta, cancelleria e stampati;;;;;;;;;;;;
1577;647,94;OMESSO NOMINATIVO NEL RISPETTO DELLA NORMATIVA SULLA PROTEZIONE DATI PERSONALI; ;06/11/2023;1002;0;316;1;Spese correnti;Acquisto di beni e servizi;Acquisto di servizi;Organi e incarichi istituzionali dell'amministrazione;Organi istituzionali dell'amministrazione - Rimborsi;;;;;;;;;;;;
1578;270,85;FATICONI S.P.A.;Z10310615F;06/11/2023;1087;1;87;1;Spese correnti;Acquisto di beni e servizi;Acquisto di servizi;Utilizzo di beni di terzi;Noleggi di impianti e macchinari;;;;;;;;;;;;
1579;270,84;FATICONI S.P.A.;Z10310615F;06/11/2023;1043;5;86;1;Spese correnti;Acquisto di beni e servizi;Acquisto di servizi;Utilizzo di beni di terzi;Noleggi di impianti e macchinari;;;;;;;;;;;;
1580;320;SOGGETTI DIVERSI; ;07/11/2023;1919;6;205;1;Spese correnti;Trasferimenti correnti;Trasferimenti correnti a Famiglie;Interventi assistenziali;Altri assegni e sussidi assistenziali;;;;;;;;;;;;
1581;25;SOGGETTI DIVERSI; ;07/11/2023;1919;6;205;1;Spese correnti;Trasferimenti correnti;Trasferimenti correnti a Famiglie;Interventi assistenziali;Altri assegni e sussidi assistenziali;;;;;;;;;;;;
1582;225;SOGGETTI DIVERSI; ;07/11/2023;1919;6;205;1;Spese correnti;Trasferimenti correnti;Trasferimenti correnti a Famiglie;Interventi assistenziali;Altri assegni e sussidi assistenziali;;;;;;;;;;;;
1583;25;SOGGETTI DIVERSI; ;07/11/2023;1919;6;205;1;Spese correnti;Trasferimenti correnti;Trasferimenti correnti a Famiglie;Interventi assistenziali;Altri assegni e sussidi assistenziali;;;;;;;;;;;;
1584;230;SOGGETTI DIVERSI; ;07/11/2023;1919;6;205;1;Spese correnti;Trasferimenti correnti;Trasferimenti correnti a Famiglie;Interventi assistenziali;Altri assegni e sussidi assistenziali;;;;;;;;;;;;
1585;290;SOGGETTI DIVERSI; ;07/11/2023;1919;6;205;1;Spese correnti;Trasferimenti correnti;Trasferimenti correnti a Famiglie;Interventi assistenziali;Altri assegni e sussidi assistenziali;;;;;;;;;;;;
1586;250;OMESSO NOMINATIVO NEL RISPETTO DELLA NORMATIVA SULLA PROTEZIONE DATI PERSONALI; ;07/11/2023;1920;13;230;1;Spese correnti;Acquisto di beni e servizi;Acquisto di servizi;Prestazioni professionali e specialistiche;Altre prestazioni professionali e specialistiche n.a.c.;;;;;;;;;;;;
1587;320;SOGGETTI DIVERSI; ;07/11/2023;1919;6;205;1;Spese correnti;Trasferimenti correnti;Trasferimenti correnti a Famiglie;Interventi assistenziali;Altri assegni e sussidi assistenziali;;;;;;;;;;;;
1588;108;SOGGETTI DIVERSI; ;07/11/2023;1919;6;205;1;Spese correnti;Trasferimenti correnti;Trasferimenti correnti a Famiglie;Interventi assistenziali;Altri assegni e sussidi assistenziali;;;;;;;;;;;;
1589;163,86;OMESSO NOMINATIVO NEL RISPETTO DELLA NORMATIVA SULLA PROTEZIONE DATI PERSONALI; ;08/11/2023;1920;15;142;1;Spese correnti;Trasferimenti correnti;Trasferimenti correnti a Famiglie;Interventi assistenziali;Altri assegni e sussidi assistenziali;;;;;;;;;;;;
1590;67,16;SOGGETTI DIVERSI; ;08/11/2023;1917;0;80;1;Spese correnti;Trasferimenti correnti;Trasferimenti correnti a Famiglie;Interventi assistenziali;Altri assegni e sussidi assistenziali;;;;;;;;;;;;
1591;208,3;OMESSO NOMINATIVO NEL RISPETTO DELLA NORMATIVA SULLA PROTEZIONE DATI PERSONALI; ;08/11/2023;1920;0;280;1;Spese correnti;Trasferimenti correnti;Trasferimenti correnti a Famiglie;Interventi assistenziali;Altri assegni e sussidi assistenziali;;;;;;;;;;;;
1592;307,93;OMESSO NOMINATIVO NEL RISPETTO DELLA NORMATIVA SULLA PROTEZIONE DATI PERSONALI; ;08/11/2023;1920;0;280;1;Spese correnti;Trasferimenti correnti;Trasferimenti correnti a Famiglie;Interventi assistenziali;Altri assegni e sussidi assistenziali;;;;;;;;;;;;
1593;1.054,50;OMESSO NOMINATIVO NEL RISPETTO DELLA NORMATIVA SULLA PROTEZIONE DATI PERSONALI; ;08/11/2023;1920;0;279;1;Spese correnti;Trasferimenti correnti;Trasferimenti correnti a Famiglie;Interventi assistenziali;Altri assegni e sussidi assistenziali;;;;;;;;;;;;
1594;489,48;OMESSO NOMINATIVO NEL RISPETTO DELLA NORMATIVA SULLA PROTEZIONE DATI PERSONALI; ;08/11/2023;1920;0;279;1;Spese correnti;Trasferimenti correnti;Trasferimenti correnti a Famiglie;Interventi assistenziali;Altri assegni e sussidi assistenziali;;;;;;;;;;;;
1595;584;OMESSO NOMINATIVO NEL RISPETTO DELLA NORMATIVA SULLA PROTEZIONE DATI PERSONALI; ;09/11/2023;1920;15;157;1;Spese correnti;Trasferimenti correnti;Trasferimenti correnti a Famiglie;Interventi assistenziali;Altri assegni e sussidi assistenziali;;;;;;;;;;;;
1596;156,25;OMESSO NOMINATIVO NEL RISPETTO DELLA NORMATIVA SULLA PROTEZIONE DATI PERSONALI; ;09/11/2023;1920;15;186;1;Spese correnti;Trasferimenti correnti;Trasferimenti correnti a Famiglie;Interventi assistenziali;Altri assegni e sussidi assistenziali;;;;;;;;;;;;
1597;257;OMESSO NOMINATIVO NEL RISPETTO DELLA NORMATIVA SULLA PROTEZIONE DATI PERSONALI; ;09/11/2023;1920;15;170;1;Spese correnti;Trasferimenti correnti;Trasferimenti correnti a Famiglie;Interventi assistenziali;Altri assegni e sussidi assistenziali;;;;;;;;;;;;
1598;506,85;SOGGETTI DIVERSI; ;09/11/2023;1916;0;79;1;Spese correnti;Trasferimenti correnti;Trasferimenti correnti a Famiglie;Interventi assistenziali;Altri assegni e sussidi assistenziali;;;;;;;;;;;;
1599;413,26;SOGGETTI DIVERSI; ;09/11/2023;1920;15;179;1;Spese correnti;Trasferimenti correnti;Trasferimenti correnti a Famiglie;Interventi assistenziali;Altri assegni e sussidi assistenziali;;;;;;;;;;;;
1600;242,42;OMESSO NOMINATIVO NEL RISPETTO DELLA NORMATIVA SULLA PROTEZIONE DATI PERSONALI; ;09/11/2023;1920;15;164;1;Spese correnti;Trasferimenti correnti;Trasferimenti correnti a Famiglie;Interventi assistenziali;Altri assegni e sussidi assistenziali;;;;;;;;;;;;
1601;176,25;OMESSO NOMINATIVO NEL RISPETTO DELLA NORMATIVA SULLA PROTEZIONE DATI PERSONALI; ;09/11/2023;1920;15;174;1;Spese correnti;Trasferimenti correnti;Trasferimenti correnti a Famiglie;Interventi assistenziali;Altri assegni e sussidi assistenziali;;;;;;;;;;;;
1602;156,66;OMESSO NOMINATIVO NEL RISPETTO DELLA NORMATIVA SULLA PROTEZIONE DATI PERSONALI; ;09/11/2023;1920;15;258;1;Spese correnti;Trasferimenti correnti;Trasferimenti correnti a Famiglie;Interventi assistenziali;Altri assegni e sussidi assistenziali;;;;;;;;;;;;
1603;250,08;OMESSO NOMINATIVO NEL RISPETTO DELLA NORMATIVA SULLA PROTEZIONE DATI PERSONALI; ;09/11/2023;1920;15;183;1;Spese correnti;Trasferimenti correnti;Trasferimenti correnti a Famiglie;Interventi assistenziali;Altri assegni e sussidi assistenziali;;;;;;;;;;;;
1604;250;OMESSO NOMINATIVO NEL RISPETTO DELLA NORMATIVA SULLA PROTEZIONE DATI PERSONALI; ;09/11/2023;1920;15;176;1;Spese correnti;Trasferimenti correnti;Trasferimenti correnti a Famiglie;Interventi assistenziali;Altri assegni e sussidi assistenziali;;;;;;;;;;;;
1605;163,08;OMESSO NOMINATIVO NEL RISPETTO DELLA NORMATIVA SULLA PROTEZIONE DATI PERSONALI; ;09/11/2023;1920;15;145;1;Spese correnti;Trasferimenti correnti;Trasferimenti correnti a Famiglie;Interventi assistenziali;Altri assegni e sussidi assistenziali;;;;;;;;;;;;
1606;375;OMESSO NOMINATIVO NEL RISPETTO DELLA NORMATIVA SULLA PROTEZIONE DATI PERSONALI; ;10/11/2023;1920;15;146;1;Spese correnti;Trasferimenti correnti;Trasferimenti correnti a Famiglie;Interventi assistenziali;Altri assegni e sussidi assistenziali;;;;;;;;;;;;
1607;829,39;OMESSO NOMINATIVO NEL RISPETTO DELLA NORMATIVA SULLA PROTEZIONE DATI PERSONALI; ;10/11/2023;1920;15;165;1;Spese correnti;Trasferimenti correnti;Trasferimenti correnti a Famiglie;Interventi assistenziali;Altri assegni e sussidi assistenziali;;;;;;;;;;;;
1608;155,13;OMESSO NOMINATIVO NEL RISPETTO DELLA NORMATIVA SULLA PROTEZIONE DATI PERSONALI; ;10/11/2023;1920;15;167;1;Spese correnti;Trasferimenti correnti;Trasferimenti correnti a Famiglie;Interventi assistenziali;Altri assegni e sussidi assistenziali;;;;;;;;;;;;
1609;337,96;OMESSO NOMINATIVO NEL RISPETTO DELLA NORMATIVA SULLA PROTEZIONE DATI PERSONALI; ;10/11/2023;1920;15;168;1;Spese correnti;Trasferimenti correnti;Trasferimenti correnti a Famiglie;Interventi assistenziali;Altri assegni e sussidi assistenziali;;;;;;;;;;;;
1610;147,18;SOGGETTI DIVERSI; ;10/11/2023;1920;15;181;1;Spese correnti;Trasferimenti correnti;Trasferimenti correnti a Famiglie;Interventi assistenziali;Altri assegni e sussidi assistenziali;;;;;;;;;;;;
1611;951,56;OMESSO NOMINATIVO NEL RISPETTO DELLA NORMATIVA SULLA PROTEZIONE DATI PERSONALI; ;10/11/2023;1920;0;278;1;Spese correnti;Trasferimenti correnti;Trasferimenti correnti a Famiglie;Interventi assistenziali;Altri assegni e sussidi assistenziali;;;;;;;;;;;;
1612;501,51;OMESSO NOMINATIVO NEL RISPETTO DELLA NORMATIVA SULLA PROTEZIONE DATI PERSONALI; ;10/11/2023;1920;0;277;1;Spese correnti;Trasferimenti correnti;Trasferimenti correnti a Famiglie;Interventi assistenziali;Altri assegni e sussidi assistenziali;;;;;;;;;;;;
1613;166,66;OMESSO NOMINATIVO NEL RISPETTO DELLA NORMATIVA SULLA PROTEZIONE DATI PERSONALI; ;10/11/2023;1920;15;143;1;Spese correnti;Trasferimenti correnti;Trasferimenti correnti a Famiglie;Interventi assistenziali;Altri assegni e sussidi assistenziali;;;;;;;;;;;;
1614;96,17;OMESSO NOMINATIVO NEL RISPETTO DELLA NORMATIVA SULLA PROTEZIONE DATI PERSONALI; ;10/11/2023;1920;15;144;1;Spese correnti;Trasferimenti correnti;Trasferimenti correnti a Famiglie;Interventi assistenziali;Altri assegni e sussidi assistenziali;;;;;;;;;;;;
1615;241,3;OMESSO NOMINATIVO NEL RISPETTO DELLA NORMATIVA SULLA PROTEZIONE DATI PERSONALI; ;10/11/2023;1920;15;150;1;Spese correnti;Trasferimenti correnti;Trasferimenti correnti a Famiglie;Interventi assistenziali;Altri assegni e sussidi assistenziali;;;;;;;;;;;;
1616;128,27;OMESSO NOMINATIVO NEL RISPETTO DELLA NORMATIVA SULLA PROTEZIONE DATI PERSONALI; ;10/11/2023;1920;15;155;1;Spese correnti;Trasferimenti correnti;Trasferimenti correnti a Famiglie;Interventi assistenziali;Altri assegni e sussidi assistenziali;;;;;;;;;;;;
1617;161,28;OMESSO NOMINATIVO NEL RISPETTO DELLA NORMATIVA SULLA PROTEZIONE DATI PERSONALI; ;10/11/2023;1920;15;185;1;Spese correnti;Trasferimenti correnti;Trasferimenti correnti a Famiglie;Interventi assistenziali;Altri assegni e sussidi assistenziali;;;;;;;;;;;;
1618;83,27;OMESSO NOMINATIVO NEL RISPETTO DELLA NORMATIVA SULLA PROTEZIONE DATI PERSONALI; ;10/11/2023;1920;15;188;1;Spese correnti;Trasferimenti correnti;Trasferimenti correnti a Famiglie;Interventi assistenziali;Altri assegni e sussidi assistenziali;;;;;;;;;;;;
1619;300;SOGGETTI DIVERSI; ;10/11/2023;1919;6;205;1;Spese correnti;Trasferimenti correnti;Trasferimenti correnti a Famiglie;Interventi assistenziali;Altri assegni e sussidi assistenziali;;;;;;;;;;;;
1620;177,26;OMESSO NOMINATIVO NEL RISPETTO DELLA NORMATIVA SULLA PROTEZIONE DATI PERSONALI; ;10/11/2023;1920;15;184;1;Spese correnti;Trasferimenti correnti;Trasferimenti correnti a Famiglie;Interventi assistenziali;Altri assegni e sussidi assistenziali;;;;;;;;;;;;
1621;318,88;OMESSO NOMINATIVO NEL RISPETTO DELLA NORMATIVA SULLA PROTEZIONE DATI PERSONALI; ;10/11/2023;1920;15;169;1;Spese correnti;Trasferimenti correnti;Trasferimenti correnti a Famiglie;Interventi assistenziali;Altri assegni e sussidi assistenziali;;;;;;;;;;;;
1622;134,71;OMESSO NOMINATIVO NEL RISPETTO DELLA NORMATIVA SULLA PROTEZIONE DATI PERSONALI; ;10/11/2023;1920;15;147;1;Spese correnti;Trasferimenti correnti;Trasferimenti correnti a Famiglie;Interventi assistenziali;Altri assegni e sussidi assistenziali;;;;;;;;;;;;
1623;305,94;OMESSO NOMINATIVO NEL RISPETTO DELLA NORMATIVA SULLA PROTEZIONE DATI PERSONALI; ;10/11/2023;1920;0;189;1;Spese correnti;Trasferimenti correnti;Trasferimenti correnti a Famiglie;Interventi assistenziali;Altri assegni e sussidi assistenziali;;;;;;;;;;;;
1624;760,8;OMESSO NOMINATIVO NEL RISPETTO DELLA NORMATIVA SULLA PROTEZIONE DATI PERSONALI; ;10/11/2023;1920;0;276;1;Spese correnti;Trasferimenti correnti;Trasferimenti correnti a Famiglie;Interventi assistenziali;Altri assegni e sussidi assistenziali;;;;;;;;;;;;
1625;111,27;OMESSO NOMINATIVO NEL RISPETTO DELLA NORMATIVA SULLA PROTEZIONE DATI PERSONALI; ;10/11/2023;1920;0;192;1;Spese correnti;Trasferimenti correnti;Trasferimenti correnti a Famiglie;Interventi assistenziali;Altri assegni e sussidi assistenziali;;;;;;;;;;;;
1626;104,37;OMESSO NOMINATIVO NEL RISPETTO DELLA NORMATIVA SULLA PROTEZIONE DATI PERSONALI; ;10/11/2023;1920;0;192;1;Spese correnti;Trasferimenti correnti;Trasferimenti correnti a Famiglie;Interventi assistenziali;Altri assegni e sussidi assistenziali;;;;;;;;;;;;
1627;208,75;AGENZIA DELLE ENTRATE DIREZIONE PROVINCIALE DI CAGLIARI; ;13/11/2023;1039;0;314;1;Spese correnti;Acquisto di beni e servizi;Acquisto di servizi;Prestazioni professionali e specialistiche;Patrocinio legale;;;;;;;;;;;;
1628;2.000,00;COMUNE DI GIBA; ;13/11/2023;1920;10;127;1;Spese correnti;Acquisto di beni e servizi;Acquisto di servizi;Altri servizi;Altri servizi diversi n.a.c.;;;;;;;;;;;;
1629;488;MEDIANET SRL;Z05390F79B;13/11/2023;1043;2;7;1;Spese correnti;Acquisto di beni e servizi;Acquisto di servizi;Utenze e canoni;Telefonia fissa;;;;;;;;;;;;
1630;912,27;"CARTOLIBRERIA ""LA COLOMBA"""; ;13/11/2023;1368;0;318;1;Spese correnti;Acquisto di beni e servizi;Acquisto di beni;Altri beni di consumo;Carta, cancelleria e stampati;;;;;;;;;;;;
1631;4.000,01;PRO.TU.SAR. DI PIRAS RAFFAELE;9344454761;13/11/2023;1417;3;63;1;Spese correnti;Acquisto di beni e servizi;Acquisto di servizi;Contratti di servizio pubblico;Contratti di servizio di trasporto scolastico;;;;;;;;;;;;
1632;88;LA MERIDIANA S.N.C. DI TRONCI E. & C.;ZA93D26604;13/11/2023;1010;0;320;1;Spese correnti;Acquisto di beni e servizi;Acquisto di beni;Altri beni di consumo;Altri beni e materiali di consumo n.a.c.;;;;;;;;;;;;
1633;91,5;OMESSO NOMINATIVO NEL RISPETTO DELLA NORMATIVA SULLA PROTEZIONE DATI PERSONALI;ZE63D1D89A;13/11/2023;1043;4;319;1;Spese correnti;Acquisto di beni e servizi;Acquisto di servizi;Prestazioni professionali e specialistiche;Altre prestazioni professionali e specialistiche n.a.c.;;;;;;;;;;;;
1634;94;OMESSO NOMINATIVO NEL RISPETTO DELLA NORMATIVA SULLA PROTEZIONE DATI PERSONALI; ;13/11/2023;1920;15;148;1;Spese correnti;Trasferimenti correnti;Trasferimenti correnti a Famiglie;Interventi assistenziali;Altri assegni e sussidi assistenziali;;;;;;;;;;;;
1635;318,02;OMESSO NOMINATIVO NEL RISPETTO DELLA NORMATIVA SULLA PROTEZIONE DATI PERSONALI; ;13/11/2023;1920;15;156;1;Spese correnti;Trasferimenti correnti;Trasferimenti correnti a Famiglie;Interventi assistenziali;Altri assegni e sussidi assistenziali;;;;;;;;;;;;
1636;159,37;OMESSO NOMINATIVO NEL RISPETTO DELLA NORMATIVA SULLA PROTEZIONE DATI PERSONALI; ;13/11/2023;1920;15;159;1;Spese correnti;Trasferimenti correnti;Trasferimenti correnti a Famiglie;Interventi assistenziali;Altri assegni e sussidi assistenziali;;;;;;;;;;;;
1637;170,62;OMESSO NOMINATIVO NEL RISPETTO DELLA NORMATIVA SULLA PROTEZIONE DATI PERSONALI; ;13/11/2023;1920;15;173;1;Spese correnti;Trasferimenti correnti;Trasferimenti correnti a Famiglie;Interventi assistenziali;Altri assegni e sussidi assistenziali;;;;;;;;;;;;
1638;248,68;COMUNE DI PISCINAS; ;14/11/2023;1046;2;198;1;Spese correnti;Acquisto di beni e servizi;Acquisto di servizi;Servizi amministrativi;Spese postali;;;;;;;;;;;;
1639;-983,32;ISAR COOPERATIVA SOCIALE ONLUS;Z6E33B9DBA;15/11/2023;1036;0;69;1;Spese correnti;Acquisto di beni e servizi;Acquisto di servizi;Servizi ausiliari per il funzionamento dell'ente;Servizi di pulizia e lavanderia;;;;;;;;;;;;
1639;983,32;ISAR COOPERATIVA SOCIALE ONLUS;Z6E33B9DBA;15/11/2023;1036;0;69;1;Spese correnti;Acquisto di beni e servizi;Acquisto di servizi;Servizi ausiliari per il funzionamento dell'ente;Servizi di pulizia e lavanderia;;;;;;;;;;;;
1639;983,32;ISAR COOPERATIVA SOCIALE ONLUS;Z6E33B9DBA;15/11/2023;1036;0;69;1;Spese correnti;Acquisto di beni e servizi;Acquisto di servizi;Servizi ausiliari per il funzionamento dell'ente;Servizi di pulizia e lavanderia;;;;;;;;;;;;
1640;363,74;COOP. SOCIALE ADEST A R.L. ONLUS; ;15/11/2023;1920;15;149;1;Spese correnti;Trasferimenti correnti;Trasferimenti correnti a Famiglie;Interventi assistenziali;Altri assegni e sussidi assistenziali;;;;;;;;;;;;
1641;625;OMESSO NOMINATIVO NEL RISPETTO DELLA NORMATIVA SULLA PROTEZIONE DATI PERSONALI; ;15/11/2023;1920;15;154;1;Spese correnti;Trasferimenti correnti;Trasferimenti correnti a Famiglie;Interventi assistenziali;Altri assegni e sussidi assistenziali;;;;;;;;;;;;
1642;363,75;OMESSO NOMINATIVO NEL RISPETTO DELLA NORMATIVA SULLA PROTEZIONE DATI PERSONALI; ;15/11/2023;1920;15;160;1;Spese correnti;Trasferimenti correnti;Trasferimenti correnti a Famiglie;Interventi assistenziali;Altri assegni e sussidi assistenziali;;;;;;;;;;;;
1643;485;OMESSO NOMINATIVO NEL RISPETTO DELLA NORMATIVA SULLA PROTEZIONE DATI PERSONALI; ;15/11/2023;1920;15;161;1;Spese correnti;Trasferimenti correnti;Trasferimenti correnti a Famiglie;Interventi assistenziali;Altri assegni e sussidi assistenziali;;;;;;;;;;;;
1644;682,5;OMESSO NOMINATIVO NEL RISPETTO DELLA NORMATIVA SULLA PROTEZIONE DATI PERSONALI; ;15/11/2023;1920;15;162;1;Spese correnti;Trasferimenti correnti;Trasferimenti correnti a Famiglie;Interventi assistenziali;Altri assegni e sussidi assistenziali;;;;;;;;;;;;
1645;242;OMESSO NOMINATIVO NEL RISPETTO DELLA NORMATIVA SULLA PROTEZIONE DATI PERSONALI; ;15/11/2023;1920;15;170;1;Spese correnti;Trasferimenti correnti;Trasferimenti correnti a Famiglie;Interventi assistenziali;Altri assegni e sussidi assistenziali;;;;;;;;;;;;
1646;271,61;OMESSO NOMINATIVO NEL RISPETTO DELLA NORMATIVA SULLA PROTEZIONE DATI PERSONALI; ;15/11/2023;1920;15;171;1;Spese correnti;Trasferimenti correnti;Trasferimenti correnti a Famiglie;Interventi assistenziali;Altri assegni e sussidi assistenziali;;;;;;;;;;;;
1647;682,5;OMESSO NOMINATIVO NEL RISPETTO DELLA NORMATIVA SULLA PROTEZIONE DATI PERSONALI; ;15/11/2023;1920;15;172;1;Spese correnti;Trasferimenti correnti;Trasferimenti correnti a Famiglie;Interventi assistenziali;Altri assegni e sussidi assistenziali;;;;;;;;;;;;
1648;625;OMESSO NOMINATIVO NEL RISPETTO DELLA NORMATIVA SULLA PROTEZIONE DATI PERSONALI; ;15/11/2023;1920;15;178;1;Spese correnti;Trasferimenti correnti;Trasferimenti correnti a Famiglie;Interventi assistenziali;Altri assegni e sussidi assistenziali;;;;;;;;;;;;
1649;233,34;COOP. SOCIALE ADEST A R.L. ONLUS; ;15/11/2023;1920;15;182;1;Spese correnti;Trasferimenti correnti;Trasferimenti correnti a Famiglie;Interventi assistenziali;Altri assegni e sussidi assistenziali;;;;;;;;;;;;
1650;312,5;OMESSO NOMINATIVO NEL RISPETTO DELLA NORMATIVA SULLA PROTEZIONE DATI PERSONALI; ;15/11/2023;1920;15;187;1;Spese correnti;Trasferimenti correnti;Trasferimenti correnti a Famiglie;Interventi assistenziali;Altri assegni e sussidi assistenziali;;;;;;;;;;;;
1651;1.971,67;OMESSO NOMINATIVO NEL RISPETTO DELLA NORMATIVA SULLA PROTEZIONE DATI PERSONALI; ;15/11/2023;1920;15;153;1;Spese correnti;Trasferimenti correnti;Trasferimenti correnti a Famiglie;Interventi assistenziali;Altri assegni e sussidi assistenziali;;;;;;;;;;;;
1652;250;OMESSO NOMINATIVO NEL RISPETTO DELLA NORMATIVA SULLA PROTEZIONE DATI PERSONALI; ;15/11/2023;1920;15;152;1;Spese correnti;Trasferimenti correnti;Trasferimenti correnti a Famiglie;Interventi assistenziali;Altri assegni e sussidi assistenziali;;;;;;;;;;;;
1653;1.500,00;OMESSO NOMINATIVO NEL RISPETTO DELLA NORMATIVA SULLA PROTEZIONE DATI PERSONALI; ;15/11/2023;1920;0;277;1;Spese correnti;Trasferimenti correnti;Trasferimenti correnti a Famiglie;Interventi assistenziali;Altri assegni e sussidi assistenziali;;;;;;;;;;;;
1654;600;OMESSO NOMINATIVO NEL RISPETTO DELLA NORMATIVA SULLA PROTEZIONE DATI PERSONALI; ;15/11/2023;1920;0;281;1;Spese correnti;Trasferimenti correnti;Trasferimenti correnti a Famiglie;Interventi assistenziali;Altri assegni e sussidi assistenziali;;;;;;;;;;;;
1655;600;OMESSO NOMINATIVO NEL RISPETTO DELLA NORMATIVA SULLA PROTEZIONE DATI PERSONALI; ;15/11/2023;1920;0;282;1;Spese correnti;Trasferimenti correnti;Trasferimenti correnti a Famiglie;Interventi assistenziali;Altri assegni e sussidi assistenziali;;;;;;;;;;;;
1656;-345,05;ABBANOA S.P.A.; ;16/11/2023;1657;0;212;1;Spese correnti;Acquisto di beni e servizi;Acquisto di servizi;Utenze e canoni;Acqua;;;;;;;;;;;;
1656;-292,61;ABBANOA S.P.A.; ;16/11/2023;1657;0;212;1;Spese correnti;Acquisto di beni e servizi;Acquisto di servizi;Utenze e canoni;Acqua;;;;;;;;;;;;
1656;-156,65;ABBANOA S.P.A.; ;16/11/2023;1657;0;212;1;Spese correnti;Acquisto di beni e servizi;Acquisto di servizi;Utenze e canoni;Acqua;;;;;;;;;;;;
1656;54,23;ABBANOA S.P.A.; ;16/11/2023;1657;0;212;1;Spese correnti;Acquisto di beni e servizi;Acquisto di servizi;Utenze e canoni;Acqua;;;;;;;;;;;;
1656;780,44;ABBANOA S.P.A.; ;16/11/2023;1657;0;212;1;Spese correnti;Acquisto di beni e servizi;Acquisto di servizi;Utenze e canoni;Acqua;;;;;;;;;;;;
1657;367,65;ABBANOA S.P.A.; ;16/11/2023;1367;0;209;1;Spese correnti;Acquisto di beni e servizi;Acquisto di servizi;Utenze e canoni;Acqua;;;;;;;;;;;;
1658;38,35;ABBANOA S.P.A.; ;16/11/2023;1387;0;210;1;Spese correnti;Acquisto di beni e servizi;Acquisto di servizi;Utenze e canoni;Acqua;;;;;;;;;;;;
1659;25,67;ABBANOA S.P.A.; ;16/11/2023;1087;3;208;1;Spese correnti;Acquisto di beni e servizi;Acquisto di servizi;Utenze e canoni;Acqua;;;;;;;;;;;;
1659;38,35;ABBANOA S.P.A.; ;16/11/2023;1087;3;208;1;Spese correnti;Acquisto di beni e servizi;Acquisto di servizi;Utenze e canoni;Acqua;;;;;;;;;;;;
1659;187,88;ABBANOA S.P.A.; ;16/11/2023;1087;3;208;1;Spese correnti;Acquisto di beni e servizi;Acquisto di servizi;Utenze e canoni;Acqua;;;;;;;;;;;;
1660;37,25;ABBANOA S.P.A.; ;16/11/2023;1827;0;214;1;Spese correnti;Acquisto di beni e servizi;Acquisto di servizi;Utenze e canoni;Acqua;;;;;;;;;;;;
1660;37,25;ABBANOA S.P.A.; ;16/11/2023;1827;0;214;1;Spese correnti;Acquisto di beni e servizi;Acquisto di servizi;Utenze e canoni;Acqua;;;;;;;;;;;;
1661;52,65;ABBANOA S.P.A.; ;16/11/2023;1526;1;211;1;Spese correnti;Acquisto di beni e servizi;Acquisto di servizi;Utenze e canoni;Acqua;;;;;;;;;;;;
1661;199,17;ABBANOA S.P.A.; ;16/11/2023;1526;1;211;1;Spese correnti;Acquisto di beni e servizi;Acquisto di servizi;Utenze e canoni;Acqua;;;;;;;;;;;;
1662;37,8;ABBANOA S.P.A.; ;16/11/2023;1717;1;213;1;Spese correnti;Acquisto di beni e servizi;Acquisto di servizi;Utenze e canoni;Acqua;;;;;;;;;;;;
1694;4.284,00;OMESSO NOMINATIVO NEL RISPETTO DELLA NORMATIVA SULLA PROTEZIONE DATI PERSONALI; ;20/11/2023;3003;2;323;2;Spese in conto capitale;Investimenti fissi lordi e acquisto di terreni;Beni materiali;Beni immobili;Beni immobili n.a.c.;;;;;;;;;;;;
1695;4.284,00;OMESSO NOMINATIVO NEL RISPETTO DELLA NORMATIVA SULLA PROTEZIONE DATI PERSONALI; ;20/11/2023;3003;2;324;2;Spese in conto capitale;Investimenti fissi lordi e acquisto di terreni;Beni materiali;Beni immobili;Beni immobili n.a.c.;;;;;;;;;;;;
1696;4.284,00;OMESSO NOMINATIVO NEL RISPETTO DELLA NORMATIVA SULLA PROTEZIONE DATI PERSONALI; ;20/11/2023;3003;2;325;2;Spese in conto capitale;Investimenti fissi lordi e acquisto di terreni;Beni materiali;Beni immobili;Beni immobili n.a.c.;;;;;;;;;;;;
1697;4.284,00;OMESSO NOMINATIVO NEL RISPETTO DELLA NORMATIVA SULLA PROTEZIONE DATI PERSONALI; ;20/11/2023;3003;2;326;2;Spese in conto capitale;Investimenti fissi lordi e acquisto di terreni;Beni materiali;Beni immobili;Beni immobili n.a.c.;;;;;;;;;;;;
1698;4.284,00;OMESSO NOMINATIVO NEL RISPETTO DELLA NORMATIVA SULLA PROTEZIONE DATI PERSONALI; ;20/11/2023;3003;2;327;2;Spese in conto capitale;Investimenti fissi lordi e acquisto di terreni;Beni materiali;Beni immobili;Beni immobili n.a.c.;;;;;;;;;;;;
1700;800;OMESSO NOMINATIVO NEL RISPETTO DELLA NORMATIVA SULLA PROTEZIONE DATI PERSONALI; ;21/11/2023;1915;0;330;1;Spese correnti;Trasferimenti correnti;Trasferimenti correnti a Famiglie;Interventi assistenziali;Altri assegni e sussidi assistenziali;;;;;;;;;;;;
1701;800;OMESSO NOMINATIVO NEL RISPETTO DELLA NORMATIVA SULLA PROTEZIONE DATI PERSONALI; ;21/11/2023;1915;0;331;1;Spese correnti;Trasferimenti correnti;Trasferimenti correnti a Famiglie;Interventi assistenziali;Altri assegni e sussidi assistenziali;;;;;;;;;;;;
1702;800;OMESSO NOMINATIVO NEL RISPETTO DELLA NORMATIVA SULLA PROTEZIONE DATI PERSONALI; ;21/11/2023;1915;0;332;1;Spese correnti;Trasferimenti correnti;Trasferimenti correnti a Famiglie;Interventi assistenziali;Altri assegni e sussidi assistenziali;;;;;;;;;;;;
1703;1.265,73;VERDE VITA SRL;ZE2396C1D5;21/11/2023;1739;0;1;1;Spese correnti;Acquisto di beni e servizi;Acquisto di servizi;Contratti di servizio pubblico;Contratti di servizio per il conferimento in discarica dei rifiuti;;;;;;;;;;;;
1704;174;KUWAIT PETROLEUM ITALIA SPA;Z5235D861D;21/11/2023;1057;0;90;1;Spese correnti;Acquisto di beni e servizi;Acquisto di beni;Altri beni di consumo;Carburanti, combustibili e lubrificanti;;;;;;;;;;;;
1705;5.875,84;TEKNOSERVICE S.R.L.;9922029D57;21/11/2023;1738;0;246;1;Spese correnti;Acquisto di beni e servizi;Acquisto di servizi;Contratti di servizio pubblico;Contratti di servizio per la raccolta rifiuti;;;;;;;;;;;;
1706;640,5;SAIU ELETTROSERVICE DI CADDIA GIOVANNA ANGELA;Z0D380CD3E;21/11/2023;1938;0;59;1;Spese correnti;Acquisto di beni e servizi;Acquisto di servizi;Contratti di servizio pubblico;Contratti di servizio per l'illuminazione pubblica;;;;;;;;;;;;
1707;1.230,17;TECNOCASIC  S.P.A.;ZF9396C612;21/11/2023;1739;0;2;1;Spese correnti;Acquisto di beni e servizi;Acquisto di servizi;Contratti di servizio pubblico;Contratti di servizio per il conferimento in discarica dei rifiuti;;;;;;;;;;;;
1708;831,07;COMUNE DI PISCINAS;9,48E+15;23/11/2023;3467;1;106;2;Spese in conto capitale;Investimenti fissi lordi e acquisto di terreni;Beni materiali;Beni immobili;Altre vie di comunicazione;;;;;;;;;;;;
1709;308,03;COMUNE DI PISCINAS;9,48E+15;23/11/2023;3467;1;107;2;Spese in conto capitale;Investimenti fissi lordi e acquisto di terreni;Beni materiali;Beni immobili;Altre vie di comunicazione;;;;;;;;;;;;
1710;536,33;COMUNE DI PISCINAS;93803383CC;23/11/2023;3001;0;254;2;Spese in conto capitale;Investimenti fissi lordi e acquisto di terreni;Beni materiali;Beni immobili;Fabbricati ad uso commerciale;;;;;;;;;;;;
1711;1.081,51;COMUNE DI PISCINAS;94989361F7;23/11/2023;3242;0;346;2;Spese in conto capitale;Investimenti fissi lordi e acquisto di terreni;Beni materiali;Beni immobili;Opere per la sistemazione del suolo;;;;;;;;;;;;
1712;4.461,47;COMUNE DI PISCINAS;9240852050;23/11/2023;3467;0;190;2;Spese in conto capitale;Investimenti fissi lordi e acquisto di terreni;Beni materiali;Beni immobili;Altre vie di comunicazione;;;;;;;;;;;;
1713;1.359,60;COMUNE DI PISCINAS;922750385C;23/11/2023;3215;0;182;2;Spese in conto capitale;Investimenti fissi lordi e acquisto di terreni;Beni materiali;Beni immobili;Musei, teatri e biblioteche;;;;;;;;;;;;
1714;1.076,54;COMUNE DI PISCINAS;Z3235A2F58;23/11/2023;1742;4;266;1;Spese correnti;Acquisto di beni e servizi;Acquisto di servizi;Altri servizi;Altri servizi diversi n.a.c.;;;;;;;;;;;;
1726;39,87;ENEL ENERGIA S.P.A.;9146558A6E;24/11/2023;1937;0;70;1;Spese correnti;Acquisto di beni e servizi;Acquisto di servizi;Utenze e canoni;Energia elettrica;;;;;;;;;;;;
1726;206,2;ENEL ENERGIA S.P.A.;9146558A6E;24/11/2023;1937;0;70;1;Spese correnti;Acquisto di beni e servizi;Acquisto di servizi;Utenze e canoni;Energia elettrica;;;;;;;;;;;;
1726;364,16;ENEL ENERGIA S.P.A.;9146558A6E;24/11/2023;1937;0;70;1;Spese correnti;Acquisto di beni e servizi;Acquisto di servizi;Utenze e canoni;Energia elettrica;;;;;;;;;;;;
1726;666,46;ENEL ENERGIA S.P.A.;9146558A6E;24/11/2023;1937;0;70;1;Spese correnti;Acquisto di beni e servizi;Acquisto di servizi;Utenze e canoni;Energia elettrica;;;;;;;;;;;;
1726;1.191,83;ENEL ENERGIA S.P.A.;9146558A6E;24/11/2023;1937;0;70;1;Spese correnti;Acquisto di beni e servizi;Acquisto di servizi;Utenze e canoni;Energia elettrica;;;;;;;;;;;;
1727;35,53;ENEL ENERGIA S.P.A.;8768366C84;24/11/2023;1743;0;293;1;Spese correnti;Acquisto di beni e servizi;Acquisto di servizi;Utenze e canoni;Energia elettrica;;;;;;;;;;;;
1728;77,12;ENEL ENERGIA S.P.A.;9146558A6E;24/11/2023;1656;1;76;1;Spese correnti;Acquisto di beni e servizi;Acquisto di servizi;Utenze e canoni;Energia elettrica;;;;;;;;;;;;
1729;204,55;ENEL ENERGIA S.P.A.;9146558A6E;24/11/2023;1386;2;71;1;Spese correnti;Acquisto di beni e servizi;Acquisto di servizi;Utenze e canoni;Energia elettrica;;;;;;;;;;;;
1730;47,36;ENEL ENERGIA S.P.A.;9146558A6E;24/11/2023;1090;0;77;1;Spese correnti;Acquisto di beni e servizi;Acquisto di servizi;Utenze e canoni;Energia elettrica;;;;;;;;;;;;
1731;28,52;ENEL ENERGIA S.P.A.;9146558A6E;24/11/2023;1087;2;73;1;Spese correnti;Acquisto di beni e servizi;Acquisto di servizi;Utenze e canoni;Energia elettrica;;;;;;;;;;;;
1731;80,93;ENEL ENERGIA S.P.A.;9146558A6E;24/11/2023;1087;2;73;1;Spese correnti;Acquisto di beni e servizi;Acquisto di servizi;Utenze e canoni;Energia elettrica;;;;;;;;;;;;
1731;679,58;ENEL ENERGIA S.P.A.;9146558A6E;24/11/2023;1087;2;73;1;Spese correnti;Acquisto di beni e servizi;Acquisto di servizi;Utenze e canoni;Energia elettrica;;;;;;;;;;;;
1732;55,88;ENEL ENERGIA S.P.A.;9146558A6E;24/11/2023;1826;1;74;1;Spese correnti;Acquisto di beni e servizi;Acquisto di servizi;Utenze e canoni;Energia elettrica;;;;;;;;;;;;
1732;392,9;ENEL ENERGIA S.P.A.;9146558A6E;24/11/2023;1826;1;74;1;Spese correnti;Acquisto di beni e servizi;Acquisto di servizi;Utenze e canoni;Energia elettrica;;;;;;;;;;;;
1733;19,28;ENEL ENERGIA S.P.A.;9146558A6E;24/11/2023;1526;0;75;1;Spese correnti;Acquisto di beni e servizi;Acquisto di servizi;Utenze e canoni;Energia elettrica;;;;;;;;;;;;
1733;119,45;ENEL ENERGIA S.P.A.;9146558A6E;24/11/2023;1526;0;75;1;Spese correnti;Acquisto di beni e servizi;Acquisto di servizi;Utenze e canoni;Energia elettrica;;;;;;;;;;;;
1733;503,62;ENEL ENERGIA S.P.A.;9146558A6E;24/11/2023;1526;0;75;1;Spese correnti;Acquisto di beni e servizi;Acquisto di servizi;Utenze e canoni;Energia elettrica;;;;;;;;;;;;
1734;19,13;ENEL ENERGIA S.P.A.;ZA135CD269;24/11/2023;1939;0;294;1;Spese correnti;Acquisto di beni e servizi;Acquisto di servizi;Utenze e canoni;Energia elettrica;;;;;;;;;;;;
1734;51,19;ENEL ENERGIA S.P.A.;9146558A6E;24/11/2023;1939;0;294;1;Spese correnti;Acquisto di beni e servizi;Acquisto di servizi;Utenze e canoni;Energia elettrica;;;;;;;;;;;;
1734;326,36;ENEL ENERGIA S.P.A.;9146558A6E;24/11/2023;1939;0;294;1;Spese correnti;Acquisto di beni e servizi;Acquisto di servizi;Utenze e canoni;Energia elettrica;;;;;;;;;;;;
1735;239,79;ENEL ENERGIA S.P.A.;9146558A6E;24/11/2023;1366;3;72;1;Spese correnti;Acquisto di beni e servizi;Acquisto di servizi;Utenze e canoni;Energia elettrica;;;;;;;;;;;;
1737;1.956,15;DIVERSI; ;28/11/2023;1001;0;10;1;Spese correnti;Acquisto di beni e servizi;Acquisto di servizi;Organi e incarichi istituzionali dell'amministrazione;Organi istituzionali dell'amministrazione - Indennità;;;;;;;;;;;;
1740;4.118,72;ECOGREEN COOPERATIVA SOCIALE;9669337D4E;28/11/2023;1092;1;100;1;Spese correnti;Acquisto di beni e servizi;Acquisto di servizi;Altri servizi;Acquisto di sevizi per verde e arredo urbano;;;;;;;;;;;;
1741;1.492,98;ECOGREEN COOPERATIVA SOCIALE;967226800F;28/11/2023;1742;0;320;1;Spese correnti;Acquisto di beni e servizi;Acquisto di servizi;Altri servizi;Altri servizi diversi n.a.c.;;;;;;;;;;;;
1742;1.400,00;MARIA ANTONELLA MURA E STEFANIA MURA SNC;ZCA3CE696B;28/11/2023;1476;1;309;1;Spese correnti;Acquisto di beni e servizi;Acquisto di beni;Giornali, riviste e pubblicazioni;Pubblicazioni;;;;;;;;;;;;
1744;835,9;HALLEY SARDEGNA S.R.L.;Z523B9E21E;01/12/2023;1043;0;231;1;Spese correnti;Acquisto di beni e servizi;Acquisto di beni;Altri beni di consumo;Strumenti tecnico-specialistici non sanitari;;;;;;;;;;;;
1745;500;HALLEY SARDEGNA S.R.L.;Z523B9E21E;01/12/2023;1043;1;232;1;Spese correnti;Acquisto di beni e servizi;Acquisto di servizi;Servizi informatici e di telecomunicazioni;Gestione e manutenzione applicazioni;;;;;;;;;;;;
1746;2.269,20;HALLEY SARDEGNA S.R.L.;ZF33917877;01/12/2023;1043;6;352;1;Spese correnti;Acquisto di beni e servizi;Acquisto di servizi;Servizi informatici e di telecomunicazioni;Gestione e manutenzione applicazioni;;;;;;;;;;;;
1747;900;DREAMS SRL; ;01/12/2023;1043;4;345;1;Spese correnti;Acquisto di beni e servizi;Acquisto di servizi;Prestazioni professionali e specialistiche;Altre prestazioni professionali e specialistiche n.a.c.;;;;;;;;;;;;
1748;465,39;COLLU IGNAZIO AG. CATTOLICA ASSICURAZIONI;Z0D3D7B319;01/12/2023;1525;0;344;1;Spese correnti;Altre spese correnti;Premi di assicurazione;Premi di assicurazione contro i danni;Premi di assicurazione su beni immobili;;;;;;;;;;;;
1749;83;OMESSO NOMINATIVO NEL RISPETTO DELLA NORMATIVA SULLA PROTEZIONE DATI PERSONALI; ;01/12/2023;1011;0;343;1;Spese correnti;Acquisto di beni e servizi;Acquisto di servizi;Altri servizi;Quote di associazioni;;;;;;;;;;;;
1750;651,04;CONTRERAS FIORDALIZA; ;01/12/2023;1916;0;79;1;Spese correnti;Trasferimenti correnti;Trasferimenti correnti a Famiglie;Interventi assistenziali;Altri assegni e sussidi assistenziali;;;;;;;;;;;;
1751;724,95;OMESSO NOMINATIVO NEL RISPETTO DELLA NORMATIVA SULLA PROTEZIONE DATI PERSONALI; ;01/12/2023;1920;0;279;1;Spese correnti;Trasferimenti correnti;Trasferimenti correnti a Famiglie;Interventi assistenziali;Altri assegni e sussidi assistenziali;;;;;;;;;;;;
1752;377,61;OMESSO NOMINATIVO NEL RISPETTO DELLA NORMATIVA SULLA PROTEZIONE DATI PERSONALI; ;01/12/2023;1920;0;279;1;Spese correnti;Trasferimenti correnti;Trasferimenti correnti a Famiglie;Interventi assistenziali;Altri assegni e sussidi assistenziali;;;;;;;;;;;;
1753;5.178,36;OMESSO NOMINATIVO NEL RISPETTO DELLA NORMATIVA SULLA PROTEZIONE DATI PERSONALI; ;01/12/2023;3445;0;311;2;Spese in conto capitale;Contributi agli investimenti;Contributi agli investimenti a Famiglie;Contributi agli investimenti a Famiglie;Contributi agli investimenti a Famiglie;;;;;;;;;;;;
1754;846,5;OMESSO NOMINATIVO NEL RISPETTO DELLA NORMATIVA SULLA PROTEZIONE DATI PERSONALI; ;01/12/2023;1920;15;157;1;Spese correnti;Trasferimenti correnti;Trasferimenti correnti a Famiglie;Interventi assistenziali;Altri assegni e sussidi assistenziali;;;;;;;;;;;;
1755;250;OMESSO NOMINATIVO NEL RISPETTO DELLA NORMATIVA SULLA PROTEZIONE DATI PERSONALI; ;01/12/2023;1920;13;230;1;Spese correnti;Acquisto di beni e servizi;Acquisto di servizi;Prestazioni professionali e specialistiche;Altre prestazioni professionali e specialistiche n.a.c.;;;;;;;;;;;;
1756;156,25;OMESSO NOMINATIVO NEL RISPETTO DELLA NORMATIVA SULLA PROTEZIONE DATI PERSONALI; ;01/12/2023;1920;15;186;1;Spese correnti;Trasferimenti correnti;Trasferimenti correnti a Famiglie;Interventi assistenziali;Altri assegni e sussidi assistenziali;;;;;;;;;;;;
1757;166,66;OMESSO NOMINATIVO NEL RISPETTO DELLA NORMATIVA SULLA PROTEZIONE DATI PERSONALI; ;01/12/2023;1920;15;143;1;Spese correnti;Trasferimenti correnti;Trasferimenti correnti a Famiglie;Interventi assistenziali;Altri assegni e sussidi assistenziali;;;;;;;;;;;;
1758;261,67;SOGGETTI DIVERSI; ;01/12/2023;1920;15;179;1;Spese correnti;Trasferimenti correnti;Trasferimenti correnti a Famiglie;Interventi assistenziali;Altri assegni e sussidi assistenziali;;;;;;;;;;;;
1759;206;OMESSO NOMINATIVO NEL RISPETTO DELLA NORMATIVA SULLA PROTEZIONE DATI PERSONALI; ;01/12/2023;1920;15;170;1;Spese correnti;Trasferimenti correnti;Trasferimenti correnti a Famiglie;Interventi assistenziali;Altri assegni e sussidi assistenziali;;;;;;;;;;;;
1760;17.060,09;SARDARCH SOCIETA' COOPERATIVA;Z873755C21;01/12/2023;1103;0;244;1;Spese correnti;Acquisto di beni e servizi;Acquisto di servizi;Prestazioni professionali e specialistiche;Altre prestazioni professionali e specialistiche n.a.c.;;;;;;;;;;;;
1761;5.505,95;REGIONE AUTONOMA DELLA SARDEGNA; ;01/12/2023;3445;0;312;2;Spese in conto capitale;Contributi agli investimenti;Contributi agli investimenti a Famiglie;Contributi agli investimenti a Famiglie;Contributi agli investimenti a Famiglie;;;;;;;;;;;;
1763;6.579,56;CASSA DEPOSITI E PRESTITI; ;04/12/2023;1942;0;0;1;Spese correnti;Interessi passivi;Interessi su Mutui e altri finanziamenti a medio lungo termine;Interessi passivi su finanziamenti a medio lungo termine a Imprese;Interessi passivi a Cassa Depositi e Prestiti SPA su mutui e altri finanziamenti a medio lungo termine;;;;;;;;;;;;
1792;1.575,14;COMUNE DI CARBONIA; ;05/12/2023;1930;0;346;1;Spese correnti;Trasferimenti correnti;Trasferimenti correnti a Amministrazioni Pubbliche;Trasferimenti correnti a Amministrazioni Locali;Trasferimenti correnti a Comuni;;;;;;;;;;;;
1793;183,89;COMUNE DI CARBONIA; ;05/12/2023;1920;22;347;1;Spese correnti;Trasferimenti correnti;Trasferimenti correnti a Amministrazioni Pubbliche;Trasferimenti correnti a Amministrazioni Locali;Trasferimenti correnti a Comuni;;;;;;;;;;;;
1794;259,75;OMESSO NOMINATIVO NEL RISPETTO DELLA NORMATIVA SULLA PROTEZIONE DATI PERSONALI; ;05/12/2023;1920;15;171;1;Spese correnti;Trasferimenti correnti;Trasferimenti correnti a Famiglie;Interventi assistenziali;Altri assegni e sussidi assistenziali;;;;;;;;;;;;
1795;176,25;OMESSO NOMINATIVO NEL RISPETTO DELLA NORMATIVA SULLA PROTEZIONE DATI PERSONALI; ;05/12/2023;1920;15;174;1;Spese correnti;Trasferimenti correnti;Trasferimenti correnti a Famiglie;Interventi assistenziali;Altri assegni e sussidi assistenziali;;;;;;;;;;;;
1796;156,66;OMESSO NOMINATIVO NEL RISPETTO DELLA NORMATIVA SULLA PROTEZIONE DATI PERSONALI; ;05/12/2023;1920;15;258;1;Spese correnti;Trasferimenti correnti;Trasferimenti correnti a Famiglie;Interventi assistenziali;Altri assegni e sussidi assistenziali;;;;;;;;;;;;
1797;249,72;OMESSO NOMINATIVO NEL RISPETTO DELLA NORMATIVA SULLA PROTEZIONE DATI PERSONALI; ;05/12/2023;1920;15;183;1;Spese correnti;Trasferimenti correnti;Trasferimenti correnti a Famiglie;Interventi assistenziali;Altri assegni e sussidi assistenziali;;;;;;;;;;;;
1798;4.000,01;PRO.TU.SAR. DI PIRAS RAFFAELE;9344454761;05/12/2023;1417;3;63;1;Spese correnti;Acquisto di beni e servizi;Acquisto di servizi;Contratti di servizio pubblico;Contratti di servizio di trasporto scolastico;;;;;;;;;;;;
1799;178,17;OMESSO NOMINATIVO NEL RISPETTO DELLA NORMATIVA SULLA PROTEZIONE DATI PERSONALI; ;05/12/2023;1920;15;145;1;Spese correnti;Trasferimenti correnti;Trasferimenti correnti a Famiglie;Interventi assistenziali;Altri assegni e sussidi assistenziali;;;;;;;;;;;;
1800;320;SOGGETTI DIVERSI; ;05/12/2023;1919;6;205;1;Spese correnti;Trasferimenti correnti;Trasferimenti correnti a Famiglie;Interventi assistenziali;Altri assegni e sussidi assistenziali;;;;;;;;;;;;
1801;206;SOGGETTI DIVERSI; ;05/12/2023;1919;6;205;1;Spese correnti;Trasferimenti correnti;Trasferimenti correnti a Famiglie;Interventi assistenziali;Altri assegni e sussidi assistenziali;;;;;;;;;;;;
1802;296,25;OMESSO NOMINATIVO NEL RISPETTO DELLA NORMATIVA SULLA PROTEZIONE DATI PERSONALI; ;05/12/2023;1920;15;146;1;Spese correnti;Trasferimenti correnti;Trasferimenti correnti a Famiglie;Interventi assistenziali;Altri assegni e sussidi assistenziali;;;;;;;;;;;;
1803;501,51;OMESSO NOMINATIVO NEL RISPETTO DELLA NORMATIVA SULLA PROTEZIONE DATI PERSONALI; ;05/12/2023;1920;0;277;1;Spese correnti;Trasferimenti correnti;Trasferimenti correnti a Famiglie;Interventi assistenziali;Altri assegni e sussidi assistenziali;;;;;;;;;;;;
1804;148,48;SOGGETTI DIVERSI; ;05/12/2023;1920;15;181;1;Spese correnti;Trasferimenti correnti;Trasferimenti correnti a Famiglie;Interventi assistenziali;Altri assegni e sussidi assistenziali;;;;;;;;;;;;
1805;57,19;OMESSO NOMINATIVO NEL RISPETTO DELLA NORMATIVA SULLA PROTEZIONE DATI PERSONALI; ;05/12/2023;1920;15;168;1;Spese correnti;Trasferimenti correnti;Trasferimenti correnti a Famiglie;Interventi assistenziali;Altri assegni e sussidi assistenziali;;;;;;;;;;;;
1806;600;OMESSO NOMINATIVO NEL RISPETTO DELLA NORMATIVA SULLA PROTEZIONE DATI PERSONALI; ;05/12/2023;1920;0;282;1;Spese correnti;Trasferimenti correnti;Trasferimenti correnti a Famiglie;Interventi assistenziali;Altri assegni e sussidi assistenziali;;;;;;;;;;;;
1807;159,39;OMESSO NOMINATIVO NEL RISPETTO DELLA NORMATIVA SULLA PROTEZIONE DATI PERSONALI; ;05/12/2023;1920;15;159;1;Spese correnti;Trasferimenti correnti;Trasferimenti correnti a Famiglie;Interventi assistenziali;Altri assegni e sussidi assistenziali;;;;;;;;;;;;
1808;225;SOGGETTI DIVERSI; ;05/12/2023;1919;6;205;1;Spese correnti;Trasferimenti correnti;Trasferimenti correnti a Famiglie;Interventi assistenziali;Altri assegni e sussidi assistenziali;;;;;;;;;;;;
1809;439;SOGGETTI DIVERSI; ;05/12/2023;1919;6;205;1;Spese correnti;Trasferimenti correnti;Trasferimenti correnti a Famiglie;Interventi assistenziali;Altri assegni e sussidi assistenziali;;;;;;;;;;;;
1810;4.381,27;OMESSO NOMINATIVO NEL RISPETTO DELLA NORMATIVA SULLA PROTEZIONE DATI PERSONALI;Z7F3CD99EF;06/12/2023;3003;2;307;2;Spese in conto capitale;Investimenti fissi lordi e acquisto di terreni;Beni materiali;Beni immobili;Beni immobili n.a.c.;;;;;;;;;;;;
1811;640,5;SAIU ELETTROSERVICE DI CADDIA GIOVANNA ANGELA;Z0D380CD3E;06/12/2023;1938;0;59;1;Spese correnti;Acquisto di beni e servizi;Acquisto di servizi;Contratti di servizio pubblico;Contratti di servizio per l'illuminazione pubblica;;;;;;;;;;;;
1812;456,59;KUWAIT PETROLEUM ITALIA SPA;Z5235D861D;06/12/2023;1057;0;90;1;Spese correnti;Acquisto di beni e servizi;Acquisto di beni;Altri beni di consumo;Carburanti, combustibili e lubrificanti;;;;;;;;;;;;
1813;5.875,84;TEKNOSERVICE S.R.L.;9922029D57;06/12/2023;1738;0;246;1;Spese correnti;Acquisto di beni e servizi;Acquisto di servizi;Contratti di servizio pubblico;Contratti di servizio per la raccolta rifiuti;;;;;;;;;;;;
1814;686,4;WOLTERS KLUWER ITALIA SRL;Z902F2AF00;06/12/2023;1043;1;357;1;Spese correnti;Acquisto di beni e servizi;Acquisto di servizi;Servizi informatici e di telecomunicazioni;Gestione e manutenzione applicazioni;;;;;;;;;;;;
1815;983,32;ISAR COOPERATIVA SOCIALE ONLUS;Z6E33B9DBA;06/12/2023;1036;0;69;1;Spese correnti;Acquisto di beni e servizi;Acquisto di servizi;Servizi ausiliari per il funzionamento dell'ente;Servizi di pulizia e lavanderia;;;;;;;;;;;;
1816;749,77;OMESSO NOMINATIVO NEL RISPETTO DELLA NORMATIVA SULLA PROTEZIONE DATI PERSONALI; ;06/12/2023;1920;0;279;1;Spese correnti;Trasferimenti correnti;Trasferimenti correnti a Famiglie;Interventi assistenziali;Altri assegni e sussidi assistenziali;;;;;;;;;;;;
1817;390,54;OMESSO NOMINATIVO NEL RISPETTO DELLA NORMATIVA SULLA PROTEZIONE DATI PERSONALI; ;06/12/2023;1920;0;279;1;Spese correnti;Trasferimenti correnti;Trasferimenti correnti a Famiglie;Interventi assistenziali;Altri assegni e sussidi assistenziali;;;;;;;;;;;;
1818;1.997,74;OMESSO NOMINATIVO NEL RISPETTO DELLA NORMATIVA SULLA PROTEZIONE DATI PERSONALI; ;06/12/2023;1920;0;276;1;Spese correnti;Trasferimenti correnti;Trasferimenti correnti a Famiglie;Interventi assistenziali;Altri assegni e sussidi assistenziali;;;;;;;;;;;;
1819;209,64;OMESSO NOMINATIVO NEL RISPETTO DELLA NORMATIVA SULLA PROTEZIONE DATI PERSONALI; ;06/12/2023;1920;15;169;1;Spese correnti;Trasferimenti correnti;Trasferimenti correnti a Famiglie;Interventi assistenziali;Altri assegni e sussidi assistenziali;;;;;;;;;;;;
1821;691,9;VERDE VITA SRL;ZE2396C1D5;07/12/2023;1739;0;1;1;Spese correnti;Acquisto di beni e servizi;Acquisto di servizi;Contratti di servizio pubblico;Contratti di servizio per il conferimento in discarica dei rifiuti;;;;;;;;;;;;
1821;1.089,66;VERDE VITA SRL;ZE2396C1D5;07/12/2023;1739;0;1;1;Spese correnti;Acquisto di beni e servizi;Acquisto di servizi;Contratti di servizio pubblico;Contratti di servizio per il conferimento in discarica dei rifiuti;;;;;;;;;;;;
1822;22,1;TECNOCASIC  S.P.A.;ZF9396C612;07/12/2023;1739;0;2;1;Spese correnti;Acquisto di beni e servizi;Acquisto di servizi;Contratti di servizio pubblico;Contratti di servizio per il conferimento in discarica dei rifiuti;;;;;;;;;;;;
1822;1.450,87;TECNOCASIC  S.P.A.;ZF9396C612;07/12/2023;1739;0;2;1;Spese correnti;Acquisto di beni e servizi;Acquisto di servizi;Contratti di servizio pubblico;Contratti di servizio per il conferimento in discarica dei rifiuti;;;;;;;;;;;;
1823;732;DITTA DIANA CLAUDIO;ZD1394FD2D;07/12/2023;1089;2;6;1;Spese correnti;Acquisto di beni e servizi;Acquisto di servizi;Manutenzione ordinaria e riparazioni;Manutenzione ordinaria e riparazioni di impianti e macchinari;;;;;;;;;;;;
1824;732;DITTA DIANA CLAUDIO;ZD1394FD2D;07/12/2023;1366;2;5;1;Spese correnti;Acquisto di beni e servizi;Acquisto di servizi;Manutenzione ordinaria e riparazioni;Manutenzione ordinaria e riparazioni di beni immobili;;;;;;;;;;;;
1825;4.948,32;PINNA GIUSEPPE;Z32393BDD4;07/12/2023;3305;1;356;2;Spese in conto capitale;Investimenti fissi lordi e acquisto di terreni;Beni materiali;Beni immobili;Cimiteri;;;;;;;;;;;;
1827;488;DITTA DIANA CLAUDIO;Z103C0737B;07/12/2023;3212;0;269;2;Spese in conto capitale;Investimenti fissi lordi e acquisto di terreni;Beni materiali;Beni immobili;Fabbricati ad uso commerciale;;;;;;;;;;;;
1828;240;SOGGETTI DIVERSI; ;07/12/2023;1919;6;343;1;Spese correnti;Trasferimenti correnti;Trasferimenti correnti a Famiglie;Interventi assistenziali;Altri assegni e sussidi assistenziali;;;;;;;;;;;;
1830;230;SOGGETTI DIVERSI; ;07/12/2023;1919;6;205;1;Spese correnti;Trasferimenti correnti;Trasferimenti correnti a Famiglie;Interventi assistenziali;Altri assegni e sussidi assistenziali;;;;;;;;;;;;
1831;320;SOGGETTI DIVERSI; ;07/12/2023;1919;6;205;1;Spese correnti;Trasferimenti correnti;Trasferimenti correnti a Famiglie;Interventi assistenziali;Altri assegni e sussidi assistenziali;;;;;;;;;;;;
1832;300;SOGGETTI DIVERSI; ;07/12/2023;1919;6;205;1;Spese correnti;Trasferimenti correnti;Trasferimenti correnti a Famiglie;Interventi assistenziali;Altri assegni e sussidi assistenziali;;;;;;;;;;;;
1833;250;OMESSO NOMINATIVO NEL RISPETTO DELLA NORMATIVA SULLA PROTEZIONE DATI PERSONALI; ;07/12/2023;1920;15;176;1;Spese correnti;Trasferimenti correnti;Trasferimenti correnti a Famiglie;Interventi assistenziali;Altri assegni e sussidi assistenziali;;;;;;;;;;;;
1834;170,64;OMESSO NOMINATIVO NEL RISPETTO DELLA NORMATIVA SULLA PROTEZIONE DATI PERSONALI; ;07/12/2023;1920;15;173;1;Spese correnti;Trasferimenti correnti;Trasferimenti correnti a Famiglie;Interventi assistenziali;Altri assegni e sussidi assistenziali;;;;;;;;;;;;
1835;250;OMESSO NOMINATIVO NEL RISPETTO DELLA NORMATIVA SULLA PROTEZIONE DATI PERSONALI; ;07/12/2023;1920;15;152;1;Spese correnti;Trasferimenti correnti;Trasferimenti correnti a Famiglie;Interventi assistenziali;Altri assegni e sussidi assistenziali;;;;;;;;;;;;
1836;600;OMESSO NOMINATIVO NEL RISPETTO DELLA NORMATIVA SULLA PROTEZIONE DATI PERSONALI; ;07/12/2023;1920;0;281;1;Spese correnti;Trasferimenti correnti;Trasferimenti correnti a Famiglie;Interventi assistenziali;Altri assegni e sussidi assistenziali;;;;;;;;;;;;
1837;160,28;OMESSO NOMINATIVO NEL RISPETTO DELLA NORMATIVA SULLA PROTEZIONE DATI PERSONALI; ;07/12/2023;1920;15;144;1;Spese correnti;Trasferimenti correnti;Trasferimenti correnti a Famiglie;Interventi assistenziali;Altri assegni e sussidi assistenziali;;;;;;;;;;;;
1838;95;OMESSO NOMINATIVO NEL RISPETTO DELLA NORMATIVA SULLA PROTEZIONE DATI PERSONALI; ;07/12/2023;1920;15;148;1;Spese correnti;Trasferimenti correnti;Trasferimenti correnti a Famiglie;Interventi assistenziali;Altri assegni e sussidi assistenziali;;;;;;;;;;;;
1839;96,02;OMESSO NOMINATIVO NEL RISPETTO DELLA NORMATIVA SULLA PROTEZIONE DATI PERSONALI; ;07/12/2023;1920;15;150;1;Spese correnti;Trasferimenti correnti;Trasferimenti correnti a Famiglie;Interventi assistenziali;Altri assegni e sussidi assistenziali;;;;;;;;;;;;
1840;818,69;OMESSO NOMINATIVO NEL RISPETTO DELLA NORMATIVA SULLA PROTEZIONE DATI PERSONALI; ;07/12/2023;1920;15;165;1;Spese correnti;Trasferimenti correnti;Trasferimenti correnti a Famiglie;Interventi assistenziali;Altri assegni e sussidi assistenziali;;;;;;;;;;;;
1841;1.015,56;OMESSO NOMINATIVO NEL RISPETTO DELLA NORMATIVA SULLA PROTEZIONE DATI PERSONALI; ;07/12/2023;1920;0;278;1;Spese correnti;Trasferimenti correnti;Trasferimenti correnti a Famiglie;Interventi assistenziali;Altri assegni e sussidi assistenziali;;;;;;;;;;;;
1842;128,27;OMESSO NOMINATIVO NEL RISPETTO DELLA NORMATIVA SULLA PROTEZIONE DATI PERSONALI; ;07/12/2023;1920;15;155;1;Spese correnti;Trasferimenti correnti;Trasferimenti correnti a Famiglie;Interventi assistenziali;Altri assegni e sussidi assistenziali;;;;;;;;;;;;
1843;148,13;OMESSO NOMINATIVO NEL RISPETTO DELLA NORMATIVA SULLA PROTEZIONE DATI PERSONALI; ;07/12/2023;1920;15;184;1;Spese correnti;Trasferimenti correnti;Trasferimenti correnti a Famiglie;Interventi assistenziali;Altri assegni e sussidi assistenziali;;;;;;;;;;;;
1844;77,27;OMESSO NOMINATIVO NEL RISPETTO DELLA NORMATIVA SULLA PROTEZIONE DATI PERSONALI; ;07/12/2023;1920;15;188;1;Spese correnti;Trasferimenti correnti;Trasferimenti correnti a Famiglie;Interventi assistenziali;Altri assegni e sussidi assistenziali;;;;;;;;;;;;
1845;1.400,00;LIBRERIA LILITH SOCIETA' COOP. a.r.l.;ZA33CE68B6;12/12/2023;1476;1;308;1;Spese correnti;Acquisto di beni e servizi;Acquisto di beni;Giornali, riviste e pubblicazioni;Pubblicazioni;;;;;;;;;;;;
1846;1.432,08;OMESSO NOMINATIVO NEL RISPETTO DELLA NORMATIVA SULLA PROTEZIONE DATI PERSONALI;Z1C3CEF1DE;12/12/2023;1476;1;310;1;Spese correnti;Acquisto di beni e servizi;Acquisto di beni;Giornali, riviste e pubblicazioni;Pubblicazioni;;;;;;;;;;;;
1847;366;GRAFICHE E. GASPARI S.R.L.;ZE237E2C34;12/12/2023;1116;0;269;1;Spese correnti;Acquisto di beni e servizi;Acquisto di beni;Altri beni di consumo;Carta, cancelleria e stampati;;;;;;;;;;;;
1876;1.956,15;DIVERSI; ;13/12/2023;1001;0;10;1;Spese correnti;Acquisto di beni e servizi;Acquisto di servizi;Organi e incarichi istituzionali dell'amministrazione;Organi istituzionali dell'amministrazione - Indennità;;;;;;;;;;;;
1881;151,11;MINISTERO  - DIPARTIMENTO AFFARI INTERNI; ;13/12/2023;1037;1;62;1;Spese correnti;Trasferimenti correnti;Trasferimenti correnti a Amministrazioni Pubbliche;Trasferimenti correnti a Amministrazioni Centrali;Trasferimenti correnti a Ministeri;;;;;;;;;;;;
1882;83,95;MINISTERO  - DIPARTIMENTO AFFARI INTERNI; ;13/12/2023;1037;1;62;1;Spese correnti;Trasferimenti correnti;Trasferimenti correnti a Amministrazioni Pubbliche;Trasferimenti correnti a Amministrazioni Centrali;Trasferimenti correnti a Ministeri;;;;;;;;;;;;
1883;506,85;SOGGETTI DIVERSI; ;13/12/2023;1916;0;79;1;Spese correnti;Trasferimenti correnti;Trasferimenti correnti a Famiglie;Interventi assistenziali;Altri assegni e sussidi assistenziali;;;;;;;;;;;;
1884;134,71;OMESSO NOMINATIVO NEL RISPETTO DELLA NORMATIVA SULLA PROTEZIONE DATI PERSONALI; ;13/12/2023;1920;15;147;1;Spese correnti;Trasferimenti correnti;Trasferimenti correnti a Famiglie;Interventi assistenziali;Altri assegni e sussidi assistenziali;;;;;;;;;;;;
1885;100;OMESSO NOMINATIVO NEL RISPETTO DELLA NORMATIVA SULLA PROTEZIONE DATI PERSONALI; ;13/12/2023;1920;15;167;1;Spese correnti;Trasferimenti correnti;Trasferimenti correnti a Famiglie;Interventi assistenziali;Altri assegni e sussidi assistenziali;;;;;;;;;;;;
1886;350;ISTITUTO COMPRENSIVO G.MARCONI; ;13/12/2023;1920;11;360;1;Spese correnti;Acquisto di beni e servizi;Acquisto di servizi;Altri servizi;Altri servizi diversi n.a.c.;;;;;;;;;;;;
1887;405;EL MASKAOUY HANAE; ;13/12/2023;1919;6;343;1;Spese correnti;Trasferimenti correnti;Trasferimenti correnti a Famiglie;Interventi assistenziali;Altri assegni e sussidi assistenziali;;;;;;;;;;;;
1888;75.954,64;NONNIS COSTRUZIONI SRL;9548518652;14/12/2023;3231;0;331;2;Spese in conto capitale;Investimenti fissi lordi e acquisto di terreni;Beni materiali;Beni immobili;Fabbricati ad uso abitativo;;;;;;;;;;;;
1889;18.205,36;NONNIS COSTRUZIONI SRL;9548518652;14/12/2023;3231;0;331;2;Spese in conto capitale;Investimenti fissi lordi e acquisto di terreni;Beni materiali;Beni immobili;Fabbricati ad uso abitativo;;;;;;;;;;;;
1890;38,95;ENEL ENERGIA S.P.A.;9146558A6E;15/12/2023;1937;0;70;1;Spese correnti;Acquisto di beni e servizi;Acquisto di servizi;Utenze e canoni;Energia elettrica;;;;;;;;;;;;
1890;219,44;ENEL ENERGIA S.P.A.;9146558A6E;15/12/2023;1937;0;70;1;Spese correnti;Acquisto di beni e servizi;Acquisto di servizi;Utenze e canoni;Energia elettrica;;;;;;;;;;;;
1890;390,42;ENEL ENERGIA S.P.A.;9146558A6E;15/12/2023;1937;0;70;1;Spese correnti;Acquisto di beni e servizi;Acquisto di servizi;Utenze e canoni;Energia elettrica;;;;;;;;;;;;
1890;712,92;ENEL ENERGIA S.P.A.;9146558A6E;15/12/2023;1937;0;70;1;Spese correnti;Acquisto di beni e servizi;Acquisto di servizi;Utenze e canoni;Energia elettrica;;;;;;;;;;;;
1890;1.939,91;ENEL ENERGIA S.P.A.;9146558A6E;15/12/2023;1937;0;70;1;Spese correnti;Acquisto di beni e servizi;Acquisto di servizi;Utenze e canoni;Energia elettrica;;;;;;;;;;;;
1891;-102,84;ENEL ENERGIA S.P.A.;9146558A6E;15/12/2023;1386;2;71;1;Spese correnti;Acquisto di beni e servizi;Acquisto di servizi;Utenze e canoni;Energia elettrica;;;;;;;;;;;;
1891;204,52;ENEL ENERGIA S.P.A.;9146558A6E;15/12/2023;1386;2;71;1;Spese correnti;Acquisto di beni e servizi;Acquisto di servizi;Utenze e canoni;Energia elettrica;;;;;;;;;;;;
1892;35,53;ENEL ENERGIA S.P.A.;Z933563740;15/12/2023;1743;0;293;1;Spese correnti;Acquisto di beni e servizi;Acquisto di servizi;Utenze e canoni;Energia elettrica;;;;;;;;;;;;
1893;61,48;ENEL ENERGIA S.P.A.;9146558A6E;15/12/2023;1656;1;76;1;Spese correnti;Acquisto di beni e servizi;Acquisto di servizi;Utenze e canoni;Energia elettrica;;;;;;;;;;;;
1894;26,12;ENEL ENERGIA S.P.A.;9146558A6E;15/12/2023;1090;0;77;1;Spese correnti;Acquisto di beni e servizi;Acquisto di servizi;Utenze e canoni;Energia elettrica;;;;;;;;;;;;
1895;28,22;ENEL ENERGIA S.P.A.;9146558A6E;15/12/2023;1087;2;73;1;Spese correnti;Acquisto di beni e servizi;Acquisto di servizi;Utenze e canoni;Energia elettrica;;;;;;;;;;;;
1895;78,46;ENEL ENERGIA S.P.A.;9146558A6E;15/12/2023;1087;2;73;1;Spese correnti;Acquisto di beni e servizi;Acquisto di servizi;Utenze e canoni;Energia elettrica;;;;;;;;;;;;
1895;808,99;ENEL ENERGIA S.P.A.;9146558A6E;15/12/2023;1087;2;73;1;Spese correnti;Acquisto di beni e servizi;Acquisto di servizi;Utenze e canoni;Energia elettrica;;;;;;;;;;;;
1896;57,54;ENEL ENERGIA S.P.A.;9146558A6E;15/12/2023;1826;1;74;1;Spese correnti;Acquisto di beni e servizi;Acquisto di servizi;Utenze e canoni;Energia elettrica;;;;;;;;;;;;
1896;303,3;ENEL ENERGIA S.P.A.;9146558A6E;15/12/2023;1826;1;74;1;Spese correnti;Acquisto di beni e servizi;Acquisto di servizi;Utenze e canoni;Energia elettrica;;;;;;;;;;;;
1897;18,35;ENEL ENERGIA S.P.A.;9146558A6E;15/12/2023;1526;0;75;1;Spese correnti;Acquisto di beni e servizi;Acquisto di servizi;Utenze e canoni;Energia elettrica;;;;;;;;;;;;
1897;136,51;ENEL ENERGIA S.P.A.;9146558A6E;15/12/2023;1526;0;75;1;Spese correnti;Acquisto di beni e servizi;Acquisto di servizi;Utenze e canoni;Energia elettrica;;;;;;;;;;;;
1897;434,89;ENEL ENERGIA S.P.A.;9146558A6E;15/12/2023;1526;0;75;1;Spese correnti;Acquisto di beni e servizi;Acquisto di servizi;Utenze e canoni;Energia elettrica;;;;;;;;;;;;
1898;18,35;ENEL ENERGIA S.P.A.;ZA135CD269;15/12/2023;1939;0;294;1;Spese correnti;Acquisto di beni e servizi;Acquisto di servizi;Utenze e canoni;Energia elettrica;;;;;;;;;;;;
1898;36,75;ENEL ENERGIA S.P.A.;9146558A6E;15/12/2023;1939;0;294;1;Spese correnti;Acquisto di beni e servizi;Acquisto di servizi;Utenze e canoni;Energia elettrica;;;;;;;;;;;;
1898;345,67;ENEL ENERGIA S.P.A.;9146558A6E;15/12/2023;1939;0;294;1;Spese correnti;Acquisto di beni e servizi;Acquisto di servizi;Utenze e canoni;Energia elettrica;;;;;;;;;;;;
1899;368,03;SAIU ELETTROSERVICE DI CADDIA GIOVANNA ANGELA;Z0D380CD3E;15/12/2023;1938;0;86;1;Spese correnti;Acquisto di beni e servizi;Acquisto di servizi;Contratti di servizio pubblico;Contratti di servizio per l'illuminazione pubblica;;;;;;;;;;;;
1900;1.220,00;SAIU ELETTROSERVICE DI CADDIA GIOVANNA ANGELA;Z0D380CD3E;15/12/2023;1938;0;275;1;Spese correnti;Acquisto di beni e servizi;Acquisto di servizi;Contratti di servizio pubblico;Contratti di servizio per l'illuminazione pubblica;;;;;;;;;;;;
1901;2.434,64;SAIU ELETTROSERVICE DI CADDIA GIOVANNA ANGELA;Z0D380CD3E;15/12/2023;1938;0;60;1;Spese correnti;Acquisto di beni e servizi;Acquisto di servizi;Contratti di servizio pubblico;Contratti di servizio per l'illuminazione pubblica;;;;;;;;;;;;
1902;155,61;OMESSO NOMINATIVO NEL RISPETTO DELLA NORMATIVA SULLA PROTEZIONE DATI PERSONALI; ;15/12/2023;1920;15;160;1;Spese correnti;Trasferimenti correnti;Trasferimenti correnti a Famiglie;Interventi assistenziali;Altri assegni e sussidi assistenziali;;;;;;;;;;;;
1903;16,74;SOGGETTI DIVERSI; ;15/12/2023;1917;0;80;1;Spese correnti;Trasferimenti correnti;Trasferimenti correnti a Famiglie;Interventi assistenziali;Altri assegni e sussidi assistenziali;;;;;;;;;;;;
1904;298,15;SOGGETTI DIVERSI; ;15/12/2023;1002;0;361;1;Spese correnti;Acquisto di beni e servizi;Acquisto di servizi;Organi e incarichi istituzionali dell'amministrazione;Organi istituzionali dell'amministrazione - Rimborsi;;;;;;;;;;;;
1905;298,15;SOGGETTI DIVERSI; ;15/12/2023;1002;0;361;1;Spese correnti;Acquisto di beni e servizi;Acquisto di servizi;Organi e incarichi istituzionali dell'amministrazione;Organi istituzionali dell'amministrazione - Rimborsi;;;;;;;;;;;;
1907;91,6;ECONOMO COMUNALE USAI MARIA CARMINE; ;15/12/2023;1043;0;118;1;Spese correnti;Acquisto di beni e servizi;Acquisto di beni;Altri beni di consumo;Altri beni e materiali di consumo n.a.c.;;;;;;;;;;;;
1908;570,55;ECONOMO COMUNALE USAI MARIA CARMINE; ;15/12/2023;1046;2;121;1;Spese correnti;Acquisto di beni e servizi;Acquisto di servizi;Servizi amministrativi;Spese postali;;;;;;;;;;;;
1909;24,99;ECONOMO COMUNALE USAI MARIA CARMINE; ;15/12/2023;1054;0;123;1;Spese correnti;Acquisto di beni e servizi;Acquisto di servizi;Servizi finanziari;Oneri per servizio di tesoreria;;;;;;;;;;;;
1911;72,4;ECONOMO COMUNALE USAI MARIA CARMINE; ;15/12/2023;1089;0;124;1;Spese correnti;Acquisto di beni e servizi;Acquisto di beni;Altri beni di consumo;Altri beni e materiali di consumo n.a.c.;;;;;;;;;;;;
1912;318,02;OMESSO NOMINATIVO NEL RISPETTO DELLA NORMATIVA SULLA PROTEZIONE DATI PERSONALI; ;20/12/2023;1920;15;156;1;Spese correnti;Trasferimenti correnti;Trasferimenti correnti a Famiglie;Interventi assistenziali;Altri assegni e sussidi assistenziali;;;;;;;;;;;;
1913;1;TESORIERE BANCO DI SARDEGNA; ;29/12/2023;1054;0;0;1;Spese correnti;Acquisto di beni e servizi;Acquisto di servizi;Servizi finanziari;Oneri per servizio di tesoreria;;;;;;;;;;;;
